Organisation Name,Organisation Code,Unique Ref No,Effective Date,Directorate where expenditure incurred,Supplier Name,Payment Date,Net Amount,Purpose of Spend,"Procurement Classification
(Higher Level)",Procurement Classification (Lower Level),CAPITAL / REVENUE
Walsall Council,http://opendatacommunities.org/id/metropolitan-district-council/walsall ,WC131-1,31.10.2021,RESOURCES AND TRANSFORMATION,11KBW,08/10/2021,"6,600.00",6610-External Legal Fees,SUPPLIES & SERVICES,SERVICES,REVENUE
Walsall Council,http://opendatacommunities.org/id/metropolitan-district-council/walsall ,WC131-2,31.10.2021,CHILDRENS,247 CARS (WILLENHALL) LIMITED,11/10/2021,"1,083.00",6241-Hire of Vehicle with Driver,TRANSPORT,DIRECT TRANSPORT COSTS,REVENUE
Walsall Council,http://opendatacommunities.org/id/metropolitan-district-council/walsall ,WC131-3,31.10.2021,CHILDRENS,247 CARS (WILLENHALL) LIMITED,11/10/2021,"1,994.55",6241-Hire of Vehicle with Driver,TRANSPORT,DIRECT TRANSPORT COSTS,REVENUE
Walsall Council,http://opendatacommunities.org/id/metropolitan-district-council/walsall ,WC131-4,31.10.2021,CHILDRENS,247 CARS (WILLENHALL) LIMITED,11/10/2021,"1,425.00",6241-Hire of Vehicle with Driver,TRANSPORT,DIRECT TRANSPORT COSTS,REVENUE
Walsall Council,http://opendatacommunities.org/id/metropolitan-district-council/walsall ,WC131-5,31.10.2021,CHILDRENS,247 CARS (WILLENHALL) LIMITED,11/10/2021,"1,130.50",6241-Hire of Vehicle with Driver,TRANSPORT,DIRECT TRANSPORT COSTS,REVENUE
Walsall Council,http://opendatacommunities.org/id/metropolitan-district-council/walsall ,WC131-6,31.10.2021,CHILDRENS,247 CARS (WILLENHALL) LIMITED,11/10/2021,511.56,6241-Hire of Vehicle with Driver,TRANSPORT,DIRECT TRANSPORT COSTS,REVENUE
Walsall Council,http://opendatacommunities.org/id/metropolitan-district-council/walsall ,WC131-7,31.10.2021,CHILDRENS,247 CARS (WILLENHALL) LIMITED,07/10/2021,"1,170.00",6241-Hire of Vehicle with Driver,TRANSPORT,DIRECT TRANSPORT COSTS,REVENUE
Walsall Council,http://opendatacommunities.org/id/metropolitan-district-council/walsall ,WC131-8,31.10.2021,"ECONOMY, ENVIRONMENT & COMMUNITIES",247 CARS (WILLENHALL) LIMITED,05/10/2021,-750.00,6313-Grants to Other Orgs,SUPPLIES & SERVICES,GRANTS (EXP) & SUBSCRIPTIONS,REVENUE
Walsall Council,http://opendatacommunities.org/id/metropolitan-district-council/walsall ,WC131-9,31.10.2021,"ECONOMY, ENVIRONMENT & COMMUNITIES",247 CARS (WILLENHALL) LIMITED,05/10/2021,750.00,6313-Grants to Other Orgs,SUPPLIES & SERVICES,GRANTS (EXP) & SUBSCRIPTIONS,REVENUE
Walsall Council,http://opendatacommunities.org/id/metropolitan-district-council/walsall ,WC131-10,31.10.2021,"ECONOMY, ENVIRONMENT & COMMUNITIES",247 CARS (WILLENHALL) LIMITED,05/10/2021,501.60,6313-Grants to Other Orgs,SUPPLIES & SERVICES,GRANTS (EXP) & SUBSCRIPTIONS,REVENUE
Walsall Council,http://opendatacommunities.org/id/metropolitan-district-council/walsall ,WC131-11,31.10.2021,"ECONOMY, ENVIRONMENT & COMMUNITIES",247 CARS (WILLENHALL) LIMITED,05/10/2021,980.10,6313-Grants to Other Orgs,SUPPLIES & SERVICES,GRANTS (EXP) & SUBSCRIPTIONS,REVENUE
Walsall Council,http://opendatacommunities.org/id/metropolitan-district-council/walsall ,WC131-12,31.10.2021,"ECONOMY, ENVIRONMENT & COMMUNITIES",247 CARS (WILLENHALL) LIMITED,12/10/2021,980.10,6313-Grants to Other Orgs,SUPPLIES & SERVICES,GRANTS (EXP) & SUBSCRIPTIONS,REVENUE
Walsall Council,http://opendatacommunities.org/id/metropolitan-district-council/walsall ,WC131-13,31.10.2021,"ECONOMY, ENVIRONMENT & COMMUNITIES",247 CARS (WILLENHALL) LIMITED,22/10/2021,721.60,6313-Grants to Other Orgs,SUPPLIES & SERVICES,GRANTS (EXP) & SUBSCRIPTIONS,REVENUE
Walsall Council,http://opendatacommunities.org/id/metropolitan-district-council/walsall ,WC131-14,31.10.2021,"ECONOMY, ENVIRONMENT & COMMUNITIES",247 CARS (WILLENHALL) LIMITED,08/10/2021,750.00,6313-Grants to Other Orgs,SUPPLIES & SERVICES,GRANTS (EXP) & SUBSCRIPTIONS,REVENUE
Walsall Council,http://opendatacommunities.org/id/metropolitan-district-council/walsall ,WC131-15,31.10.2021,RESOURCES AND TRANSFORMATION,3 SPIRIT UK TRAINING & CONSULTANCY,06/10/2021,870.00,6625-Consultant Fees,SUPPLIES & SERVICES,SERVICES,REVENUE
Walsall Council,http://opendatacommunities.org/id/metropolitan-district-council/walsall ,WC131-16,31.10.2021,RESOURCES AND TRANSFORMATION,3 SPIRIT UK TRAINING & CONSULTANCY,22/10/2021,700.00,6625-Consultant Fees,SUPPLIES & SERVICES,SERVICES,REVENUE
Walsall Council,http://opendatacommunities.org/id/metropolitan-district-council/walsall ,WC131-17,31.10.2021,ADULT SOCIAL CARE,5 CARE SERVICES LTD,11/10/2021,268.68,6541-Domiciliary Care,THIRD PARTY PAYMENTS,PRIVATE CONTRACTOR,REVENUE
Walsall Council,http://opendatacommunities.org/id/metropolitan-district-council/walsall ,WC131-18,31.10.2021,ADULT SOCIAL CARE,5 CARE SERVICES LTD,11/10/2021,490.49,6541-Domiciliary Care,THIRD PARTY PAYMENTS,PRIVATE CONTRACTOR,REVENUE
Walsall Council,http://opendatacommunities.org/id/metropolitan-district-council/walsall ,WC131-19,31.10.2021,ADULT SOCIAL CARE,5 CARE SERVICES LTD,11/10/2021,591.66,6541-Domiciliary Care,THIRD PARTY PAYMENTS,PRIVATE CONTRACTOR,REVENUE
Walsall Council,http://opendatacommunities.org/id/metropolitan-district-council/walsall ,WC131-20,31.10.2021,ADULT SOCIAL CARE,5 CARE SERVICES LTD,11/10/2021,490.49,6541-Domiciliary Care,THIRD PARTY PAYMENTS,PRIVATE CONTRACTOR,REVENUE
Walsall Council,http://opendatacommunities.org/id/metropolitan-district-council/walsall ,WC131-21,31.10.2021,ADULT SOCIAL CARE,5 CARE SERVICES LTD,11/10/2021,544.95,6541-Domiciliary Care,THIRD PARTY PAYMENTS,PRIVATE CONTRACTOR,REVENUE
Walsall Council,http://opendatacommunities.org/id/metropolitan-district-council/walsall ,WC131-22,31.10.2021,ADULT SOCIAL CARE,5 CARE SERVICES LTD,11/10/2021,654.01,6541-Domiciliary Care,THIRD PARTY PAYMENTS,PRIVATE CONTRACTOR,REVENUE
Walsall Council,http://opendatacommunities.org/id/metropolitan-district-council/walsall ,WC131-23,31.10.2021,ADULT SOCIAL CARE,5 CARE SERVICES LTD,11/10/2021,"1,121.04",6541-Domiciliary Care,THIRD PARTY PAYMENTS,PRIVATE CONTRACTOR,REVENUE
Walsall Council,http://opendatacommunities.org/id/metropolitan-district-council/walsall ,WC131-24,31.10.2021,ADULT SOCIAL CARE,5 CARE SERVICES LTD,11/10/2021,327.04,6541-Domiciliary Care,THIRD PARTY PAYMENTS,PRIVATE CONTRACTOR,REVENUE
Walsall Council,http://opendatacommunities.org/id/metropolitan-district-council/walsall ,WC131-25,31.10.2021,ADULT SOCIAL CARE,5 CARE SERVICES LTD,11/10/2021,435.96,6541-Domiciliary Care,THIRD PARTY PAYMENTS,PRIVATE CONTRACTOR,REVENUE
Walsall Council,http://opendatacommunities.org/id/metropolitan-district-council/walsall ,WC131-26,31.10.2021,ADULT SOCIAL CARE,5 CARE SERVICES LTD,11/10/2021,311.40,6541-Domiciliary Care,THIRD PARTY PAYMENTS,PRIVATE CONTRACTOR,REVENUE
Walsall Council,http://opendatacommunities.org/id/metropolitan-district-council/walsall ,WC131-27,31.10.2021,ADULT SOCIAL CARE,5 CARE SERVICES LTD,11/10/2021,326.97,6541-Domiciliary Care,THIRD PARTY PAYMENTS,PRIVATE CONTRACTOR,REVENUE
Walsall Council,http://opendatacommunities.org/id/metropolitan-district-council/walsall ,WC131-28,31.10.2021,ADULT SOCIAL CARE,5 CARE SERVICES LTD,11/10/2021,490.49,6541-Domiciliary Care,THIRD PARTY PAYMENTS,PRIVATE CONTRACTOR,REVENUE
Walsall Council,http://opendatacommunities.org/id/metropolitan-district-council/walsall ,WC131-29,31.10.2021,ADULT SOCIAL CARE,5 CARE SERVICES LTD,11/10/2021,311.40,6541-Domiciliary Care,THIRD PARTY PAYMENTS,PRIVATE CONTRACTOR,REVENUE
Walsall Council,http://opendatacommunities.org/id/metropolitan-district-council/walsall ,WC131-30,31.10.2021,ADULT SOCIAL CARE,5 CARE SERVICES LTD,11/10/2021,654.01,6541-Domiciliary Care,THIRD PARTY PAYMENTS,PRIVATE CONTRACTOR,REVENUE
Walsall Council,http://opendatacommunities.org/id/metropolitan-district-council/walsall ,WC131-31,31.10.2021,ADULT SOCIAL CARE,5 CARE SERVICES LTD,11/10/2021,326.97,6541-Domiciliary Care,THIRD PARTY PAYMENTS,PRIVATE CONTRACTOR,REVENUE
Walsall Council,http://opendatacommunities.org/id/metropolitan-district-council/walsall ,WC131-32,31.10.2021,ADULT SOCIAL CARE,5 CARE SERVICES LTD,11/10/2021,303.72,6541-Domiciliary Care,THIRD PARTY PAYMENTS,PRIVATE CONTRACTOR,REVENUE
Walsall Council,http://opendatacommunities.org/id/metropolitan-district-council/walsall ,WC131-33,31.10.2021,ADULT SOCIAL CARE,5 CARE SERVICES LTD,11/10/2021,490.49,6541-Domiciliary Care,THIRD PARTY PAYMENTS,PRIVATE CONTRACTOR,REVENUE
Walsall Council,http://opendatacommunities.org/id/metropolitan-district-council/walsall ,WC131-34,31.10.2021,ADULT SOCIAL CARE,5 CARE SERVICES LTD,11/10/2021,544.95,6541-Domiciliary Care,THIRD PARTY PAYMENTS,PRIVATE CONTRACTOR,REVENUE
Walsall Council,http://opendatacommunities.org/id/metropolitan-district-council/walsall ,WC131-35,31.10.2021,ADULT SOCIAL CARE,5 CARE SERVICES LTD,11/10/2021,599.48,6541-Domiciliary Care,THIRD PARTY PAYMENTS,PRIVATE CONTRACTOR,REVENUE
Walsall Council,http://opendatacommunities.org/id/metropolitan-district-council/walsall ,WC131-36,31.10.2021,ADULT SOCIAL CARE,5 CARE SERVICES LTD,11/10/2021,705.84,6541-Domiciliary Care,THIRD PARTY PAYMENTS,PRIVATE CONTRACTOR,REVENUE
Walsall Council,http://opendatacommunities.org/id/metropolitan-district-council/walsall ,WC131-37,31.10.2021,ADULT SOCIAL CARE,5 CARE SERVICES LTD,11/10/2021,"1,198.89",6541-Domiciliary Care,THIRD PARTY PAYMENTS,PRIVATE CONTRACTOR,REVENUE
Walsall Council,http://opendatacommunities.org/id/metropolitan-district-council/walsall ,WC131-38,31.10.2021,ADULT SOCIAL CARE,5 CARE SERVICES LTD,11/10/2021,560.52,6541-Domiciliary Care,THIRD PARTY PAYMENTS,PRIVATE CONTRACTOR,REVENUE
Walsall Council,http://opendatacommunities.org/id/metropolitan-district-council/walsall ,WC131-39,31.10.2021,ADULT SOCIAL CARE,5 CARE SERVICES LTD,11/10/2021,490.49,6541-Domiciliary Care,THIRD PARTY PAYMENTS,PRIVATE CONTRACTOR,REVENUE
Walsall Council,http://opendatacommunities.org/id/metropolitan-district-council/walsall ,WC131-40,31.10.2021,ADULT SOCIAL CARE,5 CARE SERVICES LTD,11/10/2021,591.66,6541-Domiciliary Care,THIRD PARTY PAYMENTS,PRIVATE CONTRACTOR,REVENUE
Walsall Council,http://opendatacommunities.org/id/metropolitan-district-council/walsall ,WC131-41,31.10.2021,ADULT SOCIAL CARE,5 CARE SERVICES LTD,11/10/2021,268.68,6541-Domiciliary Care,THIRD PARTY PAYMENTS,PRIVATE CONTRACTOR,REVENUE
Walsall Council,http://opendatacommunities.org/id/metropolitan-district-council/walsall ,WC131-42,31.10.2021,ADULT SOCIAL CARE,5 CARE SERVICES LTD,11/10/2021,490.49,6541-Domiciliary Care,THIRD PARTY PAYMENTS,PRIVATE CONTRACTOR,REVENUE
Walsall Council,http://opendatacommunities.org/id/metropolitan-district-council/walsall ,WC131-43,31.10.2021,ADULT SOCIAL CARE,5 CARE SERVICES LTD,11/10/2021,544.95,6541-Domiciliary Care,THIRD PARTY PAYMENTS,PRIVATE CONTRACTOR,REVENUE
Walsall Council,http://opendatacommunities.org/id/metropolitan-district-council/walsall ,WC131-44,31.10.2021,ADULT SOCIAL CARE,5 CARE SERVICES LTD,11/10/2021,654.01,6541-Domiciliary Care,THIRD PARTY PAYMENTS,PRIVATE CONTRACTOR,REVENUE
Walsall Council,http://opendatacommunities.org/id/metropolitan-district-council/walsall ,WC131-45,31.10.2021,ADULT SOCIAL CARE,5 CARE SERVICES LTD,11/10/2021,"1,307.88",6541-Domiciliary Care,THIRD PARTY PAYMENTS,PRIVATE CONTRACTOR,REVENUE
Walsall Council,http://opendatacommunities.org/id/metropolitan-district-council/walsall ,WC131-46,31.10.2021,ADULT SOCIAL CARE,5 CARE SERVICES LTD,11/10/2021,"1,198.89",6541-Domiciliary Care,THIRD PARTY PAYMENTS,PRIVATE CONTRACTOR,REVENUE
Walsall Council,http://opendatacommunities.org/id/metropolitan-district-council/walsall ,WC131-47,31.10.2021,ADULT SOCIAL CARE,5 CARE SERVICES LTD,11/10/2021,560.52,6541-Domiciliary Care,THIRD PARTY PAYMENTS,PRIVATE CONTRACTOR,REVENUE
Walsall Council,http://opendatacommunities.org/id/metropolitan-district-council/walsall ,WC131-48,31.10.2021,ADULT SOCIAL CARE,5 CARE SERVICES LTD,11/10/2021,303.72,6541-Domiciliary Care,THIRD PARTY PAYMENTS,PRIVATE CONTRACTOR,REVENUE
Walsall Council,http://opendatacommunities.org/id/metropolitan-district-council/walsall ,WC131-49,31.10.2021,ADULT SOCIAL CARE,5 CARE SERVICES LTD,11/10/2021,490.49,6541-Domiciliary Care,THIRD PARTY PAYMENTS,PRIVATE CONTRACTOR,REVENUE
Walsall Council,http://opendatacommunities.org/id/metropolitan-district-council/walsall ,WC131-50,31.10.2021,ADULT SOCIAL CARE,5 CARE SERVICES LTD,11/10/2021,327.04,6541-Domiciliary Care,THIRD PARTY PAYMENTS,PRIVATE CONTRACTOR,REVENUE
Walsall Council,http://opendatacommunities.org/id/metropolitan-district-council/walsall ,WC131-51,31.10.2021,ADULT SOCIAL CARE,5 CARE SERVICES LTD,11/10/2021,311.40,6541-Domiciliary Care,THIRD PARTY PAYMENTS,PRIVATE CONTRACTOR,REVENUE
Walsall Council,http://opendatacommunities.org/id/metropolitan-district-council/walsall ,WC131-52,31.10.2021,ADULT SOCIAL CARE,5 CARE SERVICES LTD,11/10/2021,326.97,6541-Domiciliary Care,THIRD PARTY PAYMENTS,PRIVATE CONTRACTOR,REVENUE
Walsall Council,http://opendatacommunities.org/id/metropolitan-district-council/walsall ,WC131-53,31.10.2021,ADULT SOCIAL CARE,5 CARE SERVICES LTD,11/10/2021,544.95,6541-Domiciliary Care,THIRD PARTY PAYMENTS,PRIVATE CONTRACTOR,REVENUE
Walsall Council,http://opendatacommunities.org/id/metropolitan-district-council/walsall ,WC131-54,31.10.2021,ADULT SOCIAL CARE,5 CARE SERVICES LTD,11/10/2021,435.96,6541-Domiciliary Care,THIRD PARTY PAYMENTS,PRIVATE CONTRACTOR,REVENUE
Walsall Council,http://opendatacommunities.org/id/metropolitan-district-council/walsall ,WC131-55,31.10.2021,ADULT SOCIAL CARE,5 CARE SERVICES LTD,11/10/2021,490.49,6541-Domiciliary Care,THIRD PARTY PAYMENTS,PRIVATE CONTRACTOR,REVENUE
Walsall Council,http://opendatacommunities.org/id/metropolitan-district-council/walsall ,WC131-56,31.10.2021,ADULT SOCIAL CARE,5 CARE SERVICES LTD,11/10/2021,311.40,6541-Domiciliary Care,THIRD PARTY PAYMENTS,PRIVATE CONTRACTOR,REVENUE
Walsall Council,http://opendatacommunities.org/id/metropolitan-district-council/walsall ,WC131-57,31.10.2021,ADULT SOCIAL CARE,5 CARE SERVICES LTD,11/10/2021,654.01,6541-Domiciliary Care,THIRD PARTY PAYMENTS,PRIVATE CONTRACTOR,REVENUE
Walsall Council,http://opendatacommunities.org/id/metropolitan-district-council/walsall ,WC131-58,31.10.2021,ADULT SOCIAL CARE,5 CARE SERVICES LTD,11/10/2021,326.97,6541-Domiciliary Care,THIRD PARTY PAYMENTS,PRIVATE CONTRACTOR,REVENUE
Walsall Council,http://opendatacommunities.org/id/metropolitan-district-council/walsall ,WC131-59,31.10.2021,ADULT SOCIAL CARE,5 CARE SERVICES LTD,11/10/2021,599.48,6541-Domiciliary Care,THIRD PARTY PAYMENTS,PRIVATE CONTRACTOR,REVENUE
Walsall Council,http://opendatacommunities.org/id/metropolitan-district-council/walsall ,WC131-60,31.10.2021,ADULT SOCIAL CARE,5 CARE SERVICES LTD,11/10/2021,705.84,6541-Domiciliary Care,THIRD PARTY PAYMENTS,PRIVATE CONTRACTOR,REVENUE
Walsall Council,http://opendatacommunities.org/id/metropolitan-district-council/walsall ,WC131-61,31.10.2021,ADULT SOCIAL CARE,5 CARE SERVICES LTD,21/10/2021,354.32,6541-Domiciliary Care,THIRD PARTY PAYMENTS,PRIVATE CONTRACTOR,REVENUE
Walsall Council,http://opendatacommunities.org/id/metropolitan-district-council/walsall ,WC131-62,31.10.2021,ADULT SOCIAL CARE,5 CARE SERVICES LTD,21/10/2021,841.20,6541-Domiciliary Care,THIRD PARTY PAYMENTS,PRIVATE CONTRACTOR,REVENUE
Walsall Council,http://opendatacommunities.org/id/metropolitan-district-council/walsall ,WC131-63,31.10.2021,ADULT SOCIAL CARE,5 CARE SERVICES LTD,21/10/2021,864.57,6541-Domiciliary Care,THIRD PARTY PAYMENTS,PRIVATE CONTRACTOR,REVENUE
Walsall Council,http://opendatacommunities.org/id/metropolitan-district-council/walsall ,WC131-64,31.10.2021,ADULT SOCIAL CARE,5 CARE SERVICES LTD,21/10/2021,350.50,6541-Domiciliary Care,THIRD PARTY PAYMENTS,PRIVATE CONTRACTOR,REVENUE
Walsall Council,http://opendatacommunities.org/id/metropolitan-district-council/walsall ,WC131-65,31.10.2021,ADULT SOCIAL CARE,5 CARE SERVICES LTD,26/10/2021,490.49,6541-Domiciliary Care,THIRD PARTY PAYMENTS,PRIVATE CONTRACTOR,REVENUE
Walsall Council,http://opendatacommunities.org/id/metropolitan-district-council/walsall ,WC131-66,31.10.2021,ADULT SOCIAL CARE,5 CARE SERVICES LTD,26/10/2021,591.66,6541-Domiciliary Care,THIRD PARTY PAYMENTS,PRIVATE CONTRACTOR,REVENUE
Walsall Council,http://opendatacommunities.org/id/metropolitan-district-council/walsall ,WC131-67,31.10.2021,ADULT SOCIAL CARE,5 CARE SERVICES LTD,26/10/2021,490.49,6541-Domiciliary Care,THIRD PARTY PAYMENTS,PRIVATE CONTRACTOR,REVENUE
Walsall Council,http://opendatacommunities.org/id/metropolitan-district-council/walsall ,WC131-68,31.10.2021,ADULT SOCIAL CARE,5 CARE SERVICES LTD,26/10/2021,544.95,6541-Domiciliary Care,THIRD PARTY PAYMENTS,PRIVATE CONTRACTOR,REVENUE
Walsall Council,http://opendatacommunities.org/id/metropolitan-district-council/walsall ,WC131-69,31.10.2021,ADULT SOCIAL CARE,5 CARE SERVICES LTD,26/10/2021,467.40,6541-Domiciliary Care,THIRD PARTY PAYMENTS,PRIVATE CONTRACTOR,REVENUE
Walsall Council,http://opendatacommunities.org/id/metropolitan-district-council/walsall ,WC131-70,31.10.2021,ADULT SOCIAL CARE,5 CARE SERVICES LTD,26/10/2021,654.01,6541-Domiciliary Care,THIRD PARTY PAYMENTS,PRIVATE CONTRACTOR,REVENUE
Walsall Council,http://opendatacommunities.org/id/metropolitan-district-council/walsall ,WC131-71,31.10.2021,ADULT SOCIAL CARE,5 CARE SERVICES LTD,26/10/2021,-537.36,6541-Domiciliary Care,THIRD PARTY PAYMENTS,PRIVATE CONTRACTOR,REVENUE
Walsall Council,http://opendatacommunities.org/id/metropolitan-district-council/walsall ,WC131-72,31.10.2021,ADULT SOCIAL CARE,5 CARE SERVICES LTD,26/10/2021,490.49,6541-Domiciliary Care,THIRD PARTY PAYMENTS,PRIVATE CONTRACTOR,REVENUE
Walsall Council,http://opendatacommunities.org/id/metropolitan-district-council/walsall ,WC131-73,31.10.2021,ADULT SOCIAL CARE,5 CARE SERVICES LTD,26/10/2021,544.95,6541-Domiciliary Care,THIRD PARTY PAYMENTS,PRIVATE CONTRACTOR,REVENUE
Walsall Council,http://opendatacommunities.org/id/metropolitan-district-council/walsall ,WC131-74,31.10.2021,ADULT SOCIAL CARE,5 CARE SERVICES LTD,26/10/2021,560.52,6541-Domiciliary Care,THIRD PARTY PAYMENTS,PRIVATE CONTRACTOR,REVENUE
Walsall Council,http://opendatacommunities.org/id/metropolitan-district-council/walsall ,WC131-75,31.10.2021,ADULT SOCIAL CARE,5 CARE SERVICES LTD,26/10/2021,327.04,6541-Domiciliary Care,THIRD PARTY PAYMENTS,PRIVATE CONTRACTOR,REVENUE
Walsall Council,http://opendatacommunities.org/id/metropolitan-district-council/walsall ,WC131-76,31.10.2021,ADULT SOCIAL CARE,5 CARE SERVICES LTD,26/10/2021,654.01,6541-Domiciliary Care,THIRD PARTY PAYMENTS,PRIVATE CONTRACTOR,REVENUE
Walsall Council,http://opendatacommunities.org/id/metropolitan-district-council/walsall ,WC131-77,31.10.2021,ADULT SOCIAL CARE,5 CARE SERVICES LTD,26/10/2021,326.97,6541-Domiciliary Care,THIRD PARTY PAYMENTS,PRIVATE CONTRACTOR,REVENUE
Walsall Council,http://opendatacommunities.org/id/metropolitan-district-council/walsall ,WC131-78,31.10.2021,ADULT SOCIAL CARE,5 CARE SERVICES LTD,26/10/2021,311.40,6541-Domiciliary Care,THIRD PARTY PAYMENTS,PRIVATE CONTRACTOR,REVENUE
Walsall Council,http://opendatacommunities.org/id/metropolitan-district-council/walsall ,WC131-79,31.10.2021,ADULT SOCIAL CARE,5 CARE SERVICES LTD,26/10/2021,326.97,6541-Domiciliary Care,THIRD PARTY PAYMENTS,PRIVATE CONTRACTOR,REVENUE
Walsall Council,http://opendatacommunities.org/id/metropolitan-district-council/walsall ,WC131-80,31.10.2021,ADULT SOCIAL CARE,5 CARE SERVICES LTD,26/10/2021,599.48,6541-Domiciliary Care,THIRD PARTY PAYMENTS,PRIVATE CONTRACTOR,REVENUE
Walsall Council,http://opendatacommunities.org/id/metropolitan-district-council/walsall ,WC131-81,31.10.2021,ADULT SOCIAL CARE,5 CARE SERVICES LTD,26/10/2021,705.84,6541-Domiciliary Care,THIRD PARTY PAYMENTS,PRIVATE CONTRACTOR,REVENUE
Walsall Council,http://opendatacommunities.org/id/metropolitan-district-council/walsall ,WC131-82,31.10.2021,ADULT SOCIAL CARE,5 CARE SERVICES LTD,26/10/2021,490.49,6541-Domiciliary Care,THIRD PARTY PAYMENTS,PRIVATE CONTRACTOR,REVENUE
Walsall Council,http://opendatacommunities.org/id/metropolitan-district-council/walsall ,WC131-83,31.10.2021,ADULT SOCIAL CARE,5 CARE SERVICES LTD,26/10/2021,-327.18,6541-Domiciliary Care,THIRD PARTY PAYMENTS,PRIVATE CONTRACTOR,REVENUE
Walsall Council,http://opendatacommunities.org/id/metropolitan-district-council/walsall ,WC131-84,31.10.2021,ADULT SOCIAL CARE,5 CARE SERVICES LTD,26/10/2021,693.11,6541-Domiciliary Care,THIRD PARTY PAYMENTS,PRIVATE CONTRACTOR,REVENUE
Walsall Council,http://opendatacommunities.org/id/metropolitan-district-council/walsall ,WC131-85,31.10.2021,ADULT SOCIAL CARE,5 CARE SERVICES LTD,26/10/2021,"1,198.89",6541-Domiciliary Care,THIRD PARTY PAYMENTS,PRIVATE CONTRACTOR,REVENUE
Walsall Council,http://opendatacommunities.org/id/metropolitan-district-council/walsall ,WC131-86,31.10.2021,ADULT SOCIAL CARE,5 CARE SERVICES LTD,26/10/2021,560.52,6541-Domiciliary Care,THIRD PARTY PAYMENTS,PRIVATE CONTRACTOR,REVENUE
Walsall Council,http://opendatacommunities.org/id/metropolitan-district-council/walsall ,WC131-87,31.10.2021,ADULT SOCIAL CARE,5 CARE SERVICES LTD,26/10/2021,490.49,6541-Domiciliary Care,THIRD PARTY PAYMENTS,PRIVATE CONTRACTOR,REVENUE
Walsall Council,http://opendatacommunities.org/id/metropolitan-district-council/walsall ,WC131-88,31.10.2021,ADULT SOCIAL CARE,5 CARE SERVICES LTD,26/10/2021,591.66,6541-Domiciliary Care,THIRD PARTY PAYMENTS,PRIVATE CONTRACTOR,REVENUE
Walsall Council,http://opendatacommunities.org/id/metropolitan-district-council/walsall ,WC131-89,31.10.2021,ADULT SOCIAL CARE,5 CARE SERVICES LTD,26/10/2021,654.01,6541-Domiciliary Care,THIRD PARTY PAYMENTS,PRIVATE CONTRACTOR,REVENUE
Walsall Council,http://opendatacommunities.org/id/metropolitan-district-council/walsall ,WC131-90,31.10.2021,ADULT SOCIAL CARE,5 CARE SERVICES LTD,26/10/2021,"1,198.89",6541-Domiciliary Care,THIRD PARTY PAYMENTS,PRIVATE CONTRACTOR,REVENUE
Walsall Council,http://opendatacommunities.org/id/metropolitan-district-council/walsall ,WC131-91,31.10.2021,ADULT SOCIAL CARE,5 CARE SERVICES LTD,26/10/2021,560.52,6541-Domiciliary Care,THIRD PARTY PAYMENTS,PRIVATE CONTRACTOR,REVENUE
Walsall Council,http://opendatacommunities.org/id/metropolitan-district-council/walsall ,WC131-92,31.10.2021,ADULT SOCIAL CARE,5 CARE SERVICES LTD,26/10/2021,490.49,6541-Domiciliary Care,THIRD PARTY PAYMENTS,PRIVATE CONTRACTOR,REVENUE
Walsall Council,http://opendatacommunities.org/id/metropolitan-district-council/walsall ,WC131-93,31.10.2021,ADULT SOCIAL CARE,5 CARE SERVICES LTD,26/10/2021,544.95,6541-Domiciliary Care,THIRD PARTY PAYMENTS,PRIVATE CONTRACTOR,REVENUE
Walsall Council,http://opendatacommunities.org/id/metropolitan-district-council/walsall ,WC131-94,31.10.2021,ADULT SOCIAL CARE,5 CARE SERVICES LTD,26/10/2021,"1,121.04",6541-Domiciliary Care,THIRD PARTY PAYMENTS,PRIVATE CONTRACTOR,REVENUE
Walsall Council,http://opendatacommunities.org/id/metropolitan-district-council/walsall ,WC131-95,31.10.2021,ADULT SOCIAL CARE,5 CARE SERVICES LTD,26/10/2021,654.01,6541-Domiciliary Care,THIRD PARTY PAYMENTS,PRIVATE CONTRACTOR,REVENUE
Walsall Council,http://opendatacommunities.org/id/metropolitan-district-council/walsall ,WC131-96,31.10.2021,ADULT SOCIAL CARE,5 CARE SERVICES LTD,26/10/2021,326.97,6541-Domiciliary Care,THIRD PARTY PAYMENTS,PRIVATE CONTRACTOR,REVENUE
Walsall Council,http://opendatacommunities.org/id/metropolitan-district-council/walsall ,WC131-97,31.10.2021,ADULT SOCIAL CARE,5 CARE SERVICES LTD,26/10/2021,327.04,6541-Domiciliary Care,THIRD PARTY PAYMENTS,PRIVATE CONTRACTOR,REVENUE
Walsall Council,http://opendatacommunities.org/id/metropolitan-district-council/walsall ,WC131-98,31.10.2021,ADULT SOCIAL CARE,5 CARE SERVICES LTD,26/10/2021,599.48,6541-Domiciliary Care,THIRD PARTY PAYMENTS,PRIVATE CONTRACTOR,REVENUE
Walsall Council,http://opendatacommunities.org/id/metropolitan-district-council/walsall ,WC131-99,31.10.2021,ADULT SOCIAL CARE,5 CARE SERVICES LTD,26/10/2021,705.84,6541-Domiciliary Care,THIRD PARTY PAYMENTS,PRIVATE CONTRACTOR,REVENUE
Walsall Council,http://opendatacommunities.org/id/metropolitan-district-council/walsall ,WC131-100,31.10.2021,ADULT SOCIAL CARE,5 CARE SERVICES LTD,26/10/2021,490.49,6541-Domiciliary Care,THIRD PARTY PAYMENTS,PRIVATE CONTRACTOR,REVENUE
Walsall Council,http://opendatacommunities.org/id/metropolitan-district-council/walsall ,WC131-101,31.10.2021,ADULT SOCIAL CARE,5 CARE SERVICES LTD,26/10/2021,311.40,6541-Domiciliary Care,THIRD PARTY PAYMENTS,PRIVATE CONTRACTOR,REVENUE
Walsall Council,http://opendatacommunities.org/id/metropolitan-district-council/walsall ,WC131-102,31.10.2021,ADULT SOCIAL CARE,5 CARE SERVICES LTD,26/10/2021,326.97,6541-Domiciliary Care,THIRD PARTY PAYMENTS,PRIVATE CONTRACTOR,REVENUE
Walsall Council,http://opendatacommunities.org/id/metropolitan-district-council/walsall ,WC131-103,31.10.2021,ADULT SOCIAL CARE,5 CARE SERVICES LTD,26/10/2021,544.95,6541-Domiciliary Care,THIRD PARTY PAYMENTS,PRIVATE CONTRACTOR,REVENUE
Walsall Council,http://opendatacommunities.org/id/metropolitan-district-council/walsall ,WC131-104,31.10.2021,ADULT SOCIAL CARE,5 CARE SERVICES LTD,26/10/2021,490.49,6541-Domiciliary Care,THIRD PARTY PAYMENTS,PRIVATE CONTRACTOR,REVENUE
Walsall Council,http://opendatacommunities.org/id/metropolitan-district-council/walsall ,WC131-105,31.10.2021,ADULT SOCIAL CARE,5 CARE SERVICES LTD,20/10/2021,373.68,6541-Domiciliary Care,THIRD PARTY PAYMENTS,PRIVATE CONTRACTOR,REVENUE
Walsall Council,http://opendatacommunities.org/id/metropolitan-district-council/walsall ,WC131-106,31.10.2021,CHILDRENS,5 CARE SERVICES LTD,05/10/2021,255.20,6220-Professional Fees & Services,SUPPLIES & SERVICES,SERVICES,REVENUE
Walsall Council,http://opendatacommunities.org/id/metropolitan-district-council/walsall ,WC131-107,31.10.2021,CHILDRENS,5 CARE SERVICES LTD,19/10/2021,255.20,6220-Professional Fees & Services,SUPPLIES & SERVICES,SERVICES,REVENUE
Walsall Council,http://opendatacommunities.org/id/metropolitan-district-council/walsall ,WC131-108,31.10.2021,RESOURCES AND TRANSFORMATION,A D T FIRE AND SECURITY PLC,20/10/2021,"1,276.81",6310-Repair & Maintenance of Furniture & Equipment,SUPPLIES & SERVICES,EQUIPMENT FURNITURE & MATERIALS,REVENUE
Walsall Council,http://opendatacommunities.org/id/metropolitan-district-council/walsall ,WC131-109,31.10.2021,CHILDRENS,A F BLAKEMORE & SON LTD,20/10/2021,"1,576.45",6213-Catering & Refreshments,SUPPLIES & SERVICES,CATERING,REVENUE
Walsall Council,http://opendatacommunities.org/id/metropolitan-district-council/walsall ,WC131-110,31.10.2021,"ECONOMY, ENVIRONMENT & COMMUNITIES",A F BLAKEMORE & SON LTD,26/10/2021,787.04,6413-Food & Drink Supplies,SUPPLIES & SERVICES,CATERING,REVENUE
Walsall Council,http://opendatacommunities.org/id/metropolitan-district-council/walsall ,WC131-111,31.10.2021,"ECONOMY, ENVIRONMENT & COMMUNITIES",A F BLAKEMORE & SON LTD,19/10/2021,-450.15,6413-Food & Drink Supplies,SUPPLIES & SERVICES,CATERING,REVENUE
Walsall Council,http://opendatacommunities.org/id/metropolitan-district-council/walsall ,WC131-112,31.10.2021,"ECONOMY, ENVIRONMENT & COMMUNITIES",A F BLAKEMORE & SON LTD,19/10/2021,450.15,6413-Food & Drink Supplies,SUPPLIES & SERVICES,CATERING,REVENUE
Walsall Council,http://opendatacommunities.org/id/metropolitan-district-council/walsall ,WC131-113,31.10.2021,"ECONOMY, ENVIRONMENT & COMMUNITIES",A F BLAKEMORE & SON LTD,19/10/2021,453.15,6413-Food & Drink Supplies,SUPPLIES & SERVICES,CATERING,REVENUE
Walsall Council,http://opendatacommunities.org/id/metropolitan-district-council/walsall ,WC131-114,31.10.2021,"ECONOMY, ENVIRONMENT & COMMUNITIES",A F BLAKEMORE & SON LTD,26/10/2021,310.60,6413-Food & Drink Supplies,SUPPLIES & SERVICES,CATERING,REVENUE
Walsall Council,http://opendatacommunities.org/id/metropolitan-district-council/walsall ,WC131-115,31.10.2021,"ECONOMY, ENVIRONMENT & COMMUNITIES",A F BLAKEMORE & SON LTD,13/10/2021,316.96,6413-Food & Drink Supplies,SUPPLIES & SERVICES,CATERING,REVENUE
Walsall Council,http://opendatacommunities.org/id/metropolitan-district-council/walsall ,WC131-116,31.10.2021,ADULT SOCIAL CARE,A2 COMMS LIMITED,12/10/2021,833.00,6622-Media,SUPPLIES & SERVICES,SERVICES,REVENUE
Walsall Council,http://opendatacommunities.org/id/metropolitan-district-council/walsall ,WC131-117,31.10.2021,"ECONOMY, ENVIRONMENT & COMMUNITIES",AAINA COMMUNITY HUB,07/10/2021,"2,938.00",6430-Consultant Fees,SUPPLIES & SERVICES,SERVICES,REVENUE
Walsall Council,http://opendatacommunities.org/id/metropolitan-district-council/walsall ,WC131-118,31.10.2021,"ECONOMY, ENVIRONMENT & COMMUNITIES",AAINA COMMUNITY HUB,07/10/2021,"2,938.00",6430-Consultant Fees,SUPPLIES & SERVICES,SERVICES,REVENUE
Walsall Council,http://opendatacommunities.org/id/metropolitan-district-council/walsall ,WC131-119,31.10.2021,"ECONOMY, ENVIRONMENT & COMMUNITIES",AAINA COMMUNITY HUB,13/10/2021,"1,250.00",6430-Grants to Other Orgs,SUPPLIES & SERVICES,GRANTS (EXP) & SUBSCRIPTIONS,REVENUE
Walsall Council,http://opendatacommunities.org/id/metropolitan-district-council/walsall ,WC131-120,31.10.2021,ADULT SOCIAL CARE,ABBEY COURT NURSING & RESIDEN,26/10/2021,"2,064.44",6541-Residential,THIRD PARTY PAYMENTS,PRIVATE CONTRACTOR,REVENUE
Walsall Council,http://opendatacommunities.org/id/metropolitan-district-council/walsall ,WC131-121,31.10.2021,ADULT SOCIAL CARE,ABBEY COURT NURSING & RESIDEN,26/10/2021,"2,571.08",6541-Residential EMI,THIRD PARTY PAYMENTS,PRIVATE CONTRACTOR,REVENUE
Walsall Council,http://opendatacommunities.org/id/metropolitan-district-council/walsall ,WC131-122,31.10.2021,ADULT SOCIAL CARE,ABBEY COURT NURSING & RESIDEN,26/10/2021,"2,331.08",6541-Residential EMI,THIRD PARTY PAYMENTS,PRIVATE CONTRACTOR,REVENUE
Walsall Council,http://opendatacommunities.org/id/metropolitan-district-council/walsall ,WC131-123,31.10.2021,ADULT SOCIAL CARE,ABBEY HEALTHCARE HOMES LTD,26/10/2021,"3,133.76",6541-Residential,THIRD PARTY PAYMENTS,PRIVATE CONTRACTOR,REVENUE
Walsall Council,http://opendatacommunities.org/id/metropolitan-district-council/walsall ,WC131-124,31.10.2021,ADULT SOCIAL CARE,ABBEY HEALTHCARE HOMES LTD,26/10/2021,"3,133.76",6541-Residential,THIRD PARTY PAYMENTS,PRIVATE CONTRACTOR,REVENUE
Walsall Council,http://opendatacommunities.org/id/metropolitan-district-council/walsall ,WC131-125,31.10.2021,ADULT SOCIAL CARE,ABBEY HEALTHCARE HOMES LTD,26/10/2021,"2,396.36",6541-Residential,THIRD PARTY PAYMENTS,PRIVATE CONTRACTOR,REVENUE
Walsall Council,http://opendatacommunities.org/id/metropolitan-district-council/walsall ,WC131-126,31.10.2021,ADULT SOCIAL CARE,ABBEY HEALTHCARE HOMES LTD,26/10/2021,"3,551.56",6541-Residential,THIRD PARTY PAYMENTS,PRIVATE CONTRACTOR,REVENUE
Walsall Council,http://opendatacommunities.org/id/metropolitan-district-council/walsall ,WC131-127,31.10.2021,CHILDRENS,ABC DAY NURSERY (WILLENHALL) LIMITED,25/10/2021,"11,623.50",1184-Other-Grants to Other Orgs,SUPPLIES & SERVICES,GRANTS (EXP) & SUBSCRIPTIONS,REVENUE
Walsall Council,http://opendatacommunities.org/id/metropolitan-district-council/walsall ,WC131-128,31.10.2021,CHILDRENS,ABC DAY NURSERY (WILLENHALL) LIMITED,25/10/2021,"5,985.00",1184-Other-Grants to Other Orgs,SUPPLIES & SERVICES,GRANTS (EXP) & SUBSCRIPTIONS,REVENUE
Walsall Council,http://opendatacommunities.org/id/metropolitan-district-council/walsall ,WC131-129,31.10.2021,ADULT SOCIAL CARE,REDACTED,06/10/2021,"2,132.48",6541-Direct Payment,THIRD PARTY PAYMENTS,PRIVATE CONTRACTOR,REVENUE
Walsall Council,http://opendatacommunities.org/id/metropolitan-district-council/walsall ,WC131-130,31.10.2021,CHILDRENS,ABLEWELL CARS,11/10/2021,858.60,6241-Hire of Vehicle with Driver,TRANSPORT,DIRECT TRANSPORT COSTS,REVENUE
Walsall Council,http://opendatacommunities.org/id/metropolitan-district-council/walsall ,WC131-131,31.10.2021,CHILDRENS,ABLEWELL CARS,11/10/2021,585.00,6241-Hire of Vehicle with Driver,TRANSPORT,DIRECT TRANSPORT COSTS,REVENUE
Walsall Council,http://opendatacommunities.org/id/metropolitan-district-council/walsall ,WC131-132,31.10.2021,CHILDRENS,ABLEWELL CARS,11/10/2021,"1,331.20",6241-Hire of Vehicle with Driver,TRANSPORT,DIRECT TRANSPORT COSTS,REVENUE
Walsall Council,http://opendatacommunities.org/id/metropolitan-district-council/walsall ,WC131-133,31.10.2021,CHILDRENS,ABLEWELL CARS,11/10/2021,700.40,6241-Hire of Vehicle with Driver,TRANSPORT,DIRECT TRANSPORT COSTS,REVENUE
Walsall Council,http://opendatacommunities.org/id/metropolitan-district-council/walsall ,WC131-134,31.10.2021,CHILDRENS,ABLEWELL CARS,11/10/2021,"2,044.00",6241-Hire of Vehicle with Driver,TRANSPORT,DIRECT TRANSPORT COSTS,REVENUE
Walsall Council,http://opendatacommunities.org/id/metropolitan-district-council/walsall ,WC131-135,31.10.2021,CHILDRENS,ABLEWELL CARS,07/10/2021,992.70,6241-Hire of Vehicle with Driver,TRANSPORT,DIRECT TRANSPORT COSTS,REVENUE
Walsall Council,http://opendatacommunities.org/id/metropolitan-district-council/walsall ,WC131-136,31.10.2021,CHILDRENS,ABS TAXIS (ALDRIDGE),11/10/2021,907.00,6241-Hire of Vehicle with Driver,TRANSPORT,DIRECT TRANSPORT COSTS,REVENUE
Walsall Council,http://opendatacommunities.org/id/metropolitan-district-council/walsall ,WC131-137,31.10.2021,CHILDRENS,ABS TAXIS (ALDRIDGE),11/10/2021,466.20,6241-Hire of Vehicle with Driver,TRANSPORT,DIRECT TRANSPORT COSTS,REVENUE
Walsall Council,http://opendatacommunities.org/id/metropolitan-district-council/walsall ,WC131-138,31.10.2021,CHILDRENS,ABU BAKR NURSERY,25/10/2021,"18,994.50",1184-Other-Grants to Other Orgs,SUPPLIES & SERVICES,GRANTS (EXP) & SUBSCRIPTIONS,REVENUE
Walsall Council,http://opendatacommunities.org/id/metropolitan-district-council/walsall ,WC131-139,31.10.2021,CHILDRENS,ABU BAKR NURSERY,25/10/2021,"4,069.80",1184-Other-Grants to Other Orgs,SUPPLIES & SERVICES,GRANTS (EXP) & SUBSCRIPTIONS,REVENUE
Walsall Council,http://opendatacommunities.org/id/metropolitan-district-council/walsall ,WC131-140,31.10.2021,CHILDRENS,AC EDUCATION,20/10/2021,"1,100.00",6241-Professional Fees & Services,SUPPLIES & SERVICES,SERVICES,REVENUE
Walsall Council,http://opendatacommunities.org/id/metropolitan-district-council/walsall ,WC131-141,31.10.2021,"ECONOMY, ENVIRONMENT & COMMUNITIES",AC OPTICS LTD,22/10/2021,996.82,6313-Grants to Other Orgs,SUPPLIES & SERVICES,GRANTS (EXP) & SUBSCRIPTIONS,REVENUE
Walsall Council,http://opendatacommunities.org/id/metropolitan-district-council/walsall ,WC131-142,31.10.2021,"ECONOMY, ENVIRONMENT & COMMUNITIES",AC OPTICS LTD,22/10/2021,996.82,6313-Grants to Other Orgs,SUPPLIES & SERVICES,GRANTS (EXP) & SUBSCRIPTIONS,REVENUE
Walsall Council,http://opendatacommunities.org/id/metropolitan-district-council/walsall ,WC131-143,31.10.2021,"ECONOMY, ENVIRONMENT & COMMUNITIES",AC OPTICS LTD,22/10/2021,710.66,6313-Grants to Other Orgs,SUPPLIES & SERVICES,GRANTS (EXP) & SUBSCRIPTIONS,REVENUE
Walsall Council,http://opendatacommunities.org/id/metropolitan-district-council/walsall ,WC131-144,31.10.2021,"ECONOMY, ENVIRONMENT & COMMUNITIES",AC OPTICS LTD,05/10/2021,500.00,6313-Grants to Other Orgs,SUPPLIES & SERVICES,GRANTS (EXP) & SUBSCRIPTIONS,REVENUE
Walsall Council,http://opendatacommunities.org/id/metropolitan-district-council/walsall ,WC131-145,31.10.2021,"ECONOMY, ENVIRONMENT & COMMUNITIES",AC OPTICS LTD,22/10/2021,710.64,6313-Grants to Other Orgs,SUPPLIES & SERVICES,GRANTS (EXP) & SUBSCRIPTIONS,REVENUE
Walsall Council,http://opendatacommunities.org/id/metropolitan-district-council/walsall ,WC131-146,31.10.2021,CHILDRENS,ACCALIA CARE SERVICES LTD,04/10/2021,"43,571.43",6223-External Residential Care-Oth Agency Provision,THIRD PARTY PAYMENTS,PRIVATE CONTRACTOR,REVENUE
Walsall Council,http://opendatacommunities.org/id/metropolitan-district-council/walsall ,WC131-147,31.10.2021,CHILDRENS,ACCALIA CARE SERVICES LTD,04/10/2021,"14,985.00",6223-External Residential Care-Oth Agency Provision,THIRD PARTY PAYMENTS,PRIVATE CONTRACTOR,REVENUE
Walsall Council,http://opendatacommunities.org/id/metropolitan-district-council/walsall ,WC131-148,31.10.2021,ADULT SOCIAL CARE,ACCESS UK LTD T/A HCSS EDUCATINO LTD,21/10/2021,"18,315.00",6551-Repair & Maintenance of Furniture & Equipment,SUPPLIES & SERVICES,EQUIPMENT FURNITURE & MATERIALS,REVENUE
Walsall Council,http://opendatacommunities.org/id/metropolitan-district-council/walsall ,WC131-149,31.10.2021,ADULT SOCIAL CARE,ACCOMPLISH GROUP LTD,26/10/2021,"7,881.48",6541-Residential,THIRD PARTY PAYMENTS,PRIVATE CONTRACTOR,REVENUE
Walsall Council,http://opendatacommunities.org/id/metropolitan-district-council/walsall ,WC131-150,31.10.2021,ADULT SOCIAL CARE,ACCORD HOUSING ASSOCIATION LIMITED - HOBS MEADOW,26/10/2021,"4,706.24",6541-Residential,THIRD PARTY PAYMENTS,PRIVATE CONTRACTOR,REVENUE
Walsall Council,http://opendatacommunities.org/id/metropolitan-district-council/walsall ,WC131-151,31.10.2021,ADULT SOCIAL CARE,ACCORD HOUSING ASSOCIATION LIMITED - HOBS MEADOW,26/10/2021,"4,706.24",6541-Residential,THIRD PARTY PAYMENTS,PRIVATE CONTRACTOR,REVENUE
Walsall Council,http://opendatacommunities.org/id/metropolitan-district-council/walsall ,WC131-152,31.10.2021,ADULT SOCIAL CARE,ACCORD HOUSING ASSOCIATION LIMITED - HOBS MEADOW,26/10/2021,"4,706.24",6541-Residential,THIRD PARTY PAYMENTS,PRIVATE CONTRACTOR,REVENUE
Walsall Council,http://opendatacommunities.org/id/metropolitan-district-council/walsall ,WC131-153,31.10.2021,ADULT SOCIAL CARE,ACCORD HOUSING ASSOCIATION LIMITED - HOBS MEADOW,26/10/2021,"4,706.24",6541-Residential,THIRD PARTY PAYMENTS,PRIVATE CONTRACTOR,REVENUE
Walsall Council,http://opendatacommunities.org/id/metropolitan-district-council/walsall ,WC131-154,31.10.2021,CHILDRENS,ACE CARS & MINIBUSES LTD,11/10/2021,"2,041.50",6241-Hire of Vehicle with Driver,TRANSPORT,DIRECT TRANSPORT COSTS,REVENUE
Walsall Council,http://opendatacommunities.org/id/metropolitan-district-council/walsall ,WC131-155,31.10.2021,CHILDRENS,ACE CARS & MINIBUSES LTD,11/10/2021,"2,041.50",6241-Hire of Vehicle with Driver,TRANSPORT,DIRECT TRANSPORT COSTS,REVENUE
Walsall Council,http://opendatacommunities.org/id/metropolitan-district-council/walsall ,WC131-156,31.10.2021,CHILDRENS,ACE CARS & MINIBUSES LTD,11/10/2021,"2,041.50",6241-Hire of Vehicle with Driver,TRANSPORT,DIRECT TRANSPORT COSTS,REVENUE
Walsall Council,http://opendatacommunities.org/id/metropolitan-district-council/walsall ,WC131-157,31.10.2021,CHILDRENS,ACE CARS & MINIBUSES LTD,11/10/2021,"1,770.00",6241-Hire of Vehicle with Driver,TRANSPORT,DIRECT TRANSPORT COSTS,REVENUE
Walsall Council,http://opendatacommunities.org/id/metropolitan-district-council/walsall ,WC131-158,31.10.2021,CHILDRENS,ACE CARS & MINIBUSES LTD,11/10/2021,"1,710.00",6241-Hire of Vehicle with Driver,TRANSPORT,DIRECT TRANSPORT COSTS,REVENUE
Walsall Council,http://opendatacommunities.org/id/metropolitan-district-council/walsall ,WC131-159,31.10.2021,CHILDRENS,ACE CARS & MINIBUSES LTD,11/10/2021,"1,605.00",6241-Hire of Vehicle with Driver,TRANSPORT,DIRECT TRANSPORT COSTS,REVENUE
Walsall Council,http://opendatacommunities.org/id/metropolitan-district-council/walsall ,WC131-160,31.10.2021,CHILDRENS,ACE CARS & MINIBUSES LTD,11/10/2021,"1,770.00",6241-Hire of Vehicle with Driver,TRANSPORT,DIRECT TRANSPORT COSTS,REVENUE
Walsall Council,http://opendatacommunities.org/id/metropolitan-district-council/walsall ,WC131-161,31.10.2021,CHILDRENS,ACE CARS & MINIBUSES LTD,11/10/2021,"1,605.00",6241-Hire of Vehicle with Driver,TRANSPORT,DIRECT TRANSPORT COSTS,REVENUE
Walsall Council,http://opendatacommunities.org/id/metropolitan-district-council/walsall ,WC131-162,31.10.2021,CHILDRENS,ACE CARS & MINIBUSES LTD,11/10/2021,"1,605.00",6241-Hire of Vehicle with Driver,TRANSPORT,DIRECT TRANSPORT COSTS,REVENUE
Walsall Council,http://opendatacommunities.org/id/metropolitan-district-council/walsall ,WC131-163,31.10.2021,CHILDRENS,ACE CARS & MINIBUSES LTD,11/10/2021,"1,605.00",6241-Hire of Vehicle with Driver,TRANSPORT,DIRECT TRANSPORT COSTS,REVENUE
Walsall Council,http://opendatacommunities.org/id/metropolitan-district-council/walsall ,WC131-164,31.10.2021,CHILDRENS,ACE CARS & MINIBUSES LTD,11/10/2021,"1,792.50",6241-Hire of Vehicle with Driver,TRANSPORT,DIRECT TRANSPORT COSTS,REVENUE
Walsall Council,http://opendatacommunities.org/id/metropolitan-district-council/walsall ,WC131-165,31.10.2021,CHILDRENS,ACE CARS & MINIBUSES LTD,11/10/2021,"1,792.50",6241-Hire of Vehicle with Driver,TRANSPORT,DIRECT TRANSPORT COSTS,REVENUE
Walsall Council,http://opendatacommunities.org/id/metropolitan-district-council/walsall ,WC131-166,31.10.2021,CHILDRENS,ACE CARS & MINIBUSES LTD,11/10/2021,"1,792.50",6241-Hire of Vehicle with Driver,TRANSPORT,DIRECT TRANSPORT COSTS,REVENUE
Walsall Council,http://opendatacommunities.org/id/metropolitan-district-council/walsall ,WC131-167,31.10.2021,CHILDRENS,ACE CARS & MINIBUSES LTD,11/10/2021,"2,041.50",6241-Hire of Vehicle with Driver,TRANSPORT,DIRECT TRANSPORT COSTS,REVENUE
Walsall Council,http://opendatacommunities.org/id/metropolitan-district-council/walsall ,WC131-168,31.10.2021,CHILDRENS,ACE CARS & MINIBUSES LTD,11/10/2021,"2,041.50",6241-Hire of Vehicle with Driver,TRANSPORT,DIRECT TRANSPORT COSTS,REVENUE
Walsall Council,http://opendatacommunities.org/id/metropolitan-district-council/walsall ,WC131-169,31.10.2021,CHILDRENS,ACE CARS & MINIBUSES LTD,11/10/2021,"1,605.00",6241-Hire of Vehicle with Driver,TRANSPORT,DIRECT TRANSPORT COSTS,REVENUE
Walsall Council,http://opendatacommunities.org/id/metropolitan-district-council/walsall ,WC131-170,31.10.2021,CHILDRENS,ACE CARS & MINIBUSES LTD,11/10/2021,"1,605.00",6241-Hire of Vehicle with Driver,TRANSPORT,DIRECT TRANSPORT COSTS,REVENUE
Walsall Council,http://opendatacommunities.org/id/metropolitan-district-council/walsall ,WC131-171,31.10.2021,CHILDRENS,ACE CARS & MINIBUSES LTD,11/10/2021,"1,792.50",6241-Hire of Vehicle with Driver,TRANSPORT,DIRECT TRANSPORT COSTS,REVENUE
Walsall Council,http://opendatacommunities.org/id/metropolitan-district-council/walsall ,WC131-172,31.10.2021,CHILDRENS,ACE CARS & MINIBUSES LTD,11/10/2021,"2,041.50",6241-Hire of Vehicle with Driver,TRANSPORT,DIRECT TRANSPORT COSTS,REVENUE
Walsall Council,http://opendatacommunities.org/id/metropolitan-district-council/walsall ,WC131-173,31.10.2021,CHILDRENS,ACE CARS & MINIBUSES LTD,11/10/2021,"1,770.00",6241-Hire of Vehicle with Driver,TRANSPORT,DIRECT TRANSPORT COSTS,REVENUE
Walsall Council,http://opendatacommunities.org/id/metropolitan-district-council/walsall ,WC131-174,31.10.2021,CHILDRENS,ACE CARS & MINIBUSES LTD,11/10/2021,"1,770.00",6241-Hire of Vehicle with Driver,TRANSPORT,DIRECT TRANSPORT COSTS,REVENUE
Walsall Council,http://opendatacommunities.org/id/metropolitan-district-council/walsall ,WC131-175,31.10.2021,CHILDRENS,ACE CARS & MINIBUSES LTD,11/10/2021,"1,770.00",6241-Hire of Vehicle with Driver,TRANSPORT,DIRECT TRANSPORT COSTS,REVENUE
Walsall Council,http://opendatacommunities.org/id/metropolitan-district-council/walsall ,WC131-176,31.10.2021,CHILDRENS,ACE CARS & MINIBUSES LTD,11/10/2021,"1,710.00",6241-Hire of Vehicle with Driver,TRANSPORT,DIRECT TRANSPORT COSTS,REVENUE
Walsall Council,http://opendatacommunities.org/id/metropolitan-district-council/walsall ,WC131-177,31.10.2021,CHILDRENS,ACE CARS & MINIBUSES LTD,11/10/2021,"1,605.00",6241-Hire of Vehicle with Driver,TRANSPORT,DIRECT TRANSPORT COSTS,REVENUE
Walsall Council,http://opendatacommunities.org/id/metropolitan-district-council/walsall ,WC131-178,31.10.2021,CHILDRENS,ACE CARS & MINIBUSES LTD,11/10/2021,"1,605.00",6241-Hire of Vehicle with Driver,TRANSPORT,DIRECT TRANSPORT COSTS,REVENUE
Walsall Council,http://opendatacommunities.org/id/metropolitan-district-council/walsall ,WC131-179,31.10.2021,CHILDRENS,ACE CARS & MINIBUSES LTD,11/10/2021,"1,710.00",6241-Hire of Vehicle with Driver,TRANSPORT,DIRECT TRANSPORT COSTS,REVENUE
Walsall Council,http://opendatacommunities.org/id/metropolitan-district-council/walsall ,WC131-180,31.10.2021,CHILDRENS,ACE CARS & MINIBUSES LTD,11/10/2021,"1,792.50",6241-Hire of Vehicle with Driver,TRANSPORT,DIRECT TRANSPORT COSTS,REVENUE
Walsall Council,http://opendatacommunities.org/id/metropolitan-district-council/walsall ,WC131-181,31.10.2021,CHILDRENS,ACE CARS & MINIBUSES LTD,11/10/2021,"1,710.00",6241-Hire of Vehicle with Driver,TRANSPORT,DIRECT TRANSPORT COSTS,REVENUE
Walsall Council,http://opendatacommunities.org/id/metropolitan-district-council/walsall ,WC131-182,31.10.2021,CHILDRENS,ACE CARS & MINIBUSES LTD,11/10/2021,"1,605.00",6241-Hire of Vehicle with Driver,TRANSPORT,DIRECT TRANSPORT COSTS,REVENUE
Walsall Council,http://opendatacommunities.org/id/metropolitan-district-council/walsall ,WC131-183,31.10.2021,CHILDRENS,ACE CARS & MINIBUSES LTD,11/10/2021,"1,770.00",6241-Hire of Vehicle with Driver,TRANSPORT,DIRECT TRANSPORT COSTS,REVENUE
Walsall Council,http://opendatacommunities.org/id/metropolitan-district-council/walsall ,WC131-184,31.10.2021,CHILDRENS,ACE CARS & MINIBUSES LTD,11/10/2021,"1,605.00",6241-Hire of Vehicle with Driver,TRANSPORT,DIRECT TRANSPORT COSTS,REVENUE
Walsall Council,http://opendatacommunities.org/id/metropolitan-district-council/walsall ,WC131-185,31.10.2021,CHILDRENS,ACE CARS & MINIBUSES LTD,11/10/2021,"2,041.50",6241-Hire of Vehicle with Driver,TRANSPORT,DIRECT TRANSPORT COSTS,REVENUE
Walsall Council,http://opendatacommunities.org/id/metropolitan-district-council/walsall ,WC131-186,31.10.2021,CHILDRENS,ACE CARS & MINIBUSES LTD,07/10/2021,"1,792.50",6241-Hire of Vehicle with Driver,TRANSPORT,DIRECT TRANSPORT COSTS,REVENUE
Walsall Council,http://opendatacommunities.org/id/metropolitan-district-council/walsall ,WC131-187,31.10.2021,CHILDRENS,ACE CARS & MINIBUSES LTD,07/10/2021,"1,710.00",6241-Hire of Vehicle with Driver,TRANSPORT,DIRECT TRANSPORT COSTS,REVENUE
Walsall Council,http://opendatacommunities.org/id/metropolitan-district-council/walsall ,WC131-188,31.10.2021,ADULT SOCIAL CARE,ACEPAY LTD (COTTAGE NUR HOME),26/10/2021,"2,419.96",6541-Nursing,THIRD PARTY PAYMENTS,PRIVATE CONTRACTOR,REVENUE
Walsall Council,http://opendatacommunities.org/id/metropolitan-district-council/walsall ,WC131-189,31.10.2021,ADULT SOCIAL CARE,ACEPAY LTD (COTTAGE NUR HOME),26/10/2021,"2,419.96",6541-Nursing,THIRD PARTY PAYMENTS,PRIVATE CONTRACTOR,REVENUE
Walsall Council,http://opendatacommunities.org/id/metropolitan-district-council/walsall ,WC131-190,31.10.2021,ADULT SOCIAL CARE,ACEPAY LTD (COTTAGE NUR HOME),26/10/2021,"2,419.96",6541-Nursing,THIRD PARTY PAYMENTS,PRIVATE CONTRACTOR,REVENUE
Walsall Council,http://opendatacommunities.org/id/metropolitan-district-council/walsall ,WC131-191,31.10.2021,ADULT SOCIAL CARE,ACEPAY LTD (COTTAGE NUR HOME),26/10/2021,"2,419.96",6541-Nursing,THIRD PARTY PAYMENTS,PRIVATE CONTRACTOR,REVENUE
Walsall Council,http://opendatacommunities.org/id/metropolitan-district-council/walsall ,WC131-192,31.10.2021,ADULT SOCIAL CARE,ACEPAY LTD (COTTAGE NUR HOME),26/10/2021,"2,419.96",6541-Nursing,THIRD PARTY PAYMENTS,PRIVATE CONTRACTOR,REVENUE
Walsall Council,http://opendatacommunities.org/id/metropolitan-district-council/walsall ,WC131-193,31.10.2021,ADULT SOCIAL CARE,ACEPAY LTD (COTTAGE NUR HOME),26/10/2021,"2,419.96",6541-Nursing,THIRD PARTY PAYMENTS,PRIVATE CONTRACTOR,REVENUE
Walsall Council,http://opendatacommunities.org/id/metropolitan-district-council/walsall ,WC131-194,31.10.2021,ADULT SOCIAL CARE,ACEPAY LTD (COTTAGE NUR HOME),26/10/2021,"2,419.96",6541-Nursing,THIRD PARTY PAYMENTS,PRIVATE CONTRACTOR,REVENUE
Walsall Council,http://opendatacommunities.org/id/metropolitan-district-council/walsall ,WC131-195,31.10.2021,ADULT SOCIAL CARE,ACEPAY LTD (COTTAGE NUR HOME),26/10/2021,"2,419.96",6541-Nursing,THIRD PARTY PAYMENTS,PRIVATE CONTRACTOR,REVENUE
Walsall Council,http://opendatacommunities.org/id/metropolitan-district-council/walsall ,WC131-196,31.10.2021,ADULT SOCIAL CARE,ACEPAY LTD (COTTAGE NUR HOME),26/10/2021,"2,619.96",6541-Nursing,THIRD PARTY PAYMENTS,PRIVATE CONTRACTOR,REVENUE
Walsall Council,http://opendatacommunities.org/id/metropolitan-district-council/walsall ,WC131-197,31.10.2021,ADULT SOCIAL CARE,ACEPAY LTD (COTTAGE NUR HOME),26/10/2021,"2,419.96",6541-Nursing,THIRD PARTY PAYMENTS,PRIVATE CONTRACTOR,REVENUE
Walsall Council,http://opendatacommunities.org/id/metropolitan-district-council/walsall ,WC131-198,31.10.2021,ADULT SOCIAL CARE,ACEPAY LTD (COTTAGE NUR HOME),26/10/2021,"2,419.96",6541-Nursing,THIRD PARTY PAYMENTS,PRIVATE CONTRACTOR,REVENUE
Walsall Council,http://opendatacommunities.org/id/metropolitan-district-council/walsall ,WC131-199,31.10.2021,ADULT SOCIAL CARE,ACEPAY LTD (COTTAGE NUR HOME),26/10/2021,"2,722.96",6541-Nursing EMI,THIRD PARTY PAYMENTS,PRIVATE CONTRACTOR,REVENUE
Walsall Council,http://opendatacommunities.org/id/metropolitan-district-council/walsall ,WC131-200,31.10.2021,ADULT SOCIAL CARE,ACEPAY LTD (COTTAGE NUR HOME),26/10/2021,"2,331.08",6541-Residential EMI,THIRD PARTY PAYMENTS,PRIVATE CONTRACTOR,REVENUE
Walsall Council,http://opendatacommunities.org/id/metropolitan-district-council/walsall ,WC131-201,31.10.2021,ADULT SOCIAL CARE,ACEPAY LTD (COTTAGE NUR HOME),26/10/2021,"1,165.54",6541-Residential EMI,THIRD PARTY PAYMENTS,PRIVATE CONTRACTOR,REVENUE
Walsall Council,http://opendatacommunities.org/id/metropolitan-district-council/walsall ,WC131-202,31.10.2021,CHILDRENS,ACIRE CARE LTD,06/10/2021,"8,053.71",6223-Accommodation and Related Costs-Assistance to S/S Clients,TRANSFER PAYMENTS,ADULT SOCIAL SERVICES CLIENT,REVENUE
Walsall Council,http://opendatacommunities.org/id/metropolitan-district-council/walsall ,WC131-203,31.10.2021,CHILDRENS,ACORN CARE & EDUCATION LTD (SALES),12/10/2021,"66,162.18",6223-Accommodation and Related Costs-Assistance to S/S Clients,TRANSFER PAYMENTS,ADULT SOCIAL SERVICES CLIENT,REVENUE
Walsall Council,http://opendatacommunities.org/id/metropolitan-district-council/walsall ,WC131-204,31.10.2021,CHILDRENS,ACORN CARE & EDUCATION LTD (SALES),04/10/2021,"14,100.00",6223-External Residential Care-Oth Agency Provision,THIRD PARTY PAYMENTS,PRIVATE CONTRACTOR,REVENUE
Walsall Council,http://opendatacommunities.org/id/metropolitan-district-council/walsall ,WC131-205,31.10.2021,CHILDRENS,ACORN CARE & EDUCATION LTD (SALES),04/10/2021,"10,500.00",6223-External Residential Care-Oth Agency Provision,THIRD PARTY PAYMENTS,PRIVATE CONTRACTOR,REVENUE
Walsall Council,http://opendatacommunities.org/id/metropolitan-district-council/walsall ,WC131-206,31.10.2021,CHILDRENS,ACORN CARE & EDUCATION LTD (SALES),06/10/2021,"19,400.73",1220-Top Up Funding -Grants to Schools,SUPPLIES & SERVICES,GRANTS (EXP) & SUBSCRIPTIONS,REVENUE
Walsall Council,http://opendatacommunities.org/id/metropolitan-district-council/walsall ,WC131-207,31.10.2021,CHILDRENS,ACORNS CHILDRENS HOSPICE TRUST,12/10/2021,"2,550.00",6220-Professional Fees & Services,SUPPLIES & SERVICES,SERVICES,REVENUE
Walsall Council,http://opendatacommunities.org/id/metropolitan-district-council/walsall ,WC131-208,31.10.2021,CHILDRENS,ACORNS CHILDRENS HOSPICE TRUST,12/10/2021,"1,700.00",6220-Professional Fees & Services,SUPPLIES & SERVICES,SERVICES,REVENUE
Walsall Council,http://opendatacommunities.org/id/metropolitan-district-council/walsall ,WC131-209,31.10.2021,ADULT SOCIAL CARE,REDACTED,06/10/2021,790.88,6541-Direct Payment,THIRD PARTY PAYMENTS,PRIVATE CONTRACTOR,REVENUE
Walsall Council,http://opendatacommunities.org/id/metropolitan-district-council/walsall ,WC131-210,31.10.2021,"ECONOMY, ENVIRONMENT & COMMUNITIES",ADI UK LTD,20/10/2021,"4,600.00","6313-Leasing, Hire & Rental of Equipment",SUPPLIES & SERVICES,EQUIPMENT FURNITURE & MATERIALS,REVENUE
Walsall Council,http://opendatacommunities.org/id/metropolitan-district-council/walsall ,WC131-211,31.10.2021,CHILDRENS,REDACTED,21/10/2021,363.24,6223-Residents Orders,TRANSFER PAYMENTS,CHILDREN SOCIAL SERVICES CLIENT,REVENUE
Walsall Council,http://opendatacommunities.org/id/metropolitan-district-council/walsall ,WC131-212,31.10.2021,ADULT SOCIAL CARE,REDACTED,06/10/2021,"2,083.20",6541-Direct Payment,THIRD PARTY PAYMENTS,PRIVATE CONTRACTOR,REVENUE
Walsall Council,http://opendatacommunities.org/id/metropolitan-district-council/walsall ,WC131-213,31.10.2021,ADULT SOCIAL CARE,ADVANCE HEALTH CARE (UK) LTD,20/10/2021,"1,027.62",6541-Domiciliary Care,THIRD PARTY PAYMENTS,PRIVATE CONTRACTOR,REVENUE
Walsall Council,http://opendatacommunities.org/id/metropolitan-district-council/walsall ,WC131-214,31.10.2021,ADULT SOCIAL CARE,ADVANCE HEALTH CARE (UK) LTD,20/10/2021,"1,126.04",6541-Domiciliary Care,THIRD PARTY PAYMENTS,PRIVATE CONTRACTOR,REVENUE
Walsall Council,http://opendatacommunities.org/id/metropolitan-district-council/walsall ,WC131-215,31.10.2021,ADULT SOCIAL CARE,ADVANCE HEALTH CARE (UK) LTD,20/10/2021,"1,744.12",6541-Domiciliary Care,THIRD PARTY PAYMENTS,PRIVATE CONTRACTOR,REVENUE
Walsall Council,http://opendatacommunities.org/id/metropolitan-district-council/walsall ,WC131-216,31.10.2021,ADULT SOCIAL CARE,ADVANCE HEALTH CARE (UK) LTD,20/10/2021,"1,406.96",6541-Domiciliary Care,THIRD PARTY PAYMENTS,PRIVATE CONTRACTOR,REVENUE
Walsall Council,http://opendatacommunities.org/id/metropolitan-district-council/walsall ,WC131-217,31.10.2021,ADULT SOCIAL CARE,ADVANCE HEALTH CARE (UK) LTD,20/10/2021,"2,549.13",6541-Domiciliary Care,THIRD PARTY PAYMENTS,PRIVATE CONTRACTOR,REVENUE
Walsall Council,http://opendatacommunities.org/id/metropolitan-district-council/walsall ,WC131-218,31.10.2021,ADULT SOCIAL CARE,ADVANCE HEALTH CARE (UK) LTD,20/10/2021,965.84,6541-Domiciliary Care,THIRD PARTY PAYMENTS,PRIVATE CONTRACTOR,REVENUE
Walsall Council,http://opendatacommunities.org/id/metropolitan-district-council/walsall ,WC131-219,31.10.2021,ADULT SOCIAL CARE,ADVANCE HEALTH CARE (UK) LTD,20/10/2021,"1,027.62",6541-Domiciliary Care,THIRD PARTY PAYMENTS,PRIVATE CONTRACTOR,REVENUE
Walsall Council,http://opendatacommunities.org/id/metropolitan-district-council/walsall ,WC131-220,31.10.2021,ADULT SOCIAL CARE,ADVANCE HEALTH CARE (UK) LTD,20/10/2021,726.88,6541-Domiciliary Care,THIRD PARTY PAYMENTS,PRIVATE CONTRACTOR,REVENUE
Walsall Council,http://opendatacommunities.org/id/metropolitan-district-council/walsall ,WC131-221,31.10.2021,ADULT SOCIAL CARE,ADVANCE HEALTH CARE (UK) LTD,20/10/2021,"2,761.92",6541-Domiciliary Care,THIRD PARTY PAYMENTS,PRIVATE CONTRACTOR,REVENUE
Walsall Council,http://opendatacommunities.org/id/metropolitan-district-council/walsall ,WC131-222,31.10.2021,ADULT SOCIAL CARE,ADVANCE HEALTH CARE (UK) LTD,20/10/2021,"1,126.04",6541-Domiciliary Care,THIRD PARTY PAYMENTS,PRIVATE CONTRACTOR,REVENUE
Walsall Council,http://opendatacommunities.org/id/metropolitan-district-council/walsall ,WC131-223,31.10.2021,ADULT SOCIAL CARE,ADVANCE HEALTH CARE (UK) LTD,20/10/2021,716.64,6541-Domiciliary Care,THIRD PARTY PAYMENTS,PRIVATE CONTRACTOR,REVENUE
Walsall Council,http://opendatacommunities.org/id/metropolitan-district-council/walsall ,WC131-224,31.10.2021,ADULT SOCIAL CARE,ADVANCE HEALTH CARE (UK) LTD,20/10/2021,"1,744.12",6541-Domiciliary Care,THIRD PARTY PAYMENTS,PRIVATE CONTRACTOR,REVENUE
Walsall Council,http://opendatacommunities.org/id/metropolitan-district-council/walsall ,WC131-225,31.10.2021,ADULT SOCIAL CARE,ADVANCE HEALTH CARE (UK) LTD,20/10/2021,825.28,6541-Domiciliary Care,THIRD PARTY PAYMENTS,PRIVATE CONTRACTOR,REVENUE
Walsall Council,http://opendatacommunities.org/id/metropolitan-district-council/walsall ,WC131-226,31.10.2021,ADULT SOCIAL CARE,ADVANCE HEALTH CARE (UK) LTD,20/10/2021,472.36,6541-Domiciliary Care,THIRD PARTY PAYMENTS,PRIVATE CONTRACTOR,REVENUE
Walsall Council,http://opendatacommunities.org/id/metropolitan-district-council/walsall ,WC131-227,31.10.2021,ADULT SOCIAL CARE,ADVANCE HEALTH CARE (UK) LTD,20/10/2021,825.28,6541-Domiciliary Care,THIRD PARTY PAYMENTS,PRIVATE CONTRACTOR,REVENUE
Walsall Council,http://opendatacommunities.org/id/metropolitan-district-council/walsall ,WC131-228,31.10.2021,ADULT SOCIAL CARE,ADVANCE HEALTH CARE (UK) LTD,05/10/2021,"-38,414.64",6554-Carers One off Payment,TRANSFER PAYMENTS,ADULT SOCIAL SERVICES CLIENT,REVENUE
Walsall Council,http://opendatacommunities.org/id/metropolitan-district-council/walsall ,WC131-229,31.10.2021,ADULT SOCIAL CARE,ADVANCE HEALTH CARE (UK) LTD,05/10/2021,"8,414.64",6554-Carers One off Payment,TRANSFER PAYMENTS,ADULT SOCIAL SERVICES CLIENT,REVENUE
Walsall Council,http://opendatacommunities.org/id/metropolitan-district-council/walsall ,WC131-230,31.10.2021,ADULT SOCIAL CARE,ADVANCE HEALTH CARE (UK) LTD,05/10/2021,"38,414.64",6554-Carers One off Payment,TRANSFER PAYMENTS,ADULT SOCIAL SERVICES CLIENT,REVENUE
Walsall Council,http://opendatacommunities.org/id/metropolitan-district-council/walsall ,WC131-231,31.10.2021,ADULT SOCIAL CARE,ADVANCE HEALTH CARE (UK) LTD,11/10/2021,435.96,6541-Domiciliary Care,THIRD PARTY PAYMENTS,PRIVATE CONTRACTOR,REVENUE
Walsall Council,http://opendatacommunities.org/id/metropolitan-district-council/walsall ,WC131-232,31.10.2021,ADULT SOCIAL CARE,ADVANCE HEALTH CARE (UK) LTD,11/10/2021,490.49,6541-Domiciliary Care,THIRD PARTY PAYMENTS,PRIVATE CONTRACTOR,REVENUE
Walsall Council,http://opendatacommunities.org/id/metropolitan-district-council/walsall ,WC131-233,31.10.2021,ADULT SOCIAL CARE,ADVANCE HEALTH CARE (UK) LTD,11/10/2021,454.16,6541-Domiciliary Care,THIRD PARTY PAYMENTS,PRIVATE CONTRACTOR,REVENUE
Walsall Council,http://opendatacommunities.org/id/metropolitan-district-council/walsall ,WC131-234,31.10.2021,ADULT SOCIAL CARE,ADVANCE HEALTH CARE (UK) LTD,11/10/2021,980.91,6541-Domiciliary Care,THIRD PARTY PAYMENTS,PRIVATE CONTRACTOR,REVENUE
Walsall Council,http://opendatacommunities.org/id/metropolitan-district-council/walsall ,WC131-235,31.10.2021,ADULT SOCIAL CARE,ADVANCE HEALTH CARE (UK) LTD,11/10/2021,327.18,6541-Domiciliary Care,THIRD PARTY PAYMENTS,PRIVATE CONTRACTOR,REVENUE
Walsall Council,http://opendatacommunities.org/id/metropolitan-district-council/walsall ,WC131-236,31.10.2021,ADULT SOCIAL CARE,ADVANCE HEALTH CARE (UK) LTD,11/10/2021,435.96,6541-Domiciliary Care,THIRD PARTY PAYMENTS,PRIVATE CONTRACTOR,REVENUE
Walsall Council,http://opendatacommunities.org/id/metropolitan-district-council/walsall ,WC131-237,31.10.2021,ADULT SOCIAL CARE,ADVANCE HEALTH CARE (UK) LTD,11/10/2021,326.97,6541-Domiciliary Care,THIRD PARTY PAYMENTS,PRIVATE CONTRACTOR,REVENUE
Walsall Council,http://opendatacommunities.org/id/metropolitan-district-council/walsall ,WC131-238,31.10.2021,ADULT SOCIAL CARE,ADVANCE HEALTH CARE (UK) LTD,11/10/2021,490.49,6541-Domiciliary Care,THIRD PARTY PAYMENTS,PRIVATE CONTRACTOR,REVENUE
Walsall Council,http://opendatacommunities.org/id/metropolitan-district-council/walsall ,WC131-239,31.10.2021,ADULT SOCIAL CARE,ADVANCE HEALTH CARE (UK) LTD,11/10/2021,454.16,6541-Domiciliary Care,THIRD PARTY PAYMENTS,PRIVATE CONTRACTOR,REVENUE
Walsall Council,http://opendatacommunities.org/id/metropolitan-district-council/walsall ,WC131-240,31.10.2021,ADULT SOCIAL CARE,ADVANCE HEALTH CARE (UK) LTD,11/10/2021,653.94,6541-Domiciliary Care,THIRD PARTY PAYMENTS,PRIVATE CONTRACTOR,REVENUE
Walsall Council,http://opendatacommunities.org/id/metropolitan-district-council/walsall ,WC131-241,31.10.2021,ADULT SOCIAL CARE,ADVANCE HEALTH CARE (UK) LTD,11/10/2021,537.20,6541-Domiciliary Care,THIRD PARTY PAYMENTS,PRIVATE CONTRACTOR,REVENUE
Walsall Council,http://opendatacommunities.org/id/metropolitan-district-council/walsall ,WC131-242,31.10.2021,ADULT SOCIAL CARE,ADVANCE HEALTH CARE (UK) LTD,11/10/2021,490.49,6541-Domiciliary Care,THIRD PARTY PAYMENTS,PRIVATE CONTRACTOR,REVENUE
Walsall Council,http://opendatacommunities.org/id/metropolitan-district-council/walsall ,WC131-243,31.10.2021,ADULT SOCIAL CARE,ADVANCE HEALTH CARE (UK) LTD,11/10/2021,525.75,6541-Domiciliary Care,THIRD PARTY PAYMENTS,PRIVATE CONTRACTOR,REVENUE
Walsall Council,http://opendatacommunities.org/id/metropolitan-district-council/walsall ,WC131-244,31.10.2021,ADULT SOCIAL CARE,ADVANCE HEALTH CARE (UK) LTD,11/10/2021,352.92,6541-Domiciliary Care,THIRD PARTY PAYMENTS,PRIVATE CONTRACTOR,REVENUE
Walsall Council,http://opendatacommunities.org/id/metropolitan-district-council/walsall ,WC131-245,31.10.2021,ADULT SOCIAL CARE,ADVANCE HEALTH CARE (UK) LTD,11/10/2021,708.47,6541-Domiciliary Care,THIRD PARTY PAYMENTS,PRIVATE CONTRACTOR,REVENUE
Walsall Council,http://opendatacommunities.org/id/metropolitan-district-council/walsall ,WC131-246,31.10.2021,ADULT SOCIAL CARE,ADVANCE HEALTH CARE (UK) LTD,11/10/2021,490.49,6541-Domiciliary Care,THIRD PARTY PAYMENTS,PRIVATE CONTRACTOR,REVENUE
Walsall Council,http://opendatacommunities.org/id/metropolitan-district-council/walsall ,WC131-247,31.10.2021,ADULT SOCIAL CARE,ADVANCE HEALTH CARE (UK) LTD,11/10/2021,"1,471.47",6541-Domiciliary Care,THIRD PARTY PAYMENTS,PRIVATE CONTRACTOR,REVENUE
Walsall Council,http://opendatacommunities.org/id/metropolitan-district-council/walsall ,WC131-248,31.10.2021,ADULT SOCIAL CARE,ADVANCE HEALTH CARE (UK) LTD,11/10/2021,"1,634.85",6541-Domiciliary Care,THIRD PARTY PAYMENTS,PRIVATE CONTRACTOR,REVENUE
Walsall Council,http://opendatacommunities.org/id/metropolitan-district-council/walsall ,WC131-249,31.10.2021,ADULT SOCIAL CARE,ADVANCE HEALTH CARE (UK) LTD,11/10/2021,435.96,6541-Domiciliary Care,THIRD PARTY PAYMENTS,PRIVATE CONTRACTOR,REVENUE
Walsall Council,http://opendatacommunities.org/id/metropolitan-district-council/walsall ,WC131-250,31.10.2021,ADULT SOCIAL CARE,ADVANCE HEALTH CARE (UK) LTD,11/10/2021,544.95,6541-Domiciliary Care,THIRD PARTY PAYMENTS,PRIVATE CONTRACTOR,REVENUE
Walsall Council,http://opendatacommunities.org/id/metropolitan-district-council/walsall ,WC131-251,31.10.2021,ADULT SOCIAL CARE,ADVANCE HEALTH CARE (UK) LTD,11/10/2021,435.96,6541-Domiciliary Care,THIRD PARTY PAYMENTS,PRIVATE CONTRACTOR,REVENUE
Walsall Council,http://opendatacommunities.org/id/metropolitan-district-council/walsall ,WC131-252,31.10.2021,ADULT SOCIAL CARE,ADVANCE HEALTH CARE (UK) LTD,11/10/2021,490.49,6541-Domiciliary Care,THIRD PARTY PAYMENTS,PRIVATE CONTRACTOR,REVENUE
Walsall Council,http://opendatacommunities.org/id/metropolitan-district-council/walsall ,WC131-253,31.10.2021,ADULT SOCIAL CARE,ADVANCE HEALTH CARE (UK) LTD,11/10/2021,871.92,6541-Domiciliary Care,THIRD PARTY PAYMENTS,PRIVATE CONTRACTOR,REVENUE
Walsall Council,http://opendatacommunities.org/id/metropolitan-district-council/walsall ,WC131-254,31.10.2021,ADULT SOCIAL CARE,ADVANCE HEALTH CARE (UK) LTD,11/10/2021,326.97,6541-Domiciliary Care,THIRD PARTY PAYMENTS,PRIVATE CONTRACTOR,REVENUE
Walsall Council,http://opendatacommunities.org/id/metropolitan-district-council/walsall ,WC131-255,31.10.2021,ADULT SOCIAL CARE,ADVANCE HEALTH CARE (UK) LTD,11/10/2021,381.50,6541-Domiciliary Care,THIRD PARTY PAYMENTS,PRIVATE CONTRACTOR,REVENUE
Walsall Council,http://opendatacommunities.org/id/metropolitan-district-council/walsall ,WC131-256,31.10.2021,ADULT SOCIAL CARE,ADVANCE HEALTH CARE (UK) LTD,11/10/2021,490.49,6541-Domiciliary Care,THIRD PARTY PAYMENTS,PRIVATE CONTRACTOR,REVENUE
Walsall Council,http://opendatacommunities.org/id/metropolitan-district-council/walsall ,WC131-257,31.10.2021,ADULT SOCIAL CARE,ADVANCE HEALTH CARE (UK) LTD,11/10/2021,490.49,6541-Domiciliary Care,THIRD PARTY PAYMENTS,PRIVATE CONTRACTOR,REVENUE
Walsall Council,http://opendatacommunities.org/id/metropolitan-district-council/walsall ,WC131-258,31.10.2021,ADULT SOCIAL CARE,ADVANCE HEALTH CARE (UK) LTD,11/10/2021,490.49,6541-Domiciliary Care,THIRD PARTY PAYMENTS,PRIVATE CONTRACTOR,REVENUE
Walsall Council,http://opendatacommunities.org/id/metropolitan-district-council/walsall ,WC131-259,31.10.2021,ADULT SOCIAL CARE,ADVANCE HEALTH CARE (UK) LTD,11/10/2021,490.49,6541-Domiciliary Care,THIRD PARTY PAYMENTS,PRIVATE CONTRACTOR,REVENUE
Walsall Council,http://opendatacommunities.org/id/metropolitan-district-council/walsall ,WC131-260,31.10.2021,ADULT SOCIAL CARE,ADVANCE HEALTH CARE (UK) LTD,11/10/2021,490.49,6541-Domiciliary Care,THIRD PARTY PAYMENTS,PRIVATE CONTRACTOR,REVENUE
Walsall Council,http://opendatacommunities.org/id/metropolitan-district-council/walsall ,WC131-261,31.10.2021,ADULT SOCIAL CARE,ADVANCE HEALTH CARE (UK) LTD,11/10/2021,455.62,6541-Domiciliary Care,THIRD PARTY PAYMENTS,PRIVATE CONTRACTOR,REVENUE
Walsall Council,http://opendatacommunities.org/id/metropolitan-district-council/walsall ,WC131-262,31.10.2021,ADULT SOCIAL CARE,ADVANCE HEALTH CARE (UK) LTD,11/10/2021,256.93,6541-Domiciliary Care,THIRD PARTY PAYMENTS,PRIVATE CONTRACTOR,REVENUE
Walsall Council,http://opendatacommunities.org/id/metropolitan-district-council/walsall ,WC131-263,31.10.2021,ADULT SOCIAL CARE,ADVANCE HEALTH CARE (UK) LTD,11/10/2021,490.49,6541-Domiciliary Care,THIRD PARTY PAYMENTS,PRIVATE CONTRACTOR,REVENUE
Walsall Council,http://opendatacommunities.org/id/metropolitan-district-council/walsall ,WC131-264,31.10.2021,ADULT SOCIAL CARE,ADVANCE HEALTH CARE (UK) LTD,11/10/2021,490.49,6541-Domiciliary Care,THIRD PARTY PAYMENTS,PRIVATE CONTRACTOR,REVENUE
Walsall Council,http://opendatacommunities.org/id/metropolitan-district-council/walsall ,WC131-265,31.10.2021,ADULT SOCIAL CARE,ADVANCE HEALTH CARE (UK) LTD,11/10/2021,435.96,6541-Domiciliary Care,THIRD PARTY PAYMENTS,PRIVATE CONTRACTOR,REVENUE
Walsall Council,http://opendatacommunities.org/id/metropolitan-district-council/walsall ,WC131-266,31.10.2021,ADULT SOCIAL CARE,ADVANCE HEALTH CARE (UK) LTD,11/10/2021,435.96,6541-Domiciliary Care,THIRD PARTY PAYMENTS,PRIVATE CONTRACTOR,REVENUE
Walsall Council,http://opendatacommunities.org/id/metropolitan-district-council/walsall ,WC131-267,31.10.2021,ADULT SOCIAL CARE,ADVANCE HEALTH CARE (UK) LTD,11/10/2021,635.81,6541-Domiciliary Care,THIRD PARTY PAYMENTS,PRIVATE CONTRACTOR,REVENUE
Walsall Council,http://opendatacommunities.org/id/metropolitan-district-council/walsall ,WC131-268,31.10.2021,ADULT SOCIAL CARE,ADVANCE HEALTH CARE (UK) LTD,11/10/2021,"1,144.50",6541-Domiciliary Care,THIRD PARTY PAYMENTS,PRIVATE CONTRACTOR,REVENUE
Walsall Council,http://opendatacommunities.org/id/metropolitan-district-council/walsall ,WC131-269,31.10.2021,ADULT SOCIAL CARE,ADVANCE HEALTH CARE (UK) LTD,11/10/2021,393.17,6541-Domiciliary Care,THIRD PARTY PAYMENTS,PRIVATE CONTRACTOR,REVENUE
Walsall Council,http://opendatacommunities.org/id/metropolitan-district-council/walsall ,WC131-270,31.10.2021,ADULT SOCIAL CARE,ADVANCE HEALTH CARE (UK) LTD,11/10/2021,490.77,6541-Domiciliary Care,THIRD PARTY PAYMENTS,PRIVATE CONTRACTOR,REVENUE
Walsall Council,http://opendatacommunities.org/id/metropolitan-district-council/walsall ,WC131-271,31.10.2021,ADULT SOCIAL CARE,ADVANCE HEALTH CARE (UK) LTD,11/10/2021,380.09,6541-Domiciliary Care,THIRD PARTY PAYMENTS,PRIVATE CONTRACTOR,REVENUE
Walsall Council,http://opendatacommunities.org/id/metropolitan-district-council/walsall ,WC131-272,31.10.2021,ADULT SOCIAL CARE,ADVANCE HEALTH CARE (UK) LTD,11/10/2021,736.05,6541-Domiciliary Care,THIRD PARTY PAYMENTS,PRIVATE CONTRACTOR,REVENUE
Walsall Council,http://opendatacommunities.org/id/metropolitan-district-council/walsall ,WC131-273,31.10.2021,ADULT SOCIAL CARE,ADVANCE HEALTH CARE (UK) LTD,11/10/2021,646.38,6541-Domiciliary Care,THIRD PARTY PAYMENTS,PRIVATE CONTRACTOR,REVENUE
Walsall Council,http://opendatacommunities.org/id/metropolitan-district-council/walsall ,WC131-274,31.10.2021,ADULT SOCIAL CARE,ADVANCE HEALTH CARE (UK) LTD,11/10/2021,490.49,6541-Domiciliary Care,THIRD PARTY PAYMENTS,PRIVATE CONTRACTOR,REVENUE
Walsall Council,http://opendatacommunities.org/id/metropolitan-district-council/walsall ,WC131-275,31.10.2021,ADULT SOCIAL CARE,ADVANCE HEALTH CARE (UK) LTD,11/10/2021,506.06,6541-Domiciliary Care,THIRD PARTY PAYMENTS,PRIVATE CONTRACTOR,REVENUE
Walsall Council,http://opendatacommunities.org/id/metropolitan-district-council/walsall ,WC131-276,31.10.2021,ADULT SOCIAL CARE,ADVANCE HEALTH CARE (UK) LTD,11/10/2021,435.96,6541-Domiciliary Care,THIRD PARTY PAYMENTS,PRIVATE CONTRACTOR,REVENUE
Walsall Council,http://opendatacommunities.org/id/metropolitan-district-council/walsall ,WC131-277,31.10.2021,ADULT SOCIAL CARE,ADVANCE HEALTH CARE (UK) LTD,11/10/2021,363.30,6541-Domiciliary Care,THIRD PARTY PAYMENTS,PRIVATE CONTRACTOR,REVENUE
Walsall Council,http://opendatacommunities.org/id/metropolitan-district-council/walsall ,WC131-278,31.10.2021,ADULT SOCIAL CARE,ADVANCE HEALTH CARE (UK) LTD,11/10/2021,833.03,6541-Domiciliary Care,THIRD PARTY PAYMENTS,PRIVATE CONTRACTOR,REVENUE
Walsall Council,http://opendatacommunities.org/id/metropolitan-district-council/walsall ,WC131-279,31.10.2021,ADULT SOCIAL CARE,ADVANCE HEALTH CARE (UK) LTD,11/10/2021,490.49,6541-Domiciliary Care,THIRD PARTY PAYMENTS,PRIVATE CONTRACTOR,REVENUE
Walsall Council,http://opendatacommunities.org/id/metropolitan-district-council/walsall ,WC131-280,31.10.2021,ADULT SOCIAL CARE,ADVANCE HEALTH CARE (UK) LTD,11/10/2021,490.49,6541-Domiciliary Care,THIRD PARTY PAYMENTS,PRIVATE CONTRACTOR,REVENUE
Walsall Council,http://opendatacommunities.org/id/metropolitan-district-council/walsall ,WC131-281,31.10.2021,ADULT SOCIAL CARE,ADVANCE HEALTH CARE (UK) LTD,11/10/2021,490.49,6541-Domiciliary Care,THIRD PARTY PAYMENTS,PRIVATE CONTRACTOR,REVENUE
Walsall Council,http://opendatacommunities.org/id/metropolitan-district-council/walsall ,WC131-282,31.10.2021,ADULT SOCIAL CARE,ADVANCE HEALTH CARE (UK) LTD,11/10/2021,544.95,6541-Domiciliary Care,THIRD PARTY PAYMENTS,PRIVATE CONTRACTOR,REVENUE
Walsall Council,http://opendatacommunities.org/id/metropolitan-district-council/walsall ,WC131-283,31.10.2021,ADULT SOCIAL CARE,ADVANCE HEALTH CARE (UK) LTD,11/10/2021,435.96,6541-Domiciliary Care,THIRD PARTY PAYMENTS,PRIVATE CONTRACTOR,REVENUE
Walsall Council,http://opendatacommunities.org/id/metropolitan-district-council/walsall ,WC131-284,31.10.2021,ADULT SOCIAL CARE,ADVANCE HEALTH CARE (UK) LTD,11/10/2021,490.49,6541-Domiciliary Care,THIRD PARTY PAYMENTS,PRIVATE CONTRACTOR,REVENUE
Walsall Council,http://opendatacommunities.org/id/metropolitan-district-council/walsall ,WC131-285,31.10.2021,ADULT SOCIAL CARE,ADVANCE HEALTH CARE (UK) LTD,11/10/2021,490.49,6541-Domiciliary Care,THIRD PARTY PAYMENTS,PRIVATE CONTRACTOR,REVENUE
Walsall Council,http://opendatacommunities.org/id/metropolitan-district-council/walsall ,WC131-286,31.10.2021,ADULT SOCIAL CARE,ADVANCE HEALTH CARE (UK) LTD,11/10/2021,435.96,6541-Domiciliary Care,THIRD PARTY PAYMENTS,PRIVATE CONTRACTOR,REVENUE
Walsall Council,http://opendatacommunities.org/id/metropolitan-district-council/walsall ,WC131-287,31.10.2021,ADULT SOCIAL CARE,ADVANCE HEALTH CARE (UK) LTD,11/10/2021,350.40,6541-Domiciliary Care,THIRD PARTY PAYMENTS,PRIVATE CONTRACTOR,REVENUE
Walsall Council,http://opendatacommunities.org/id/metropolitan-district-council/walsall ,WC131-288,31.10.2021,ADULT SOCIAL CARE,ADVANCE HEALTH CARE (UK) LTD,11/10/2021,254.38,6541-Domiciliary Care,THIRD PARTY PAYMENTS,PRIVATE CONTRACTOR,REVENUE
Walsall Council,http://opendatacommunities.org/id/metropolitan-district-council/walsall ,WC131-289,31.10.2021,ADULT SOCIAL CARE,ADVANCE HEALTH CARE (UK) LTD,11/10/2021,490.49,6541-Domiciliary Care,THIRD PARTY PAYMENTS,PRIVATE CONTRACTOR,REVENUE
Walsall Council,http://opendatacommunities.org/id/metropolitan-district-council/walsall ,WC131-290,31.10.2021,ADULT SOCIAL CARE,ADVANCE HEALTH CARE (UK) LTD,11/10/2021,654.01,6541-Domiciliary Care,THIRD PARTY PAYMENTS,PRIVATE CONTRACTOR,REVENUE
Walsall Council,http://opendatacommunities.org/id/metropolitan-district-council/walsall ,WC131-291,31.10.2021,ADULT SOCIAL CARE,ADVANCE HEALTH CARE (UK) LTD,11/10/2021,454.16,6541-Domiciliary Care,THIRD PARTY PAYMENTS,PRIVATE CONTRACTOR,REVENUE
Walsall Council,http://opendatacommunities.org/id/metropolitan-district-council/walsall ,WC131-292,31.10.2021,ADULT SOCIAL CARE,ADVANCE HEALTH CARE (UK) LTD,11/10/2021,599.55,6541-Domiciliary Care,THIRD PARTY PAYMENTS,PRIVATE CONTRACTOR,REVENUE
Walsall Council,http://opendatacommunities.org/id/metropolitan-district-council/walsall ,WC131-293,31.10.2021,ADULT SOCIAL CARE,ADVANCE HEALTH CARE (UK) LTD,11/10/2021,490.49,6541-Domiciliary Care,THIRD PARTY PAYMENTS,PRIVATE CONTRACTOR,REVENUE
Walsall Council,http://opendatacommunities.org/id/metropolitan-district-council/walsall ,WC131-294,31.10.2021,ADULT SOCIAL CARE,ADVANCE HEALTH CARE (UK) LTD,11/10/2021,537.20,6541-Domiciliary Care,THIRD PARTY PAYMENTS,PRIVATE CONTRACTOR,REVENUE
Walsall Council,http://opendatacommunities.org/id/metropolitan-district-council/walsall ,WC131-295,31.10.2021,ADULT SOCIAL CARE,ADVANCE HEALTH CARE (UK) LTD,11/10/2021,435.96,6541-Domiciliary Care,THIRD PARTY PAYMENTS,PRIVATE CONTRACTOR,REVENUE
Walsall Council,http://opendatacommunities.org/id/metropolitan-district-council/walsall ,WC131-296,31.10.2021,ADULT SOCIAL CARE,ADVANCE HEALTH CARE (UK) LTD,11/10/2021,490.49,6541-Domiciliary Care,THIRD PARTY PAYMENTS,PRIVATE CONTRACTOR,REVENUE
Walsall Council,http://opendatacommunities.org/id/metropolitan-district-council/walsall ,WC131-297,31.10.2021,ADULT SOCIAL CARE,ADVANCE HEALTH CARE (UK) LTD,11/10/2021,454.16,6541-Domiciliary Care,THIRD PARTY PAYMENTS,PRIVATE CONTRACTOR,REVENUE
Walsall Council,http://opendatacommunities.org/id/metropolitan-district-council/walsall ,WC131-298,31.10.2021,ADULT SOCIAL CARE,ADVANCE HEALTH CARE (UK) LTD,11/10/2021,435.96,6541-Domiciliary Care,THIRD PARTY PAYMENTS,PRIVATE CONTRACTOR,REVENUE
Walsall Council,http://opendatacommunities.org/id/metropolitan-district-council/walsall ,WC131-299,31.10.2021,ADULT SOCIAL CARE,ADVANCE HEALTH CARE (UK) LTD,11/10/2021,326.97,6541-Domiciliary Care,THIRD PARTY PAYMENTS,PRIVATE CONTRACTOR,REVENUE
Walsall Council,http://opendatacommunities.org/id/metropolitan-district-council/walsall ,WC131-300,31.10.2021,ADULT SOCIAL CARE,ADVANCE HEALTH CARE (UK) LTD,11/10/2021,454.16,6541-Domiciliary Care,THIRD PARTY PAYMENTS,PRIVATE CONTRACTOR,REVENUE
Walsall Council,http://opendatacommunities.org/id/metropolitan-district-council/walsall ,WC131-301,31.10.2021,ADULT SOCIAL CARE,ADVANCE HEALTH CARE (UK) LTD,11/10/2021,352.92,6541-Domiciliary Care,THIRD PARTY PAYMENTS,PRIVATE CONTRACTOR,REVENUE
Walsall Council,http://opendatacommunities.org/id/metropolitan-district-council/walsall ,WC131-302,31.10.2021,ADULT SOCIAL CARE,ADVANCE HEALTH CARE (UK) LTD,11/10/2021,708.47,6541-Domiciliary Care,THIRD PARTY PAYMENTS,PRIVATE CONTRACTOR,REVENUE
Walsall Council,http://opendatacommunities.org/id/metropolitan-district-council/walsall ,WC131-303,31.10.2021,ADULT SOCIAL CARE,ADVANCE HEALTH CARE (UK) LTD,11/10/2021,490.49,6541-Domiciliary Care,THIRD PARTY PAYMENTS,PRIVATE CONTRACTOR,REVENUE
Walsall Council,http://opendatacommunities.org/id/metropolitan-district-council/walsall ,WC131-304,31.10.2021,ADULT SOCIAL CARE,ADVANCE HEALTH CARE (UK) LTD,11/10/2021,490.49,6541-Domiciliary Care,THIRD PARTY PAYMENTS,PRIVATE CONTRACTOR,REVENUE
Walsall Council,http://opendatacommunities.org/id/metropolitan-district-council/walsall ,WC131-305,31.10.2021,ADULT SOCIAL CARE,ADVANCE HEALTH CARE (UK) LTD,11/10/2021,435.96,6541-Domiciliary Care,THIRD PARTY PAYMENTS,PRIVATE CONTRACTOR,REVENUE
Walsall Council,http://opendatacommunities.org/id/metropolitan-district-council/walsall ,WC131-306,31.10.2021,ADULT SOCIAL CARE,ADVANCE HEALTH CARE (UK) LTD,11/10/2021,544.95,6541-Domiciliary Care,THIRD PARTY PAYMENTS,PRIVATE CONTRACTOR,REVENUE
Walsall Council,http://opendatacommunities.org/id/metropolitan-district-council/walsall ,WC131-307,31.10.2021,ADULT SOCIAL CARE,ADVANCE HEALTH CARE (UK) LTD,11/10/2021,435.96,6541-Domiciliary Care,THIRD PARTY PAYMENTS,PRIVATE CONTRACTOR,REVENUE
Walsall Council,http://opendatacommunities.org/id/metropolitan-district-council/walsall ,WC131-308,31.10.2021,ADULT SOCIAL CARE,ADVANCE HEALTH CARE (UK) LTD,11/10/2021,506.06,6541-Domiciliary Care,THIRD PARTY PAYMENTS,PRIVATE CONTRACTOR,REVENUE
Walsall Council,http://opendatacommunities.org/id/metropolitan-district-council/walsall ,WC131-309,31.10.2021,ADULT SOCIAL CARE,ADVANCE HEALTH CARE (UK) LTD,11/10/2021,435.96,6541-Domiciliary Care,THIRD PARTY PAYMENTS,PRIVATE CONTRACTOR,REVENUE
Walsall Council,http://opendatacommunities.org/id/metropolitan-district-council/walsall ,WC131-310,31.10.2021,ADULT SOCIAL CARE,ADVANCE HEALTH CARE (UK) LTD,11/10/2021,363.30,6541-Domiciliary Care,THIRD PARTY PAYMENTS,PRIVATE CONTRACTOR,REVENUE
Walsall Council,http://opendatacommunities.org/id/metropolitan-district-council/walsall ,WC131-311,31.10.2021,ADULT SOCIAL CARE,ADVANCE HEALTH CARE (UK) LTD,11/10/2021,833.03,6541-Domiciliary Care,THIRD PARTY PAYMENTS,PRIVATE CONTRACTOR,REVENUE
Walsall Council,http://opendatacommunities.org/id/metropolitan-district-council/walsall ,WC131-312,31.10.2021,ADULT SOCIAL CARE,ADVANCE HEALTH CARE (UK) LTD,11/10/2021,490.49,6541-Domiciliary Care,THIRD PARTY PAYMENTS,PRIVATE CONTRACTOR,REVENUE
Walsall Council,http://opendatacommunities.org/id/metropolitan-district-council/walsall ,WC131-313,31.10.2021,ADULT SOCIAL CARE,ADVANCE HEALTH CARE (UK) LTD,11/10/2021,490.49,6541-Domiciliary Care,THIRD PARTY PAYMENTS,PRIVATE CONTRACTOR,REVENUE
Walsall Council,http://opendatacommunities.org/id/metropolitan-district-council/walsall ,WC131-314,31.10.2021,ADULT SOCIAL CARE,ADVANCE HEALTH CARE (UK) LTD,11/10/2021,490.49,6541-Domiciliary Care,THIRD PARTY PAYMENTS,PRIVATE CONTRACTOR,REVENUE
Walsall Council,http://opendatacommunities.org/id/metropolitan-district-council/walsall ,WC131-315,31.10.2021,ADULT SOCIAL CARE,ADVANCE HEALTH CARE (UK) LTD,11/10/2021,544.95,6541-Domiciliary Care,THIRD PARTY PAYMENTS,PRIVATE CONTRACTOR,REVENUE
Walsall Council,http://opendatacommunities.org/id/metropolitan-district-council/walsall ,WC131-316,31.10.2021,ADULT SOCIAL CARE,ADVANCE HEALTH CARE (UK) LTD,11/10/2021,435.96,6541-Domiciliary Care,THIRD PARTY PAYMENTS,PRIVATE CONTRACTOR,REVENUE
Walsall Council,http://opendatacommunities.org/id/metropolitan-district-council/walsall ,WC131-317,31.10.2021,ADULT SOCIAL CARE,ADVANCE HEALTH CARE (UK) LTD,11/10/2021,490.49,6541-Domiciliary Care,THIRD PARTY PAYMENTS,PRIVATE CONTRACTOR,REVENUE
Walsall Council,http://opendatacommunities.org/id/metropolitan-district-council/walsall ,WC131-318,31.10.2021,ADULT SOCIAL CARE,ADVANCE HEALTH CARE (UK) LTD,11/10/2021,871.92,6541-Domiciliary Care,THIRD PARTY PAYMENTS,PRIVATE CONTRACTOR,REVENUE
Walsall Council,http://opendatacommunities.org/id/metropolitan-district-council/walsall ,WC131-319,31.10.2021,ADULT SOCIAL CARE,ADVANCE HEALTH CARE (UK) LTD,11/10/2021,326.97,6541-Domiciliary Care,THIRD PARTY PAYMENTS,PRIVATE CONTRACTOR,REVENUE
Walsall Council,http://opendatacommunities.org/id/metropolitan-district-council/walsall ,WC131-320,31.10.2021,ADULT SOCIAL CARE,ADVANCE HEALTH CARE (UK) LTD,11/10/2021,381.50,6541-Domiciliary Care,THIRD PARTY PAYMENTS,PRIVATE CONTRACTOR,REVENUE
Walsall Council,http://opendatacommunities.org/id/metropolitan-district-council/walsall ,WC131-321,31.10.2021,ADULT SOCIAL CARE,ADVANCE HEALTH CARE (UK) LTD,11/10/2021,490.49,6541-Domiciliary Care,THIRD PARTY PAYMENTS,PRIVATE CONTRACTOR,REVENUE
Walsall Council,http://opendatacommunities.org/id/metropolitan-district-council/walsall ,WC131-322,31.10.2021,ADULT SOCIAL CARE,ADVANCE HEALTH CARE (UK) LTD,11/10/2021,435.96,6541-Domiciliary Care,THIRD PARTY PAYMENTS,PRIVATE CONTRACTOR,REVENUE
Walsall Council,http://opendatacommunities.org/id/metropolitan-district-council/walsall ,WC131-323,31.10.2021,ADULT SOCIAL CARE,ADVANCE HEALTH CARE (UK) LTD,11/10/2021,490.49,6541-Domiciliary Care,THIRD PARTY PAYMENTS,PRIVATE CONTRACTOR,REVENUE
Walsall Council,http://opendatacommunities.org/id/metropolitan-district-council/walsall ,WC131-324,31.10.2021,ADULT SOCIAL CARE,ADVANCE HEALTH CARE (UK) LTD,11/10/2021,490.49,6541-Domiciliary Care,THIRD PARTY PAYMENTS,PRIVATE CONTRACTOR,REVENUE
Walsall Council,http://opendatacommunities.org/id/metropolitan-district-council/walsall ,WC131-325,31.10.2021,ADULT SOCIAL CARE,ADVANCE HEALTH CARE (UK) LTD,11/10/2021,490.49,6541-Domiciliary Care,THIRD PARTY PAYMENTS,PRIVATE CONTRACTOR,REVENUE
Walsall Council,http://opendatacommunities.org/id/metropolitan-district-council/walsall ,WC131-326,31.10.2021,ADULT SOCIAL CARE,ADVANCE HEALTH CARE (UK) LTD,11/10/2021,490.49,6541-Domiciliary Care,THIRD PARTY PAYMENTS,PRIVATE CONTRACTOR,REVENUE
Walsall Council,http://opendatacommunities.org/id/metropolitan-district-council/walsall ,WC131-327,31.10.2021,ADULT SOCIAL CARE,ADVANCE HEALTH CARE (UK) LTD,11/10/2021,490.49,6541-Domiciliary Care,THIRD PARTY PAYMENTS,PRIVATE CONTRACTOR,REVENUE
Walsall Council,http://opendatacommunities.org/id/metropolitan-district-council/walsall ,WC131-328,31.10.2021,ADULT SOCIAL CARE,ADVANCE HEALTH CARE (UK) LTD,11/10/2021,490.49,6541-Domiciliary Care,THIRD PARTY PAYMENTS,PRIVATE CONTRACTOR,REVENUE
Walsall Council,http://opendatacommunities.org/id/metropolitan-district-council/walsall ,WC131-329,31.10.2021,ADULT SOCIAL CARE,ADVANCE HEALTH CARE (UK) LTD,11/10/2021,490.49,6541-Domiciliary Care,THIRD PARTY PAYMENTS,PRIVATE CONTRACTOR,REVENUE
Walsall Council,http://opendatacommunities.org/id/metropolitan-district-council/walsall ,WC131-330,31.10.2021,ADULT SOCIAL CARE,ADVANCE HEALTH CARE (UK) LTD,11/10/2021,435.96,6541-Domiciliary Care,THIRD PARTY PAYMENTS,PRIVATE CONTRACTOR,REVENUE
Walsall Council,http://opendatacommunities.org/id/metropolitan-district-council/walsall ,WC131-331,31.10.2021,ADULT SOCIAL CARE,ADVANCE HEALTH CARE (UK) LTD,11/10/2021,256.93,6541-Domiciliary Care,THIRD PARTY PAYMENTS,PRIVATE CONTRACTOR,REVENUE
Walsall Council,http://opendatacommunities.org/id/metropolitan-district-council/walsall ,WC131-332,31.10.2021,ADULT SOCIAL CARE,ADVANCE HEALTH CARE (UK) LTD,11/10/2021,435.96,6541-Domiciliary Care,THIRD PARTY PAYMENTS,PRIVATE CONTRACTOR,REVENUE
Walsall Council,http://opendatacommunities.org/id/metropolitan-district-council/walsall ,WC131-333,31.10.2021,ADULT SOCIAL CARE,ADVANCE HEALTH CARE (UK) LTD,11/10/2021,635.81,6541-Domiciliary Care,THIRD PARTY PAYMENTS,PRIVATE CONTRACTOR,REVENUE
Walsall Council,http://opendatacommunities.org/id/metropolitan-district-council/walsall ,WC131-334,31.10.2021,ADULT SOCIAL CARE,ADVANCE HEALTH CARE (UK) LTD,11/10/2021,381.50,6541-Domiciliary Care,THIRD PARTY PAYMENTS,PRIVATE CONTRACTOR,REVENUE
Walsall Council,http://opendatacommunities.org/id/metropolitan-district-council/walsall ,WC131-335,31.10.2021,ADULT SOCIAL CARE,ADVANCE HEALTH CARE (UK) LTD,11/10/2021,490.49,6541-Domiciliary Care,THIRD PARTY PAYMENTS,PRIVATE CONTRACTOR,REVENUE
Walsall Council,http://opendatacommunities.org/id/metropolitan-district-council/walsall ,WC131-336,31.10.2021,ADULT SOCIAL CARE,ADVANCE HEALTH CARE (UK) LTD,11/10/2021,454.16,6541-Domiciliary Care,THIRD PARTY PAYMENTS,PRIVATE CONTRACTOR,REVENUE
Walsall Council,http://opendatacommunities.org/id/metropolitan-district-council/walsall ,WC131-337,31.10.2021,ADULT SOCIAL CARE,ADVANCE HEALTH CARE (UK) LTD,11/10/2021,490.49,6541-Domiciliary Care,THIRD PARTY PAYMENTS,PRIVATE CONTRACTOR,REVENUE
Walsall Council,http://opendatacommunities.org/id/metropolitan-district-council/walsall ,WC131-338,31.10.2021,ADULT SOCIAL CARE,ADVANCE HEALTH CARE (UK) LTD,11/10/2021,490.49,6541-Domiciliary Care,THIRD PARTY PAYMENTS,PRIVATE CONTRACTOR,REVENUE
Walsall Council,http://opendatacommunities.org/id/metropolitan-district-council/walsall ,WC131-339,31.10.2021,ADULT SOCIAL CARE,ADVANCE HEALTH CARE (UK) LTD,21/10/2021,"1,961.96",6541-Domiciliary Care,THIRD PARTY PAYMENTS,PRIVATE CONTRACTOR,REVENUE
Walsall Council,http://opendatacommunities.org/id/metropolitan-district-council/walsall ,WC131-340,31.10.2021,ADULT SOCIAL CARE,ADVANCE HEALTH CARE (UK) LTD,21/10/2021,"1,852.96",6541-Domiciliary Care,THIRD PARTY PAYMENTS,PRIVATE CONTRACTOR,REVENUE
Walsall Council,http://opendatacommunities.org/id/metropolitan-district-council/walsall ,WC131-341,31.10.2021,ADULT SOCIAL CARE,ADVANCE HEALTH CARE (UK) LTD,21/10/2021,"1,821.82",6541-Domiciliary Care,THIRD PARTY PAYMENTS,PRIVATE CONTRACTOR,REVENUE
Walsall Council,http://opendatacommunities.org/id/metropolitan-district-council/walsall ,WC131-342,31.10.2021,ADULT SOCIAL CARE,ADVANCE HEALTH CARE (UK) LTD,21/10/2021,"1,401.40",6541-Domiciliary Care,THIRD PARTY PAYMENTS,PRIVATE CONTRACTOR,REVENUE
Walsall Council,http://opendatacommunities.org/id/metropolitan-district-council/walsall ,WC131-343,31.10.2021,ADULT SOCIAL CARE,ADVANCE HEALTH CARE (UK) LTD,21/10/2021,"1,743.84",6541-Domiciliary Care,THIRD PARTY PAYMENTS,PRIVATE CONTRACTOR,REVENUE
Walsall Council,http://opendatacommunities.org/id/metropolitan-district-council/walsall ,WC131-344,31.10.2021,ADULT SOCIAL CARE,ADVANCE HEALTH CARE (UK) LTD,21/10/2021,560.56,6541-Domiciliary Care,THIRD PARTY PAYMENTS,PRIVATE CONTRACTOR,REVENUE
Walsall Council,http://opendatacommunities.org/id/metropolitan-district-council/walsall ,WC131-345,31.10.2021,ADULT SOCIAL CARE,ADVANCE HEALTH CARE (UK) LTD,21/10/2021,"1,541.54",6541-Domiciliary Care,THIRD PARTY PAYMENTS,PRIVATE CONTRACTOR,REVENUE
Walsall Council,http://opendatacommunities.org/id/metropolitan-district-council/walsall ,WC131-346,31.10.2021,ADULT SOCIAL CARE,ADVANCE HEALTH CARE (UK) LTD,21/10/2021,856.35,6541-Domiciliary Care,THIRD PARTY PAYMENTS,PRIVATE CONTRACTOR,REVENUE
Walsall Council,http://opendatacommunities.org/id/metropolitan-district-council/walsall ,WC131-347,31.10.2021,ADULT SOCIAL CARE,ADVANCE HEALTH CARE (UK) LTD,21/10/2021,"1,191.19",6541-Domiciliary Care,THIRD PARTY PAYMENTS,PRIVATE CONTRACTOR,REVENUE
Walsall Council,http://opendatacommunities.org/id/metropolitan-district-council/walsall ,WC131-348,31.10.2021,ADULT SOCIAL CARE,ADVANCE HEALTH CARE (UK) LTD,21/10/2021,"1,375.35",6541-Domiciliary Care,THIRD PARTY PAYMENTS,PRIVATE CONTRACTOR,REVENUE
Walsall Council,http://opendatacommunities.org/id/metropolitan-district-council/walsall ,WC131-349,31.10.2021,ADULT SOCIAL CARE,ADVANCE HEALTH CARE (UK) LTD,21/10/2021,595.85,6541-Domiciliary Care,THIRD PARTY PAYMENTS,PRIVATE CONTRACTOR,REVENUE
Walsall Council,http://opendatacommunities.org/id/metropolitan-district-council/walsall ,WC131-350,31.10.2021,ADULT SOCIAL CARE,ADVANCE HEALTH CARE (UK) LTD,21/10/2021,770.77,6541-Domiciliary Care,THIRD PARTY PAYMENTS,PRIVATE CONTRACTOR,REVENUE
Walsall Council,http://opendatacommunities.org/id/metropolitan-district-council/walsall ,WC131-351,31.10.2021,ADULT SOCIAL CARE,ADVANCE HEALTH CARE (UK) LTD,21/10/2021,"1,961.96",6541-Domiciliary Care,THIRD PARTY PAYMENTS,PRIVATE CONTRACTOR,REVENUE
Walsall Council,http://opendatacommunities.org/id/metropolitan-district-council/walsall ,WC131-352,31.10.2021,ADULT SOCIAL CARE,ADVANCE HEALTH CARE (UK) LTD,21/10/2021,743.81,6541-Domiciliary Care,THIRD PARTY PAYMENTS,PRIVATE CONTRACTOR,REVENUE
Walsall Council,http://opendatacommunities.org/id/metropolitan-district-council/walsall ,WC131-353,31.10.2021,ADULT SOCIAL CARE,ADVANCE HEALTH CARE (UK) LTD,21/10/2021,681.53,6541-Domiciliary Care,THIRD PARTY PAYMENTS,PRIVATE CONTRACTOR,REVENUE
Walsall Council,http://opendatacommunities.org/id/metropolitan-district-council/walsall ,WC131-354,31.10.2021,ADULT SOCIAL CARE,ADVANCE HEALTH CARE (UK) LTD,21/10/2021,"1,751.75",6541-Domiciliary Care,THIRD PARTY PAYMENTS,PRIVATE CONTRACTOR,REVENUE
Walsall Council,http://opendatacommunities.org/id/metropolitan-district-council/walsall ,WC131-355,31.10.2021,ADULT SOCIAL CARE,ADVANCE HEALTH CARE (UK) LTD,21/10/2021,311.60,6541-Domiciliary Care,THIRD PARTY PAYMENTS,PRIVATE CONTRACTOR,REVENUE
Walsall Council,http://opendatacommunities.org/id/metropolitan-district-council/walsall ,WC131-356,31.10.2021,ADULT SOCIAL CARE,ADVANCE HEALTH CARE (UK) LTD,21/10/2021,841.20,6541-Domiciliary Care,THIRD PARTY PAYMENTS,PRIVATE CONTRACTOR,REVENUE
Walsall Council,http://opendatacommunities.org/id/metropolitan-district-council/walsall ,WC131-357,31.10.2021,ADULT SOCIAL CARE,ADVANCE HEALTH CARE (UK) LTD,21/10/2021,"1,923.03",6541-Domiciliary Care,THIRD PARTY PAYMENTS,PRIVATE CONTRACTOR,REVENUE
Walsall Council,http://opendatacommunities.org/id/metropolitan-district-council/walsall ,WC131-358,31.10.2021,ADULT SOCIAL CARE,ADVANCE HEALTH CARE (UK) LTD,21/10/2021,"2,024.10",6541-Domiciliary Care,THIRD PARTY PAYMENTS,PRIVATE CONTRACTOR,REVENUE
Walsall Council,http://opendatacommunities.org/id/metropolitan-district-council/walsall ,WC131-359,31.10.2021,ADULT SOCIAL CARE,ADVANCE HEALTH CARE (UK) LTD,21/10/2021,311.42,6541-Domiciliary Care,THIRD PARTY PAYMENTS,PRIVATE CONTRACTOR,REVENUE
Walsall Council,http://opendatacommunities.org/id/metropolitan-district-council/walsall ,WC131-360,31.10.2021,ADULT SOCIAL CARE,ADVANCE HEALTH CARE (UK) LTD,21/10/2021,272.51,6541-Domiciliary Care,THIRD PARTY PAYMENTS,PRIVATE CONTRACTOR,REVENUE
Walsall Council,http://opendatacommunities.org/id/metropolitan-district-council/walsall ,WC131-361,31.10.2021,ADULT SOCIAL CARE,ADVANCE HEALTH CARE (UK) LTD,21/10/2021,471.23,6541-Domiciliary Care,THIRD PARTY PAYMENTS,PRIVATE CONTRACTOR,REVENUE
Walsall Council,http://opendatacommunities.org/id/metropolitan-district-council/walsall ,WC131-362,31.10.2021,ADULT SOCIAL CARE,ADVANCE HEALTH CARE (UK) LTD,26/10/2021,490.49,6541-Domiciliary Care,THIRD PARTY PAYMENTS,PRIVATE CONTRACTOR,REVENUE
Walsall Council,http://opendatacommunities.org/id/metropolitan-district-council/walsall ,WC131-363,31.10.2021,ADULT SOCIAL CARE,ADVANCE HEALTH CARE (UK) LTD,26/10/2021,537.20,6541-Domiciliary Care,THIRD PARTY PAYMENTS,PRIVATE CONTRACTOR,REVENUE
Walsall Council,http://opendatacommunities.org/id/metropolitan-district-council/walsall ,WC131-364,31.10.2021,ADULT SOCIAL CARE,ADVANCE HEALTH CARE (UK) LTD,26/10/2021,435.96,6541-Domiciliary Care,THIRD PARTY PAYMENTS,PRIVATE CONTRACTOR,REVENUE
Walsall Council,http://opendatacommunities.org/id/metropolitan-district-council/walsall ,WC131-365,31.10.2021,ADULT SOCIAL CARE,ADVANCE HEALTH CARE (UK) LTD,26/10/2021,490.49,6541-Domiciliary Care,THIRD PARTY PAYMENTS,PRIVATE CONTRACTOR,REVENUE
Walsall Council,http://opendatacommunities.org/id/metropolitan-district-council/walsall ,WC131-366,31.10.2021,ADULT SOCIAL CARE,ADVANCE HEALTH CARE (UK) LTD,26/10/2021,454.16,6541-Domiciliary Care,THIRD PARTY PAYMENTS,PRIVATE CONTRACTOR,REVENUE
Walsall Council,http://opendatacommunities.org/id/metropolitan-district-council/walsall ,WC131-367,31.10.2021,ADULT SOCIAL CARE,ADVANCE HEALTH CARE (UK) LTD,26/10/2021,435.96,6541-Domiciliary Care,THIRD PARTY PAYMENTS,PRIVATE CONTRACTOR,REVENUE
Walsall Council,http://opendatacommunities.org/id/metropolitan-district-council/walsall ,WC131-368,31.10.2021,ADULT SOCIAL CARE,ADVANCE HEALTH CARE (UK) LTD,26/10/2021,326.97,6541-Domiciliary Care,THIRD PARTY PAYMENTS,PRIVATE CONTRACTOR,REVENUE
Walsall Council,http://opendatacommunities.org/id/metropolitan-district-council/walsall ,WC131-369,31.10.2021,ADULT SOCIAL CARE,ADVANCE HEALTH CARE (UK) LTD,26/10/2021,454.16,6541-Domiciliary Care,THIRD PARTY PAYMENTS,PRIVATE CONTRACTOR,REVENUE
Walsall Council,http://opendatacommunities.org/id/metropolitan-district-council/walsall ,WC131-370,31.10.2021,ADULT SOCIAL CARE,ADVANCE HEALTH CARE (UK) LTD,26/10/2021,352.92,6541-Domiciliary Care,THIRD PARTY PAYMENTS,PRIVATE CONTRACTOR,REVENUE
Walsall Council,http://opendatacommunities.org/id/metropolitan-district-council/walsall ,WC131-371,31.10.2021,ADULT SOCIAL CARE,ADVANCE HEALTH CARE (UK) LTD,26/10/2021,708.47,6541-Domiciliary Care,THIRD PARTY PAYMENTS,PRIVATE CONTRACTOR,REVENUE
Walsall Council,http://opendatacommunities.org/id/metropolitan-district-council/walsall ,WC131-372,31.10.2021,ADULT SOCIAL CARE,ADVANCE HEALTH CARE (UK) LTD,26/10/2021,490.49,6541-Domiciliary Care,THIRD PARTY PAYMENTS,PRIVATE CONTRACTOR,REVENUE
Walsall Council,http://opendatacommunities.org/id/metropolitan-district-council/walsall ,WC131-373,31.10.2021,ADULT SOCIAL CARE,ADVANCE HEALTH CARE (UK) LTD,26/10/2021,435.96,6541-Domiciliary Care,THIRD PARTY PAYMENTS,PRIVATE CONTRACTOR,REVENUE
Walsall Council,http://opendatacommunities.org/id/metropolitan-district-council/walsall ,WC131-374,31.10.2021,ADULT SOCIAL CARE,ADVANCE HEALTH CARE (UK) LTD,26/10/2021,544.95,6541-Domiciliary Care,THIRD PARTY PAYMENTS,PRIVATE CONTRACTOR,REVENUE
Walsall Council,http://opendatacommunities.org/id/metropolitan-district-council/walsall ,WC131-375,31.10.2021,ADULT SOCIAL CARE,ADVANCE HEALTH CARE (UK) LTD,26/10/2021,435.96,6541-Domiciliary Care,THIRD PARTY PAYMENTS,PRIVATE CONTRACTOR,REVENUE
Walsall Council,http://opendatacommunities.org/id/metropolitan-district-council/walsall ,WC131-376,31.10.2021,ADULT SOCIAL CARE,ADVANCE HEALTH CARE (UK) LTD,26/10/2021,833.03,6541-Domiciliary Care,THIRD PARTY PAYMENTS,PRIVATE CONTRACTOR,REVENUE
Walsall Council,http://opendatacommunities.org/id/metropolitan-district-council/walsall ,WC131-377,31.10.2021,ADULT SOCIAL CARE,ADVANCE HEALTH CARE (UK) LTD,26/10/2021,490.49,6541-Domiciliary Care,THIRD PARTY PAYMENTS,PRIVATE CONTRACTOR,REVENUE
Walsall Council,http://opendatacommunities.org/id/metropolitan-district-council/walsall ,WC131-378,31.10.2021,ADULT SOCIAL CARE,ADVANCE HEALTH CARE (UK) LTD,26/10/2021,490.49,6541-Domiciliary Care,THIRD PARTY PAYMENTS,PRIVATE CONTRACTOR,REVENUE
Walsall Council,http://opendatacommunities.org/id/metropolitan-district-council/walsall ,WC131-379,31.10.2021,ADULT SOCIAL CARE,ADVANCE HEALTH CARE (UK) LTD,26/10/2021,490.49,6541-Domiciliary Care,THIRD PARTY PAYMENTS,PRIVATE CONTRACTOR,REVENUE
Walsall Council,http://opendatacommunities.org/id/metropolitan-district-council/walsall ,WC131-380,31.10.2021,ADULT SOCIAL CARE,ADVANCE HEALTH CARE (UK) LTD,26/10/2021,544.95,6541-Domiciliary Care,THIRD PARTY PAYMENTS,PRIVATE CONTRACTOR,REVENUE
Walsall Council,http://opendatacommunities.org/id/metropolitan-district-council/walsall ,WC131-381,31.10.2021,ADULT SOCIAL CARE,ADVANCE HEALTH CARE (UK) LTD,26/10/2021,435.96,6541-Domiciliary Care,THIRD PARTY PAYMENTS,PRIVATE CONTRACTOR,REVENUE
Walsall Council,http://opendatacommunities.org/id/metropolitan-district-council/walsall ,WC131-382,31.10.2021,ADULT SOCIAL CARE,ADVANCE HEALTH CARE (UK) LTD,26/10/2021,490.49,6541-Domiciliary Care,THIRD PARTY PAYMENTS,PRIVATE CONTRACTOR,REVENUE
Walsall Council,http://opendatacommunities.org/id/metropolitan-district-council/walsall ,WC131-383,31.10.2021,ADULT SOCIAL CARE,ADVANCE HEALTH CARE (UK) LTD,26/10/2021,435.96,6541-Domiciliary Care,THIRD PARTY PAYMENTS,PRIVATE CONTRACTOR,REVENUE
Walsall Council,http://opendatacommunities.org/id/metropolitan-district-council/walsall ,WC131-384,31.10.2021,ADULT SOCIAL CARE,ADVANCE HEALTH CARE (UK) LTD,26/10/2021,490.49,6541-Domiciliary Care,THIRD PARTY PAYMENTS,PRIVATE CONTRACTOR,REVENUE
Walsall Council,http://opendatacommunities.org/id/metropolitan-district-council/walsall ,WC131-385,31.10.2021,ADULT SOCIAL CARE,ADVANCE HEALTH CARE (UK) LTD,26/10/2021,871.92,6541-Domiciliary Care,THIRD PARTY PAYMENTS,PRIVATE CONTRACTOR,REVENUE
Walsall Council,http://opendatacommunities.org/id/metropolitan-district-council/walsall ,WC131-386,31.10.2021,ADULT SOCIAL CARE,ADVANCE HEALTH CARE (UK) LTD,26/10/2021,326.97,6541-Domiciliary Care,THIRD PARTY PAYMENTS,PRIVATE CONTRACTOR,REVENUE
Walsall Council,http://opendatacommunities.org/id/metropolitan-district-council/walsall ,WC131-387,31.10.2021,ADULT SOCIAL CARE,ADVANCE HEALTH CARE (UK) LTD,26/10/2021,381.50,6541-Domiciliary Care,THIRD PARTY PAYMENTS,PRIVATE CONTRACTOR,REVENUE
Walsall Council,http://opendatacommunities.org/id/metropolitan-district-council/walsall ,WC131-388,31.10.2021,ADULT SOCIAL CARE,ADVANCE HEALTH CARE (UK) LTD,26/10/2021,490.49,6541-Domiciliary Care,THIRD PARTY PAYMENTS,PRIVATE CONTRACTOR,REVENUE
Walsall Council,http://opendatacommunities.org/id/metropolitan-district-council/walsall ,WC131-389,31.10.2021,ADULT SOCIAL CARE,ADVANCE HEALTH CARE (UK) LTD,26/10/2021,490.49,6541-Domiciliary Care,THIRD PARTY PAYMENTS,PRIVATE CONTRACTOR,REVENUE
Walsall Council,http://opendatacommunities.org/id/metropolitan-district-council/walsall ,WC131-390,31.10.2021,ADULT SOCIAL CARE,ADVANCE HEALTH CARE (UK) LTD,26/10/2021,490.49,6541-Domiciliary Care,THIRD PARTY PAYMENTS,PRIVATE CONTRACTOR,REVENUE
Walsall Council,http://opendatacommunities.org/id/metropolitan-district-council/walsall ,WC131-391,31.10.2021,ADULT SOCIAL CARE,ADVANCE HEALTH CARE (UK) LTD,26/10/2021,"1,471.47",6541-Domiciliary Care,THIRD PARTY PAYMENTS,PRIVATE CONTRACTOR,REVENUE
Walsall Council,http://opendatacommunities.org/id/metropolitan-district-council/walsall ,WC131-392,31.10.2021,ADULT SOCIAL CARE,ADVANCE HEALTH CARE (UK) LTD,26/10/2021,980.98,6541-Domiciliary Care,THIRD PARTY PAYMENTS,PRIVATE CONTRACTOR,REVENUE
Walsall Council,http://opendatacommunities.org/id/metropolitan-district-council/walsall ,WC131-393,31.10.2021,ADULT SOCIAL CARE,ADVANCE HEALTH CARE (UK) LTD,26/10/2021,256.93,6541-Domiciliary Care,THIRD PARTY PAYMENTS,PRIVATE CONTRACTOR,REVENUE
Walsall Council,http://opendatacommunities.org/id/metropolitan-district-council/walsall ,WC131-394,31.10.2021,ADULT SOCIAL CARE,ADVANCE HEALTH CARE (UK) LTD,26/10/2021,490.49,6541-Domiciliary Care,THIRD PARTY PAYMENTS,PRIVATE CONTRACTOR,REVENUE
Walsall Council,http://opendatacommunities.org/id/metropolitan-district-council/walsall ,WC131-395,31.10.2021,ADULT SOCIAL CARE,ADVANCE HEALTH CARE (UK) LTD,26/10/2021,490.49,6541-Domiciliary Care,THIRD PARTY PAYMENTS,PRIVATE CONTRACTOR,REVENUE
Walsall Council,http://opendatacommunities.org/id/metropolitan-district-council/walsall ,WC131-396,31.10.2021,ADULT SOCIAL CARE,ADVANCE HEALTH CARE (UK) LTD,26/10/2021,490.49,6541-Domiciliary Care,THIRD PARTY PAYMENTS,PRIVATE CONTRACTOR,REVENUE
Walsall Council,http://opendatacommunities.org/id/metropolitan-district-council/walsall ,WC131-397,31.10.2021,ADULT SOCIAL CARE,ADVANCE HEALTH CARE (UK) LTD,26/10/2021,435.96,6541-Domiciliary Care,THIRD PARTY PAYMENTS,PRIVATE CONTRACTOR,REVENUE
Walsall Council,http://opendatacommunities.org/id/metropolitan-district-council/walsall ,WC131-398,31.10.2021,ADULT SOCIAL CARE,ADVANCE HEALTH CARE (UK) LTD,26/10/2021,490.49,6541-Domiciliary Care,THIRD PARTY PAYMENTS,PRIVATE CONTRACTOR,REVENUE
Walsall Council,http://opendatacommunities.org/id/metropolitan-district-council/walsall ,WC131-399,31.10.2021,ADULT SOCIAL CARE,ADVANCE HEALTH CARE (UK) LTD,26/10/2021,-560.58,6541-Domiciliary Care,THIRD PARTY PAYMENTS,PRIVATE CONTRACTOR,REVENUE
Walsall Council,http://opendatacommunities.org/id/metropolitan-district-council/walsall ,WC131-400,31.10.2021,ADULT SOCIAL CARE,ADVANCE HEALTH CARE (UK) LTD,26/10/2021,435.96,6541-Domiciliary Care,THIRD PARTY PAYMENTS,PRIVATE CONTRACTOR,REVENUE
Walsall Council,http://opendatacommunities.org/id/metropolitan-district-council/walsall ,WC131-401,31.10.2021,ADULT SOCIAL CARE,ADVANCE HEALTH CARE (UK) LTD,26/10/2021,-272.49,6541-Domiciliary Care,THIRD PARTY PAYMENTS,PRIVATE CONTRACTOR,REVENUE
Walsall Council,http://opendatacommunities.org/id/metropolitan-district-council/walsall ,WC131-402,31.10.2021,ADULT SOCIAL CARE,ADVANCE HEALTH CARE (UK) LTD,26/10/2021,381.50,6541-Domiciliary Care,THIRD PARTY PAYMENTS,PRIVATE CONTRACTOR,REVENUE
Walsall Council,http://opendatacommunities.org/id/metropolitan-district-council/walsall ,WC131-403,31.10.2021,ADULT SOCIAL CARE,ADVANCE HEALTH CARE (UK) LTD,26/10/2021,338.67,6541-Domiciliary Care,THIRD PARTY PAYMENTS,PRIVATE CONTRACTOR,REVENUE
Walsall Council,http://opendatacommunities.org/id/metropolitan-district-council/walsall ,WC131-404,31.10.2021,ADULT SOCIAL CARE,ADVANCE HEALTH CARE (UK) LTD,26/10/2021,490.70,6541-Domiciliary Care,THIRD PARTY PAYMENTS,PRIVATE CONTRACTOR,REVENUE
Walsall Council,http://opendatacommunities.org/id/metropolitan-district-council/walsall ,WC131-405,31.10.2021,ADULT SOCIAL CARE,ADVANCE HEALTH CARE (UK) LTD,26/10/2021,490.49,6541-Domiciliary Care,THIRD PARTY PAYMENTS,PRIVATE CONTRACTOR,REVENUE
Walsall Council,http://opendatacommunities.org/id/metropolitan-district-council/walsall ,WC131-406,31.10.2021,ADULT SOCIAL CARE,ADVANCE HEALTH CARE (UK) LTD,26/10/2021,454.16,6541-Domiciliary Care,THIRD PARTY PAYMENTS,PRIVATE CONTRACTOR,REVENUE
Walsall Council,http://opendatacommunities.org/id/metropolitan-district-council/walsall ,WC131-407,31.10.2021,ADULT SOCIAL CARE,ADVANCE HEALTH CARE (UK) LTD,26/10/2021,506.06,6541-Domiciliary Care,THIRD PARTY PAYMENTS,PRIVATE CONTRACTOR,REVENUE
Walsall Council,http://opendatacommunities.org/id/metropolitan-district-council/walsall ,WC131-408,31.10.2021,ADULT SOCIAL CARE,ADVANCE HEALTH CARE (UK) LTD,26/10/2021,435.96,6541-Domiciliary Care,THIRD PARTY PAYMENTS,PRIVATE CONTRACTOR,REVENUE
Walsall Council,http://opendatacommunities.org/id/metropolitan-district-council/walsall ,WC131-409,31.10.2021,ADULT SOCIAL CARE,ADVANCE HEALTH CARE (UK) LTD,26/10/2021,363.30,6541-Domiciliary Care,THIRD PARTY PAYMENTS,PRIVATE CONTRACTOR,REVENUE
Walsall Council,http://opendatacommunities.org/id/metropolitan-district-council/walsall ,WC131-410,31.10.2021,ADULT SOCIAL CARE,ADVANCE HEALTH CARE (UK) LTD,26/10/2021,490.70,6541-Domiciliary Care,THIRD PARTY PAYMENTS,PRIVATE CONTRACTOR,REVENUE
Walsall Council,http://opendatacommunities.org/id/metropolitan-district-council/walsall ,WC131-411,31.10.2021,ADULT SOCIAL CARE,ADVANCE HEALTH CARE (UK) LTD,26/10/2021,708.47,6541-Domiciliary Care,THIRD PARTY PAYMENTS,PRIVATE CONTRACTOR,REVENUE
Walsall Council,http://opendatacommunities.org/id/metropolitan-district-council/walsall ,WC131-412,31.10.2021,ADULT SOCIAL CARE,ADVANCE HEALTH CARE (UK) LTD,26/10/2021,506.06,6541-Domiciliary Care,THIRD PARTY PAYMENTS,PRIVATE CONTRACTOR,REVENUE
Walsall Council,http://opendatacommunities.org/id/metropolitan-district-council/walsall ,WC131-413,31.10.2021,ADULT SOCIAL CARE,ADVANCE HEALTH CARE (UK) LTD,26/10/2021,435.96,6541-Domiciliary Care,THIRD PARTY PAYMENTS,PRIVATE CONTRACTOR,REVENUE
Walsall Council,http://opendatacommunities.org/id/metropolitan-district-council/walsall ,WC131-414,31.10.2021,ADULT SOCIAL CARE,ADVANCE HEALTH CARE (UK) LTD,26/10/2021,363.30,6541-Domiciliary Care,THIRD PARTY PAYMENTS,PRIVATE CONTRACTOR,REVENUE
Walsall Council,http://opendatacommunities.org/id/metropolitan-district-council/walsall ,WC131-415,31.10.2021,ADULT SOCIAL CARE,ADVANCE HEALTH CARE (UK) LTD,26/10/2021,490.49,6541-Domiciliary Care,THIRD PARTY PAYMENTS,PRIVATE CONTRACTOR,REVENUE
Walsall Council,http://opendatacommunities.org/id/metropolitan-district-council/walsall ,WC131-416,31.10.2021,ADULT SOCIAL CARE,ADVANCE HEALTH CARE (UK) LTD,26/10/2021,435.96,6541-Domiciliary Care,THIRD PARTY PAYMENTS,PRIVATE CONTRACTOR,REVENUE
Walsall Council,http://opendatacommunities.org/id/metropolitan-district-council/walsall ,WC131-417,31.10.2021,ADULT SOCIAL CARE,ADVANCE HEALTH CARE (UK) LTD,26/10/2021,490.49,6541-Domiciliary Care,THIRD PARTY PAYMENTS,PRIVATE CONTRACTOR,REVENUE
Walsall Council,http://opendatacommunities.org/id/metropolitan-district-council/walsall ,WC131-418,31.10.2021,ADULT SOCIAL CARE,ADVANCE HEALTH CARE (UK) LTD,26/10/2021,490.49,6541-Domiciliary Care,THIRD PARTY PAYMENTS,PRIVATE CONTRACTOR,REVENUE
Walsall Council,http://opendatacommunities.org/id/metropolitan-district-council/walsall ,WC131-419,31.10.2021,ADULT SOCIAL CARE,ADVANCE HEALTH CARE (UK) LTD,26/10/2021,435.96,6541-Domiciliary Care,THIRD PARTY PAYMENTS,PRIVATE CONTRACTOR,REVENUE
Walsall Council,http://opendatacommunities.org/id/metropolitan-district-council/walsall ,WC131-420,31.10.2021,ADULT SOCIAL CARE,ADVANCE HEALTH CARE (UK) LTD,26/10/2021,544.95,6541-Domiciliary Care,THIRD PARTY PAYMENTS,PRIVATE CONTRACTOR,REVENUE
Walsall Council,http://opendatacommunities.org/id/metropolitan-district-council/walsall ,WC131-421,31.10.2021,ADULT SOCIAL CARE,ADVANCE HEALTH CARE (UK) LTD,26/10/2021,435.96,6541-Domiciliary Care,THIRD PARTY PAYMENTS,PRIVATE CONTRACTOR,REVENUE
Walsall Council,http://opendatacommunities.org/id/metropolitan-district-council/walsall ,WC131-422,31.10.2021,ADULT SOCIAL CARE,ADVANCE HEALTH CARE (UK) LTD,26/10/2021,537.20,6541-Domiciliary Care,THIRD PARTY PAYMENTS,PRIVATE CONTRACTOR,REVENUE
Walsall Council,http://opendatacommunities.org/id/metropolitan-district-council/walsall ,WC131-423,31.10.2021,ADULT SOCIAL CARE,ADVANCE HEALTH CARE (UK) LTD,26/10/2021,454.16,6541-Domiciliary Care,THIRD PARTY PAYMENTS,PRIVATE CONTRACTOR,REVENUE
Walsall Council,http://opendatacommunities.org/id/metropolitan-district-council/walsall ,WC131-424,31.10.2021,ADULT SOCIAL CARE,ADVANCE HEALTH CARE (UK) LTD,26/10/2021,311.40,6541-Domiciliary Care,THIRD PARTY PAYMENTS,PRIVATE CONTRACTOR,REVENUE
Walsall Council,http://opendatacommunities.org/id/metropolitan-district-council/walsall ,WC131-425,31.10.2021,ADULT SOCIAL CARE,ADVANCE HEALTH CARE (UK) LTD,26/10/2021,326.97,6541-Domiciliary Care,THIRD PARTY PAYMENTS,PRIVATE CONTRACTOR,REVENUE
Walsall Council,http://opendatacommunities.org/id/metropolitan-district-council/walsall ,WC131-426,31.10.2021,ADULT SOCIAL CARE,ADVANCE HEALTH CARE (UK) LTD,26/10/2021,454.16,6541-Domiciliary Care,THIRD PARTY PAYMENTS,PRIVATE CONTRACTOR,REVENUE
Walsall Council,http://opendatacommunities.org/id/metropolitan-district-council/walsall ,WC131-427,31.10.2021,ADULT SOCIAL CARE,ADVANCE HEALTH CARE (UK) LTD,26/10/2021,490.49,6541-Domiciliary Care,THIRD PARTY PAYMENTS,PRIVATE CONTRACTOR,REVENUE
Walsall Council,http://opendatacommunities.org/id/metropolitan-district-council/walsall ,WC131-428,31.10.2021,ADULT SOCIAL CARE,ADVANCE HEALTH CARE (UK) LTD,26/10/2021,871.92,6541-Domiciliary Care,THIRD PARTY PAYMENTS,PRIVATE CONTRACTOR,REVENUE
Walsall Council,http://opendatacommunities.org/id/metropolitan-district-council/walsall ,WC131-429,31.10.2021,ADULT SOCIAL CARE,ADVANCE HEALTH CARE (UK) LTD,26/10/2021,326.97,6541-Domiciliary Care,THIRD PARTY PAYMENTS,PRIVATE CONTRACTOR,REVENUE
Walsall Council,http://opendatacommunities.org/id/metropolitan-district-council/walsall ,WC131-430,31.10.2021,ADULT SOCIAL CARE,ADVANCE HEALTH CARE (UK) LTD,26/10/2021,381.50,6541-Domiciliary Care,THIRD PARTY PAYMENTS,PRIVATE CONTRACTOR,REVENUE
Walsall Council,http://opendatacommunities.org/id/metropolitan-district-council/walsall ,WC131-431,31.10.2021,ADULT SOCIAL CARE,ADVANCE HEALTH CARE (UK) LTD,26/10/2021,490.49,6541-Domiciliary Care,THIRD PARTY PAYMENTS,PRIVATE CONTRACTOR,REVENUE
Walsall Council,http://opendatacommunities.org/id/metropolitan-district-council/walsall ,WC131-432,31.10.2021,ADULT SOCIAL CARE,ADVANCE HEALTH CARE (UK) LTD,26/10/2021,350.35,6541-Domiciliary Care,THIRD PARTY PAYMENTS,PRIVATE CONTRACTOR,REVENUE
Walsall Council,http://opendatacommunities.org/id/metropolitan-district-council/walsall ,WC131-433,31.10.2021,ADULT SOCIAL CARE,ADVANCE HEALTH CARE (UK) LTD,26/10/2021,490.49,6541-Domiciliary Care,THIRD PARTY PAYMENTS,PRIVATE CONTRACTOR,REVENUE
Walsall Council,http://opendatacommunities.org/id/metropolitan-district-council/walsall ,WC131-434,31.10.2021,ADULT SOCIAL CARE,ADVANCE HEALTH CARE (UK) LTD,26/10/2021,490.49,6541-Domiciliary Care,THIRD PARTY PAYMENTS,PRIVATE CONTRACTOR,REVENUE
Walsall Council,http://opendatacommunities.org/id/metropolitan-district-council/walsall ,WC131-435,31.10.2021,ADULT SOCIAL CARE,ADVANCE HEALTH CARE (UK) LTD,26/10/2021,490.49,6541-Domiciliary Care,THIRD PARTY PAYMENTS,PRIVATE CONTRACTOR,REVENUE
Walsall Council,http://opendatacommunities.org/id/metropolitan-district-council/walsall ,WC131-436,31.10.2021,ADULT SOCIAL CARE,ADVANCE HEALTH CARE (UK) LTD,26/10/2021,490.49,6541-Domiciliary Care,THIRD PARTY PAYMENTS,PRIVATE CONTRACTOR,REVENUE
Walsall Council,http://opendatacommunities.org/id/metropolitan-district-council/walsall ,WC131-437,31.10.2021,ADULT SOCIAL CARE,ADVANCE HEALTH CARE (UK) LTD,26/10/2021,833.03,6541-Domiciliary Care,THIRD PARTY PAYMENTS,PRIVATE CONTRACTOR,REVENUE
Walsall Council,http://opendatacommunities.org/id/metropolitan-district-council/walsall ,WC131-438,31.10.2021,ADULT SOCIAL CARE,ADVANCE HEALTH CARE (UK) LTD,26/10/2021,490.49,6541-Domiciliary Care,THIRD PARTY PAYMENTS,PRIVATE CONTRACTOR,REVENUE
Walsall Council,http://opendatacommunities.org/id/metropolitan-district-council/walsall ,WC131-439,31.10.2021,ADULT SOCIAL CARE,ADVANCE HEALTH CARE (UK) LTD,26/10/2021,490.49,6541-Domiciliary Care,THIRD PARTY PAYMENTS,PRIVATE CONTRACTOR,REVENUE
Walsall Council,http://opendatacommunities.org/id/metropolitan-district-council/walsall ,WC131-440,31.10.2021,ADULT SOCIAL CARE,ADVANCE HEALTH CARE (UK) LTD,26/10/2021,490.49,6541-Domiciliary Care,THIRD PARTY PAYMENTS,PRIVATE CONTRACTOR,REVENUE
Walsall Council,http://opendatacommunities.org/id/metropolitan-district-council/walsall ,WC131-441,31.10.2021,ADULT SOCIAL CARE,ADVANCE HEALTH CARE (UK) LTD,26/10/2021,435.96,6541-Domiciliary Care,THIRD PARTY PAYMENTS,PRIVATE CONTRACTOR,REVENUE
Walsall Council,http://opendatacommunities.org/id/metropolitan-district-council/walsall ,WC131-442,31.10.2021,ADULT SOCIAL CARE,ADVANCE HEALTH CARE (UK) LTD,26/10/2021,490.49,6541-Domiciliary Care,THIRD PARTY PAYMENTS,PRIVATE CONTRACTOR,REVENUE
Walsall Council,http://opendatacommunities.org/id/metropolitan-district-council/walsall ,WC131-443,31.10.2021,ADULT SOCIAL CARE,ADVANCE HEALTH CARE (UK) LTD,26/10/2021,490.49,6541-Domiciliary Care,THIRD PARTY PAYMENTS,PRIVATE CONTRACTOR,REVENUE
Walsall Council,http://opendatacommunities.org/id/metropolitan-district-council/walsall ,WC131-444,31.10.2021,ADULT SOCIAL CARE,ADVANCE HEALTH CARE (UK) LTD,26/10/2021,435.96,6541-Domiciliary Care,THIRD PARTY PAYMENTS,PRIVATE CONTRACTOR,REVENUE
Walsall Council,http://opendatacommunities.org/id/metropolitan-district-council/walsall ,WC131-445,31.10.2021,ADULT SOCIAL CARE,ADVANCE HEALTH CARE (UK) LTD,26/10/2021,490.49,6541-Domiciliary Care,THIRD PARTY PAYMENTS,PRIVATE CONTRACTOR,REVENUE
Walsall Council,http://opendatacommunities.org/id/metropolitan-district-council/walsall ,WC131-446,31.10.2021,ADULT SOCIAL CARE,ADVANCE HEALTH CARE (UK) LTD,26/10/2021,490.49,6541-Domiciliary Care,THIRD PARTY PAYMENTS,PRIVATE CONTRACTOR,REVENUE
Walsall Council,http://opendatacommunities.org/id/metropolitan-district-council/walsall ,WC131-447,31.10.2021,ADULT SOCIAL CARE,ADVANCE HEALTH CARE (UK) LTD,26/10/2021,435.96,6541-Domiciliary Care,THIRD PARTY PAYMENTS,PRIVATE CONTRACTOR,REVENUE
Walsall Council,http://opendatacommunities.org/id/metropolitan-district-council/walsall ,WC131-448,31.10.2021,ADULT SOCIAL CARE,ADVANCE HEALTH CARE (UK) LTD,26/10/2021,256.93,6541-Domiciliary Care,THIRD PARTY PAYMENTS,PRIVATE CONTRACTOR,REVENUE
Walsall Council,http://opendatacommunities.org/id/metropolitan-district-council/walsall ,WC131-449,31.10.2021,ADULT SOCIAL CARE,ADVANCE HEALTH CARE (UK) LTD,26/10/2021,435.96,6541-Domiciliary Care,THIRD PARTY PAYMENTS,PRIVATE CONTRACTOR,REVENUE
Walsall Council,http://opendatacommunities.org/id/metropolitan-district-council/walsall ,WC131-450,31.10.2021,ADULT SOCIAL CARE,ADVANCE HEALTH CARE (UK) LTD,26/10/2021,381.50,6541-Domiciliary Care,THIRD PARTY PAYMENTS,PRIVATE CONTRACTOR,REVENUE
Walsall Council,http://opendatacommunities.org/id/metropolitan-district-council/walsall ,WC131-451,31.10.2021,ADULT SOCIAL CARE,ADVANCE HEALTH CARE (UK) LTD,26/10/2021,490.49,6541-Domiciliary Care,THIRD PARTY PAYMENTS,PRIVATE CONTRACTOR,REVENUE
Walsall Council,http://opendatacommunities.org/id/metropolitan-district-council/walsall ,WC131-452,31.10.2021,ADULT SOCIAL CARE,ADVANCE HEALTH CARE (UK) LTD,26/10/2021,454.16,6541-Domiciliary Care,THIRD PARTY PAYMENTS,PRIVATE CONTRACTOR,REVENUE
Walsall Council,http://opendatacommunities.org/id/metropolitan-district-council/walsall ,WC131-453,31.10.2021,ADULT SOCIAL CARE,ADVANCE HEALTH CARE (UK) LTD,28/10/2021,"63,931.42",6541-Domiciliary Care,THIRD PARTY PAYMENTS,PRIVATE CONTRACTOR,REVENUE
Walsall Council,http://opendatacommunities.org/id/metropolitan-district-council/walsall ,WC131-454,31.10.2021,ADULT SOCIAL CARE,ADVANCE HEALTH CARE (UK) LTD,28/10/2021,"56,523.92",6541-Domiciliary Care,THIRD PARTY PAYMENTS,PRIVATE CONTRACTOR,REVENUE
Walsall Council,http://opendatacommunities.org/id/metropolitan-district-council/walsall ,WC131-455,31.10.2021,ADULT SOCIAL CARE,ADVANCE HEALTH CARE (UK) LTD,28/10/2021,"63,137.93",6541-Domiciliary Care,THIRD PARTY PAYMENTS,PRIVATE CONTRACTOR,REVENUE
Walsall Council,http://opendatacommunities.org/id/metropolitan-district-council/walsall ,WC131-456,31.10.2021,ADULT SOCIAL CARE,ADVANCE HEALTH CARE (UK) LTD,20/10/2021,"2,066.28",6541-Domiciliary Care,THIRD PARTY PAYMENTS,PRIVATE CONTRACTOR,REVENUE
Walsall Council,http://opendatacommunities.org/id/metropolitan-district-council/walsall ,WC131-457,31.10.2021,ADULT SOCIAL CARE,ADVANCE HEALTH CARE (UK) LTD,20/10/2021,"1,022.63",6541-Domiciliary Care,THIRD PARTY PAYMENTS,PRIVATE CONTRACTOR,REVENUE
Walsall Council,http://opendatacommunities.org/id/metropolitan-district-council/walsall ,WC131-458,31.10.2021,ADULT SOCIAL CARE,ADVANCE HEALTH CARE (UK) LTD,20/10/2021,"1,126.04",6541-Domiciliary Care,THIRD PARTY PAYMENTS,PRIVATE CONTRACTOR,REVENUE
Walsall Council,http://opendatacommunities.org/id/metropolitan-district-council/walsall ,WC131-459,31.10.2021,ADULT SOCIAL CARE,ADVANCE HEALTH CARE (UK) LTD,20/10/2021,"1,744.12",6541-Domiciliary Care,THIRD PARTY PAYMENTS,PRIVATE CONTRACTOR,REVENUE
Walsall Council,http://opendatacommunities.org/id/metropolitan-district-council/walsall ,WC131-460,31.10.2021,ADULT SOCIAL CARE,ADVANCE HEALTH CARE (UK) LTD,20/10/2021,"1,269.93",6541-Domiciliary Care,THIRD PARTY PAYMENTS,PRIVATE CONTRACTOR,REVENUE
Walsall Council,http://opendatacommunities.org/id/metropolitan-district-council/walsall ,WC131-461,31.10.2021,ADULT SOCIAL CARE,ADVANCE HEALTH CARE (UK) LTD,20/10/2021,472.36,6541-Domiciliary Care,THIRD PARTY PAYMENTS,PRIVATE CONTRACTOR,REVENUE
Walsall Council,http://opendatacommunities.org/id/metropolitan-district-council/walsall ,WC131-462,31.10.2021,ADULT SOCIAL CARE,ADVANCE HEALTH CARE (UK) LTD,20/10/2021,"2,548.57",6541-Domiciliary Care,THIRD PARTY PAYMENTS,PRIVATE CONTRACTOR,REVENUE
Walsall Council,http://opendatacommunities.org/id/metropolitan-district-council/walsall ,WC131-463,31.10.2021,CHILDRENS,ADVENTURELAND DAY NURSERY,25/10/2021,"7,654.50",1184-Other-Grants to Other Orgs,SUPPLIES & SERVICES,GRANTS (EXP) & SUBSCRIPTIONS,REVENUE
Walsall Council,http://opendatacommunities.org/id/metropolitan-district-council/walsall ,WC131-464,31.10.2021,CHILDRENS,ADVENTURELAND DAY NURSERY,25/10/2021,"6,463.80",1184-Other-Grants to Other Orgs,SUPPLIES & SERVICES,GRANTS (EXP) & SUBSCRIPTIONS,REVENUE
Walsall Council,http://opendatacommunities.org/id/metropolitan-district-council/walsall ,WC131-465,31.10.2021,ADULT SOCIAL CARE,ADVINIA CARE HOMES LTD - HAMMERWICH HALL CARE HOME,26/10/2021,"2,064.44",6541-Residential,THIRD PARTY PAYMENTS,PRIVATE CONTRACTOR,REVENUE
Walsall Council,http://opendatacommunities.org/id/metropolitan-district-council/walsall ,WC131-466,31.10.2021,ADULT SOCIAL CARE,ADVINIA CARE HOMES LTD - HAMMERWICH HALL CARE HOME,26/10/2021,"2,331.08",6541-Residential EMI,THIRD PARTY PAYMENTS,PRIVATE CONTRACTOR,REVENUE
Walsall Council,http://opendatacommunities.org/id/metropolitan-district-council/walsall ,WC131-467,31.10.2021,"ECONOMY, ENVIRONMENT & COMMUNITIES",AECOM INFRASTRUCTURE & ENVIRONMENT UK LIMITED,06/10/2021,280.39,6411-Professional Fees & Services,SUPPLIES & SERVICES,SERVICES,REVENUE
Walsall Council,http://opendatacommunities.org/id/metropolitan-district-council/walsall ,WC131-468,31.10.2021,"ECONOMY, ENVIRONMENT & COMMUNITIES",AFGHAN COMMUNITY & WELFARE CENTRE,21/10/2021,"4,247.14",6430-Consultant Fees,SUPPLIES & SERVICES,SERVICES,REVENUE
Walsall Council,http://opendatacommunities.org/id/metropolitan-district-council/walsall ,WC131-469,31.10.2021,CHILDRENS,REDACTED,21/10/2021,546.76,6223-Foster Carers Maintenance Allowance,TRANSFER PAYMENTS,CHILDREN SOCIAL SERVICES CLIENT,REVENUE
Walsall Council,http://opendatacommunities.org/id/metropolitan-district-council/walsall ,WC131-470,31.10.2021,CHILDRENS,REDACTED,21/10/2021,546.76,6223-Foster Carers Maintenance Allowance,TRANSFER PAYMENTS,CHILDREN SOCIAL SERVICES CLIENT,REVENUE
Walsall Council,http://opendatacommunities.org/id/metropolitan-district-council/walsall ,WC131-471,31.10.2021,CHILDRENS,REDACTED,21/10/2021,957.81,6223-Internal Foster Carers-Carer Fees,TRANSFER PAYMENTS,CHILDREN SOCIAL SERVICES CLIENT,REVENUE
Walsall Council,http://opendatacommunities.org/id/metropolitan-district-council/walsall ,WC131-472,31.10.2021,RESOURCES AND TRANSFORMATION,AFRICAN FRENCH SPEAKING COMMUNITY SUPPORT,13/10/2021,"3,561.81",6312-Grants to Other Orgs,SUPPLIES & SERVICES,GRANTS (EXP) & SUBSCRIPTIONS,REVENUE
Walsall Council,http://opendatacommunities.org/id/metropolitan-district-council/walsall ,WC131-473,31.10.2021,RESOURCES AND TRANSFORMATION,AGILISYS LTD,05/10/2021,"95,000.00",6623-Computer Equipment,SUPPLIES & SERVICES,COMMUNICATIONS & COMPUTING,REVENUE
Walsall Council,http://opendatacommunities.org/id/metropolitan-district-council/walsall ,WC131-474,31.10.2021,RESOURCES AND TRANSFORMATION CAPITAL,AGILISYS LTD,18/10/2021,"6,272.00",7300-Consultants Fees,CAPITAL,"NEW CONSTRUCTION,CONVERSION & RENOVATION",CAPITAL
Walsall Council,http://opendatacommunities.org/id/metropolitan-district-council/walsall ,WC131-475,31.10.2021,RESOURCES AND TRANSFORMATION CAPITAL,AGILISYS LTD,18/10/2021,"3,950.00",7300-Consultants Fees,CAPITAL,"NEW CONSTRUCTION,CONVERSION & RENOVATION",CAPITAL
Walsall Council,http://opendatacommunities.org/id/metropolitan-district-council/walsall ,WC131-476,31.10.2021,RESOURCES AND TRANSFORMATION CAPITAL,AGILISYS LTD,18/10/2021,"11,850.00",7300-Consultants Fees,CAPITAL,"NEW CONSTRUCTION,CONVERSION & RENOVATION",CAPITAL
Walsall Council,http://opendatacommunities.org/id/metropolitan-district-council/walsall ,WC131-477,31.10.2021,RESOURCES AND TRANSFORMATION CAPITAL,AGILISYS LTD,18/10/2021,"22,515.00",7300-Consultants Fees,CAPITAL,"NEW CONSTRUCTION,CONVERSION & RENOVATION",CAPITAL
Walsall Council,http://opendatacommunities.org/id/metropolitan-district-council/walsall ,WC131-478,31.10.2021,RESOURCES AND TRANSFORMATION CAPITAL,AGILISYS LTD,18/10/2021,"10,350.00",7300-Consultants Fees,CAPITAL,"NEW CONSTRUCTION,CONVERSION & RENOVATION",CAPITAL
Walsall Council,http://opendatacommunities.org/id/metropolitan-district-council/walsall ,WC131-479,31.10.2021,ADULT SOCIAL CARE,REDACTED,06/10/2021,"2,480.64",6541-Direct Payment,THIRD PARTY PAYMENTS,PRIVATE CONTRACTOR,REVENUE
Walsall Council,http://opendatacommunities.org/id/metropolitan-district-council/walsall ,WC131-480,31.10.2021,CHILDRENS,AJ PARKES COMMERCIAL & DOMESTIC LAUDRY & DISHWASHER SPECIALISTS,01/10/2021,383.32,6223-Repair & Maintenance of Furniture & Equipment,SUPPLIES & SERVICES,EQUIPMENT FURNITURE & MATERIALS,REVENUE
Walsall Council,http://opendatacommunities.org/id/metropolitan-district-council/walsall ,WC131-481,31.10.2021,RESOURCES AND TRANSFORMATION,ALASDAIR CANT & ASSOCIATES LIMITED,22/10/2021,"2,605.50",6625-Consultant Fees,SUPPLIES & SERVICES,SERVICES,REVENUE
Walsall Council,http://opendatacommunities.org/id/metropolitan-district-council/walsall ,WC131-482,31.10.2021,CHILDRENS,ALDRIDGE & BARONS LIMITED,11/10/2021,"1,848.00",6241-Hire of Vehicle with Driver,TRANSPORT,DIRECT TRANSPORT COSTS,REVENUE
Walsall Council,http://opendatacommunities.org/id/metropolitan-district-council/walsall ,WC131-483,31.10.2021,CHILDRENS,ALDRIDGE & BARONS LIMITED,11/10/2021,"1,825.46",6241-Hire of Vehicle with Driver,TRANSPORT,DIRECT TRANSPORT COSTS,REVENUE
Walsall Council,http://opendatacommunities.org/id/metropolitan-district-council/walsall ,WC131-484,31.10.2021,CHILDRENS,ALDRIDGE & BARONS LIMITED,11/10/2021,"1,181.70",6241-Hire of Vehicle with Driver,TRANSPORT,DIRECT TRANSPORT COSTS,REVENUE
Walsall Council,http://opendatacommunities.org/id/metropolitan-district-council/walsall ,WC131-485,31.10.2021,CHILDRENS,ALDRIDGE & BARONS LIMITED,11/10/2021,"1,242.54",6241-Hire of Vehicle with Driver,TRANSPORT,DIRECT TRANSPORT COSTS,REVENUE
Walsall Council,http://opendatacommunities.org/id/metropolitan-district-council/walsall ,WC131-486,31.10.2021,CHILDRENS,ALDRIDGE & BARONS LIMITED,11/10/2021,"1,350.00",6241-Hire of Vehicle with Driver,TRANSPORT,DIRECT TRANSPORT COSTS,REVENUE
Walsall Council,http://opendatacommunities.org/id/metropolitan-district-council/walsall ,WC131-487,31.10.2021,CHILDRENS,ALDRIDGE & BARONS LIMITED,11/10/2021,"1,626.90",6241-Hire of Vehicle with Driver,TRANSPORT,DIRECT TRANSPORT COSTS,REVENUE
Walsall Council,http://opendatacommunities.org/id/metropolitan-district-council/walsall ,WC131-488,31.10.2021,CHILDRENS,ALDRIDGE & BARONS LIMITED,11/10/2021,"1,470.00",6241-Hire of Vehicle with Driver,TRANSPORT,DIRECT TRANSPORT COSTS,REVENUE
Walsall Council,http://opendatacommunities.org/id/metropolitan-district-council/walsall ,WC131-489,31.10.2021,CHILDRENS,ALDRIDGE & BARONS LIMITED,11/10/2021,"1,560.00",6241-Hire of Vehicle with Driver,TRANSPORT,DIRECT TRANSPORT COSTS,REVENUE
Walsall Council,http://opendatacommunities.org/id/metropolitan-district-council/walsall ,WC131-490,31.10.2021,CHILDRENS,ALDRIDGE & BARONS LIMITED,11/10/2021,"1,969.50",6241-Hire of Vehicle with Driver,TRANSPORT,DIRECT TRANSPORT COSTS,REVENUE
Walsall Council,http://opendatacommunities.org/id/metropolitan-district-council/walsall ,WC131-491,31.10.2021,CHILDRENS,ALDRIDGE & BARONS LIMITED,11/10/2021,"1,917.00",6241-Hire of Vehicle with Driver,TRANSPORT,DIRECT TRANSPORT COSTS,REVENUE
Walsall Council,http://opendatacommunities.org/id/metropolitan-district-council/walsall ,WC131-492,31.10.2021,CHILDRENS,ALDRIDGE & BARONS LIMITED,11/10/2021,"1,091.40",6241-Hire of Vehicle with Driver,TRANSPORT,DIRECT TRANSPORT COSTS,REVENUE
Walsall Council,http://opendatacommunities.org/id/metropolitan-district-council/walsall ,WC131-493,31.10.2021,CHILDRENS,ALDRIDGE & BARONS LIMITED,11/10/2021,"1,810.50",6241-Hire of Vehicle with Driver,TRANSPORT,DIRECT TRANSPORT COSTS,REVENUE
Walsall Council,http://opendatacommunities.org/id/metropolitan-district-council/walsall ,WC131-494,31.10.2021,CHILDRENS,ALDRIDGE & BARONS LIMITED,11/10/2021,522.00,6241-Hire of Vehicle with Driver,TRANSPORT,DIRECT TRANSPORT COSTS,REVENUE
Walsall Council,http://opendatacommunities.org/id/metropolitan-district-council/walsall ,WC131-495,31.10.2021,CHILDRENS,ALDRIDGE & BARONS LIMITED,11/10/2021,"1,674.00",6241-Hire of Vehicle with Driver,TRANSPORT,DIRECT TRANSPORT COSTS,REVENUE
Walsall Council,http://opendatacommunities.org/id/metropolitan-district-council/walsall ,WC131-496,31.10.2021,CHILDRENS,ALDRIDGE & BARONS LIMITED,11/10/2021,"1,641.69",6241-Hire of Vehicle with Driver,TRANSPORT,DIRECT TRANSPORT COSTS,REVENUE
Walsall Council,http://opendatacommunities.org/id/metropolitan-district-council/walsall ,WC131-497,31.10.2021,CHILDRENS,ALDRIDGE & BARONS LIMITED,11/10/2021,"1,264.90",6241-Hire of Vehicle with Driver,TRANSPORT,DIRECT TRANSPORT COSTS,REVENUE
Walsall Council,http://opendatacommunities.org/id/metropolitan-district-council/walsall ,WC131-498,31.10.2021,CHILDRENS,ALDRIDGE & BARONS LIMITED,11/10/2021,"2,002.60",6241-Hire of Vehicle with Driver,TRANSPORT,DIRECT TRANSPORT COSTS,REVENUE
Walsall Council,http://opendatacommunities.org/id/metropolitan-district-council/walsall ,WC131-499,31.10.2021,CHILDRENS,ALDRIDGE & BARONS LIMITED,11/10/2021,"1,350.00",6241-Hire of Vehicle with Driver,TRANSPORT,DIRECT TRANSPORT COSTS,REVENUE
Walsall Council,http://opendatacommunities.org/id/metropolitan-district-council/walsall ,WC131-500,31.10.2021,CHILDRENS,ALDRIDGE & BARONS LIMITED,11/10/2021,"1,287.75",6241-Hire of Vehicle with Driver,TRANSPORT,DIRECT TRANSPORT COSTS,REVENUE
Walsall Council,http://opendatacommunities.org/id/metropolitan-district-council/walsall ,WC131-501,31.10.2021,CHILDRENS,ALDRIDGE & BARONS LIMITED,11/10/2021,"1,019.52",6241-Hire of Vehicle with Driver,TRANSPORT,DIRECT TRANSPORT COSTS,REVENUE
Walsall Council,http://opendatacommunities.org/id/metropolitan-district-council/walsall ,WC131-502,31.10.2021,CHILDRENS,ALDRIDGE & BARONS LIMITED,11/10/2021,"1,134.00",6241-Hire of Vehicle with Driver,TRANSPORT,DIRECT TRANSPORT COSTS,REVENUE
Walsall Council,http://opendatacommunities.org/id/metropolitan-district-council/walsall ,WC131-503,31.10.2021,CHILDRENS,ALDRIDGE & BARONS LIMITED,11/10/2021,"1,936.30",6241-Hire of Vehicle with Driver,TRANSPORT,DIRECT TRANSPORT COSTS,REVENUE
Walsall Council,http://opendatacommunities.org/id/metropolitan-district-council/walsall ,WC131-504,31.10.2021,CHILDRENS,ALDRIDGE & BARONS LIMITED,11/10/2021,"1,737.00",6241-Hire of Vehicle with Driver,TRANSPORT,DIRECT TRANSPORT COSTS,REVENUE
Walsall Council,http://opendatacommunities.org/id/metropolitan-district-council/walsall ,WC131-505,31.10.2021,CHILDRENS,ALDRIDGE & BARONS LIMITED,11/10/2021,"1,350.00",6241-Hire of Vehicle with Driver,TRANSPORT,DIRECT TRANSPORT COSTS,REVENUE
Walsall Council,http://opendatacommunities.org/id/metropolitan-district-council/walsall ,WC131-506,31.10.2021,CHILDRENS,ALDRIDGE & BARONS LIMITED,11/10/2021,"1,650.00",6241-Hire of Vehicle with Driver,TRANSPORT,DIRECT TRANSPORT COSTS,REVENUE
Walsall Council,http://opendatacommunities.org/id/metropolitan-district-council/walsall ,WC131-507,31.10.2021,CHILDRENS,ALDRIDGE & BARONS LIMITED,11/10/2021,"1,230.00",6241-Hire of Vehicle with Driver,TRANSPORT,DIRECT TRANSPORT COSTS,REVENUE
Walsall Council,http://opendatacommunities.org/id/metropolitan-district-council/walsall ,WC131-508,31.10.2021,CHILDRENS,ALDRIDGE & BARONS LIMITED,07/10/2021,"1,354.50",6241-Hire of Vehicle with Driver,TRANSPORT,DIRECT TRANSPORT COSTS,REVENUE
Walsall Council,http://opendatacommunities.org/id/metropolitan-district-council/walsall ,WC131-509,31.10.2021,CHILDRENS,ALDRIDGE & BARONS LIMITED,07/10/2021,"1,488.75",6241-Hire of Vehicle with Driver,TRANSPORT,DIRECT TRANSPORT COSTS,REVENUE
Walsall Council,http://opendatacommunities.org/id/metropolitan-district-council/walsall ,WC131-510,31.10.2021,CHILDRENS,ALDRIDGE ARCHITECTURAL DESIGN LTD,08/10/2021,"2,383.50",6223-Materials,SUPPLIES & SERVICES,EQUIPMENT FURNITURE & MATERIALS,REVENUE
Walsall Council,http://opendatacommunities.org/id/metropolitan-district-council/walsall ,WC131-511,31.10.2021,ADULT SOCIAL CARE,REDACTED,06/10/2021,"1,480.32",6541-Direct Payment,THIRD PARTY PAYMENTS,PRIVATE CONTRACTOR,REVENUE
Walsall Council,http://opendatacommunities.org/id/metropolitan-district-council/walsall ,WC131-512,31.10.2021,ADULT SOCIAL CARE,ALEXANDRA HOUSE CARE SERVICES LTD T/A STONEBRIDGE NURSING HOME,26/10/2021,"7,434.72",6541-Residential,THIRD PARTY PAYMENTS,PRIVATE CONTRACTOR,REVENUE
Walsall Council,http://opendatacommunities.org/id/metropolitan-district-council/walsall ,WC131-513,31.10.2021,ADULT SOCIAL CARE,REDACTED,06/10/2021,957.44,6541-Direct Payment,THIRD PARTY PAYMENTS,PRIVATE CONTRACTOR,REVENUE
Walsall Council,http://opendatacommunities.org/id/metropolitan-district-council/walsall ,WC131-514,31.10.2021,CHILDRENS,REDACTED,21/10/2021,308.60,6223-Special Guardianship Orders,TRANSFER PAYMENTS,CHILDREN SOCIAL SERVICES CLIENT,REVENUE
Walsall Council,http://opendatacommunities.org/id/metropolitan-district-council/walsall ,WC131-515,31.10.2021,"ECONOMY, ENVIRONMENT & COMMUNITIES",ALLIANCE LEISURE SERVICES LTD,07/10/2021,"16,390.00",6413-Materials,SUPPLIES & SERVICES,EQUIPMENT FURNITURE & MATERIALS,REVENUE
Walsall Council,http://opendatacommunities.org/id/metropolitan-district-council/walsall ,WC131-516,31.10.2021,"ECONOMY, ENVIRONMENT & COMMUNITIES",ALLIANCE LEISURE SERVICES LTD,13/10/2021,"18,010.12",6413-Repair & Maintenance of Furniture & Equipment,SUPPLIES & SERVICES,EQUIPMENT FURNITURE & MATERIALS,REVENUE
Walsall Council,http://opendatacommunities.org/id/metropolitan-district-council/walsall ,WC131-517,31.10.2021,RESOURCES AND TRANSFORMATION,ALLIED PUBLICITY SERVICES (MANCHESTER) LIMITED T/A APS GROUP,28/10/2021,"-1,320.50",6312-External Printing Services,SUPPLIES & SERVICES,PRINTING STATIONERY & GENERAL OFFICE,REVENUE
Walsall Council,http://opendatacommunities.org/id/metropolitan-district-council/walsall ,WC131-518,31.10.2021,RESOURCES AND TRANSFORMATION,ALLIED PUBLICITY SERVICES (MANCHESTER) LIMITED T/A APS GROUP,28/10/2021,"1,678.31",6312-External Printing Services,SUPPLIES & SERVICES,PRINTING STATIONERY & GENERAL OFFICE,REVENUE
Walsall Council,http://opendatacommunities.org/id/metropolitan-district-council/walsall ,WC131-519,31.10.2021,RESOURCES AND TRANSFORMATION,ALLIED PUBLICITY SERVICES (MANCHESTER) LIMITED T/A APS GROUP,28/10/2021,"1,800.75",6312-External Printing Services,SUPPLIES & SERVICES,PRINTING STATIONERY & GENERAL OFFICE,REVENUE
Walsall Council,http://opendatacommunities.org/id/metropolitan-district-council/walsall ,WC131-520,31.10.2021,ADULT SOCIAL CARE,ALMA COURT,26/10/2021,"6,619.12",6541-Residential,THIRD PARTY PAYMENTS,PRIVATE CONTRACTOR,REVENUE
Walsall Council,http://opendatacommunities.org/id/metropolitan-district-council/walsall ,WC131-521,31.10.2021,ADULT SOCIAL CARE,ALMA COURT,26/10/2021,"4,764.88",6541-Nursing EMI,THIRD PARTY PAYMENTS,PRIVATE CONTRACTOR,REVENUE
Walsall Council,http://opendatacommunities.org/id/metropolitan-district-council/walsall ,WC131-522,31.10.2021,ADULT SOCIAL CARE,ALMA COURT,26/10/2021,"4,200.00",6541-Nursing EMI,THIRD PARTY PAYMENTS,PRIVATE CONTRACTOR,REVENUE
Walsall Council,http://opendatacommunities.org/id/metropolitan-district-council/walsall ,WC131-523,31.10.2021,ADULT SOCIAL CARE,ALMA COURT,26/10/2021,"3,826.96",6541-Nursing EMI,THIRD PARTY PAYMENTS,PRIVATE CONTRACTOR,REVENUE
Walsall Council,http://opendatacommunities.org/id/metropolitan-district-council/walsall ,WC131-524,31.10.2021,ADULT SOCIAL CARE,ALMA COURT,26/10/2021,"3,626.96",6541-Nursing EMI,THIRD PARTY PAYMENTS,PRIVATE CONTRACTOR,REVENUE
Walsall Council,http://opendatacommunities.org/id/metropolitan-district-council/walsall ,WC131-525,31.10.2021,ADULT SOCIAL CARE,ALMA COURT,08/10/2021,"5,922.00",6554-Professional Services-Priv Contractor & Other Agencies,THIRD PARTY PAYMENTS,PRIVATE CONTRACTOR,REVENUE
Walsall Council,http://opendatacommunities.org/id/metropolitan-district-council/walsall ,WC131-526,31.10.2021,CHILDRENS,ALMOZENE NURSERY & CHILDRENS CENTRE,25/10/2021,"5,953.50",1184-Other-Grants to Other Orgs,SUPPLIES & SERVICES,GRANTS (EXP) & SUBSCRIPTIONS,REVENUE
Walsall Council,http://opendatacommunities.org/id/metropolitan-district-council/walsall ,WC131-527,31.10.2021,"ECONOMY, ENVIRONMENT & COMMUNITIES",ALMOZENE NURSERY & CHILDRENS CENTRE,22/10/2021,708.18,6313-Grants to Other Orgs,SUPPLIES & SERVICES,GRANTS (EXP) & SUBSCRIPTIONS,REVENUE
Walsall Council,http://opendatacommunities.org/id/metropolitan-district-council/walsall ,WC131-528,31.10.2021,"ECONOMY, ENVIRONMENT & COMMUNITIES",ALMOZENE NURSERY & CHILDRENS CENTRE,22/10/2021,935.66,6313-Grants to Other Orgs,SUPPLIES & SERVICES,GRANTS (EXP) & SUBSCRIPTIONS,REVENUE
Walsall Council,http://opendatacommunities.org/id/metropolitan-district-council/walsall ,WC131-529,31.10.2021,"ECONOMY, ENVIRONMENT & COMMUNITIES",ALMOZENE NURSERY & CHILDRENS CENTRE,07/10/2021,500.00,6313-Grants to Other Orgs,SUPPLIES & SERVICES,GRANTS (EXP) & SUBSCRIPTIONS,REVENUE
Walsall Council,http://opendatacommunities.org/id/metropolitan-district-council/walsall ,WC131-530,31.10.2021,"ECONOMY, ENVIRONMENT & COMMUNITIES",ALMOZENE NURSERY & CHILDRENS CENTRE,22/10/2021,623.20,6313-Grants to Other Orgs,SUPPLIES & SERVICES,GRANTS (EXP) & SUBSCRIPTIONS,REVENUE
Walsall Council,http://opendatacommunities.org/id/metropolitan-district-council/walsall ,WC131-531,31.10.2021,ADULT SOCIAL CARE,ALPHA HEALTH CARE LTD,26/10/2021,"2,331.08",6541-Residential EMI,THIRD PARTY PAYMENTS,PRIVATE CONTRACTOR,REVENUE
Walsall Council,http://opendatacommunities.org/id/metropolitan-district-council/walsall ,WC131-532,31.10.2021,ADULT SOCIAL CARE,ALPHA HEALTH CARE LTD,26/10/2021,"2,854.56",6541-Residential EMI,THIRD PARTY PAYMENTS,PRIVATE CONTRACTOR,REVENUE
Walsall Council,http://opendatacommunities.org/id/metropolitan-district-council/walsall ,WC131-533,31.10.2021,ADULT SOCIAL CARE,ALPHA HEALTH CARE LTD,26/10/2021,"2,722.96",6541-Nursing EMI,THIRD PARTY PAYMENTS,PRIVATE CONTRACTOR,REVENUE
Walsall Council,http://opendatacommunities.org/id/metropolitan-district-council/walsall ,WC131-534,31.10.2021,ADULT SOCIAL CARE,ALPHA HEALTH CARE LTD,26/10/2021,"2,722.96",6541-Nursing EMI,THIRD PARTY PAYMENTS,PRIVATE CONTRACTOR,REVENUE
Walsall Council,http://opendatacommunities.org/id/metropolitan-district-council/walsall ,WC131-535,31.10.2021,ADULT SOCIAL CARE,ALPHA HEALTH CARE LTD,26/10/2021,"3,083.08",6541-Residential EMI,THIRD PARTY PAYMENTS,PRIVATE CONTRACTOR,REVENUE
Walsall Council,http://opendatacommunities.org/id/metropolitan-district-council/walsall ,WC131-536,31.10.2021,ADULT SOCIAL CARE,ALPHA HEALTH CARE LTD,26/10/2021,"1,540.00",6541-Residential & Nursing Care Placements,THIRD PARTY PAYMENTS,PRIVATE CONTRACTOR,REVENUE
Walsall Council,http://opendatacommunities.org/id/metropolitan-district-council/walsall ,WC131-537,31.10.2021,ADULT SOCIAL CARE,ALPHA HEALTH CARE LTD,26/10/2021,"14,436.24",6541-Residential,THIRD PARTY PAYMENTS,PRIVATE CONTRACTOR,REVENUE
Walsall Council,http://opendatacommunities.org/id/metropolitan-district-council/walsall ,WC131-538,31.10.2021,ADULT SOCIAL CARE,ALPHA HEALTH CARE LTD,26/10/2021,"3,091.28",6541-Nursing EMI,THIRD PARTY PAYMENTS,PRIVATE CONTRACTOR,REVENUE
Walsall Council,http://opendatacommunities.org/id/metropolitan-district-council/walsall ,WC131-539,31.10.2021,ADULT SOCIAL CARE,ALPHA HEALTH CARE LTD,26/10/2021,"2,331.08",6541-Residential EMI,THIRD PARTY PAYMENTS,PRIVATE CONTRACTOR,REVENUE
Walsall Council,http://opendatacommunities.org/id/metropolitan-district-council/walsall ,WC131-540,31.10.2021,ADULT SOCIAL CARE,ALPHA HEALTH CARE LTD,26/10/2021,"6,249.60",6541-Residential,THIRD PARTY PAYMENTS,PRIVATE CONTRACTOR,REVENUE
Walsall Council,http://opendatacommunities.org/id/metropolitan-district-council/walsall ,WC131-541,31.10.2021,ADULT SOCIAL CARE,ALPHA HEALTH CARE LTD,26/10/2021,"5,656.00",6541-Residential,THIRD PARTY PAYMENTS,PRIVATE CONTRACTOR,REVENUE
Walsall Council,http://opendatacommunities.org/id/metropolitan-district-council/walsall ,WC131-542,31.10.2021,ADULT SOCIAL CARE,ALPHA HEALTH CARE LTD,26/10/2021,"3,064.32",6541-Nursing EMI,THIRD PARTY PAYMENTS,PRIVATE CONTRACTOR,REVENUE
Walsall Council,http://opendatacommunities.org/id/metropolitan-district-council/walsall ,WC131-543,31.10.2021,ADULT SOCIAL CARE,ALPHA HEALTH CARE LTD,26/10/2021,"3,091.28",6541-Nursing EMI,THIRD PARTY PAYMENTS,PRIVATE CONTRACTOR,REVENUE
Walsall Council,http://opendatacommunities.org/id/metropolitan-district-council/walsall ,WC131-544,31.10.2021,ADULT SOCIAL CARE,ALPHA HEALTH CARE LTD,26/10/2021,"2,331.08",6541-Residential EMI,THIRD PARTY PAYMENTS,PRIVATE CONTRACTOR,REVENUE
Walsall Council,http://opendatacommunities.org/id/metropolitan-district-council/walsall ,WC131-545,31.10.2021,ADULT SOCIAL CARE,ALPHA HEALTH CARE LTD,26/10/2021,"-3,633.63",6541-Residential EMI,THIRD PARTY PAYMENTS,PRIVATE CONTRACTOR,REVENUE
Walsall Council,http://opendatacommunities.org/id/metropolitan-district-council/walsall ,WC131-546,31.10.2021,ADULT SOCIAL CARE,ALPHA HEALTH CARE LTD,26/10/2021,"3,363.08",6541-Residential EMI,THIRD PARTY PAYMENTS,PRIVATE CONTRACTOR,REVENUE
Walsall Council,http://opendatacommunities.org/id/metropolitan-district-council/walsall ,WC131-547,31.10.2021,ADULT SOCIAL CARE,ALPHA HEALTH CARE LTD,26/10/2021,"3,049.60",6541-Nursing EMI,THIRD PARTY PAYMENTS,PRIVATE CONTRACTOR,REVENUE
Walsall Council,http://opendatacommunities.org/id/metropolitan-district-council/walsall ,WC131-548,31.10.2021,ADULT SOCIAL CARE,ALPHA HEALTH CARE LTD,26/10/2021,"3,091.28",6541-Nursing EMI,THIRD PARTY PAYMENTS,PRIVATE CONTRACTOR,REVENUE
Walsall Council,http://opendatacommunities.org/id/metropolitan-district-council/walsall ,WC131-549,31.10.2021,ADULT SOCIAL CARE,ALPHA HEALTH CARE LTD,26/10/2021,"3,091.28",6541-Nursing EMI,THIRD PARTY PAYMENTS,PRIVATE CONTRACTOR,REVENUE
Walsall Council,http://opendatacommunities.org/id/metropolitan-district-council/walsall ,WC131-550,31.10.2021,ADULT SOCIAL CARE,ALPHA HEALTH CARE LTD,26/10/2021,"7,000.00",6541-Residential,THIRD PARTY PAYMENTS,PRIVATE CONTRACTOR,REVENUE
Walsall Council,http://opendatacommunities.org/id/metropolitan-district-council/walsall ,WC131-551,31.10.2021,ADULT SOCIAL CARE,ALPHA HEALTH CARE LTD,26/10/2021,"3,340.00",6541-Residential EMI,THIRD PARTY PAYMENTS,PRIVATE CONTRACTOR,REVENUE
Walsall Council,http://opendatacommunities.org/id/metropolitan-district-council/walsall ,WC131-552,31.10.2021,ADULT SOCIAL CARE,ALPHA HEALTH CARE LTD,26/10/2021,"7,026.96",6541-Nursing EMI,THIRD PARTY PAYMENTS,PRIVATE CONTRACTOR,REVENUE
Walsall Council,http://opendatacommunities.org/id/metropolitan-district-council/walsall ,WC131-553,31.10.2021,ADULT SOCIAL CARE,ALPHA HEALTH CARE LTD,26/10/2021,"2,722.96",6541-Nursing EMI,THIRD PARTY PAYMENTS,PRIVATE CONTRACTOR,REVENUE
Walsall Council,http://opendatacommunities.org/id/metropolitan-district-council/walsall ,WC131-554,31.10.2021,ADULT SOCIAL CARE,ALPHA HEALTH CARE LTD,26/10/2021,"2,961.72",6541-Nursing,THIRD PARTY PAYMENTS,PRIVATE CONTRACTOR,REVENUE
Walsall Council,http://opendatacommunities.org/id/metropolitan-district-council/walsall ,WC131-555,31.10.2021,ADULT SOCIAL CARE,ALPHA HEALTH CARE LTD,26/10/2021,"9,017.14",6541-Nursing EMI,THIRD PARTY PAYMENTS,PRIVATE CONTRACTOR,REVENUE
Walsall Council,http://opendatacommunities.org/id/metropolitan-district-council/walsall ,WC131-556,31.10.2021,ADULT SOCIAL CARE,ALPHA HEALTH CARE LTD,26/10/2021,"2,731.08",6541-Residential EMI,THIRD PARTY PAYMENTS,PRIVATE CONTRACTOR,REVENUE
Walsall Council,http://opendatacommunities.org/id/metropolitan-district-council/walsall ,WC131-557,31.10.2021,ADULT SOCIAL CARE,ALPHA HEALTH CARE LTD,26/10/2021,"3,626.96",6541-Nursing EMI,THIRD PARTY PAYMENTS,PRIVATE CONTRACTOR,REVENUE
Walsall Council,http://opendatacommunities.org/id/metropolitan-district-council/walsall ,WC131-558,31.10.2021,ADULT SOCIAL CARE,ALPHA HEALTH CARE LTD,26/10/2021,"2,600.00",6541-Residential,THIRD PARTY PAYMENTS,PRIVATE CONTRACTOR,REVENUE
Walsall Council,http://opendatacommunities.org/id/metropolitan-district-council/walsall ,WC131-559,31.10.2021,CHILDRENS,ALPHA TRAINING ACADEMY UK LTD,06/10/2021,"1,050.00",1187-Materials,SUPPLIES & SERVICES,EQUIPMENT FURNITURE & MATERIALS,REVENUE
Walsall Council,http://opendatacommunities.org/id/metropolitan-district-council/walsall ,WC131-560,31.10.2021,CHILDRENS,ALPHABIOLABS,18/10/2021,298.33,6220-School Only Payments - Catering,THIRD PARTY PAYMENTS,INDEPENDENT UNIT WITHIN COUNCIL,REVENUE
Walsall Council,http://opendatacommunities.org/id/metropolitan-district-council/walsall ,WC131-561,31.10.2021,RESOURCES AND TRANSFORMATION,ALZEC VISION CIC,29/10/2021,"4,478.75",6312-Grants to Other Orgs,SUPPLIES & SERVICES,GRANTS (EXP) & SUBSCRIPTIONS,REVENUE
Walsall Council,http://opendatacommunities.org/id/metropolitan-district-council/walsall ,WC131-562,31.10.2021,CHILDRENS,AMAH NURSERIES LIMITED T/A BANANA MOON WALSALL,25/10/2021,"11,340.00",1184-Other-Grants to Other Orgs,SUPPLIES & SERVICES,GRANTS (EXP) & SUBSCRIPTIONS,REVENUE
Walsall Council,http://opendatacommunities.org/id/metropolitan-district-council/walsall ,WC131-563,31.10.2021,CHILDRENS,AMAH NURSERIES LIMITED T/A BANANA MOON WALSALL,25/10/2021,"14,842.80",1184-Other-Grants to Other Orgs,SUPPLIES & SERVICES,GRANTS (EXP) & SUBSCRIPTIONS,REVENUE
Walsall Council,http://opendatacommunities.org/id/metropolitan-district-council/walsall ,WC131-564,31.10.2021,ADULT SOCIAL CARE,REDACTED,06/10/2021,"1,626.96",6541-Direct Payment,THIRD PARTY PAYMENTS,PRIVATE CONTRACTOR,REVENUE
Walsall Council,http://opendatacommunities.org/id/metropolitan-district-council/walsall ,WC131-565,31.10.2021,ECONOMY & ENVIRONMENT CAPITAL,AMEY OW LTD,13/10/2021,"11,447.51",7200-Project Fees,CAPITAL,"NEW CONSTRUCTION,CONVERSION & RENOVATION",CAPITAL
Walsall Council,http://opendatacommunities.org/id/metropolitan-district-council/walsall ,WC131-566,31.10.2021,"ECONOMY, ENVIRONMENT & COMMUNITIES",AMEY OW LTD,13/10/2021,"2,377.13",6411-Professional Services-Priv Contractor & Other Agencies,THIRD PARTY PAYMENTS,PRIVATE CONTRACTOR,REVENUE
Walsall Council,http://opendatacommunities.org/id/metropolitan-district-council/walsall ,WC131-567,31.10.2021,CHILDRENS,AMG NURSING CARE SERVICES,04/10/2021,"1,265.40",6220-Accommodation and Related Costs-Assistance to S/S Clients,TRANSFER PAYMENTS,ADULT SOCIAL SERVICES CLIENT,REVENUE
Walsall Council,http://opendatacommunities.org/id/metropolitan-district-council/walsall ,WC131-568,31.10.2021,CHILDRENS,AMG NURSING CARE SERVICES,22/10/2021,"1,137.24",6220-Accommodation and Related Costs-Assistance to S/S Clients,TRANSFER PAYMENTS,ADULT SOCIAL SERVICES CLIENT,REVENUE
Walsall Council,http://opendatacommunities.org/id/metropolitan-district-council/walsall ,WC131-569,31.10.2021,CHILDRENS,AMG NURSING CARE SERVICES,22/10/2021,"1,137.24",6220-Accommodation and Related Costs-Assistance to S/S Clients,TRANSFER PAYMENTS,ADULT SOCIAL SERVICES CLIENT,REVENUE
Walsall Council,http://opendatacommunities.org/id/metropolitan-district-council/walsall ,WC131-570,31.10.2021,ADULT SOCIAL CARE,AMG NURSING CARE SERVICES,20/10/2021,"11,596.34",6541-Community Supported Living/Supported Accommodation,THIRD PARTY PAYMENTS,PRIVATE CONTRACTOR,REVENUE
Walsall Council,http://opendatacommunities.org/id/metropolitan-district-council/walsall ,WC131-571,31.10.2021,ADULT SOCIAL CARE,AMG NURSING CARE SERVICES,20/10/2021,"2,906.00",6541-Community Supported Living/Supported Accommodation,THIRD PARTY PAYMENTS,PRIVATE CONTRACTOR,REVENUE
Walsall Council,http://opendatacommunities.org/id/metropolitan-district-council/walsall ,WC131-572,31.10.2021,CHILDRENS,REDACTED,21/10/2021,340.00,6223-Internal Foster Carers-Carer Fees,TRANSFER PAYMENTS,CHILDREN SOCIAL SERVICES CLIENT,REVENUE
Walsall Council,http://opendatacommunities.org/id/metropolitan-district-council/walsall ,WC131-573,31.10.2021,CHILDRENS,REDACTED,21/10/2021,607.52,6223-Foster Carers Maintenance Allowance,TRANSFER PAYMENTS,CHILDREN SOCIAL SERVICES CLIENT,REVENUE
Walsall Council,http://opendatacommunities.org/id/metropolitan-district-council/walsall ,WC131-574,31.10.2021,ADULT SOCIAL CARE,ANCHOR CARE HOMES LTD,26/10/2021,499.52,6541-Residential EMI,THIRD PARTY PAYMENTS,PRIVATE CONTRACTOR,REVENUE
Walsall Council,http://opendatacommunities.org/id/metropolitan-district-council/walsall ,WC131-575,31.10.2021,ADULT SOCIAL CARE,ANCHOR CAREHOMES LTD - HARDEN HALL,26/10/2021,"2,331.08",6541-Residential EMI,THIRD PARTY PAYMENTS,PRIVATE CONTRACTOR,REVENUE
Walsall Council,http://opendatacommunities.org/id/metropolitan-district-council/walsall ,WC131-576,31.10.2021,ADULT SOCIAL CARE,ANCHOR CAREHOMES LTD - HARDEN HALL,26/10/2021,"2,331.08",6541-Residential EMI,THIRD PARTY PAYMENTS,PRIVATE CONTRACTOR,REVENUE
Walsall Council,http://opendatacommunities.org/id/metropolitan-district-council/walsall ,WC131-577,31.10.2021,ADULT SOCIAL CARE,ANCHOR CAREHOMES LTD - HARDEN HALL,26/10/2021,"2,331.08",6541-Residential EMI,THIRD PARTY PAYMENTS,PRIVATE CONTRACTOR,REVENUE
Walsall Council,http://opendatacommunities.org/id/metropolitan-district-council/walsall ,WC131-578,31.10.2021,ADULT SOCIAL CARE,ANCHOR CAREHOMES LTD - HARDEN HALL,26/10/2021,"2,331.08",6541-Residential EMI,THIRD PARTY PAYMENTS,PRIVATE CONTRACTOR,REVENUE
Walsall Council,http://opendatacommunities.org/id/metropolitan-district-council/walsall ,WC131-579,31.10.2021,ADULT SOCIAL CARE,ANCHOR CAREHOMES LTD - HARDEN HALL,26/10/2021,"2,064.44",6541-Residential,THIRD PARTY PAYMENTS,PRIVATE CONTRACTOR,REVENUE
Walsall Council,http://opendatacommunities.org/id/metropolitan-district-council/walsall ,WC131-580,31.10.2021,ADULT SOCIAL CARE,ANCHOR CAREHOMES LTD - HARDEN HALL,26/10/2021,"2,331.08",6541-Residential EMI,THIRD PARTY PAYMENTS,PRIVATE CONTRACTOR,REVENUE
Walsall Council,http://opendatacommunities.org/id/metropolitan-district-council/walsall ,WC131-581,31.10.2021,ADULT SOCIAL CARE,ANCHOR CAREHOMES LTD - HARDEN HALL,26/10/2021,"2,331.08",6541-Residential EMI,THIRD PARTY PAYMENTS,PRIVATE CONTRACTOR,REVENUE
Walsall Council,http://opendatacommunities.org/id/metropolitan-district-council/walsall ,WC131-582,31.10.2021,ADULT SOCIAL CARE,ANCHOR CAREHOMES LTD - HARDEN HALL,26/10/2021,"2,064.44",6541-Residential,THIRD PARTY PAYMENTS,PRIVATE CONTRACTOR,REVENUE
Walsall Council,http://opendatacommunities.org/id/metropolitan-district-council/walsall ,WC131-583,31.10.2021,ADULT SOCIAL CARE,ANCHOR CAREHOMES LTD - HARDEN HALL,26/10/2021,"-81,990.65",6541-Residential,THIRD PARTY PAYMENTS,PRIVATE CONTRACTOR,REVENUE
Walsall Council,http://opendatacommunities.org/id/metropolitan-district-council/walsall ,WC131-584,31.10.2021,ADULT SOCIAL CARE,ANCHOR CAREHOMES LTD - HARDEN HALL,26/10/2021,"2,355.32",6541-Residential EMI,THIRD PARTY PAYMENTS,PRIVATE CONTRACTOR,REVENUE
Walsall Council,http://opendatacommunities.org/id/metropolitan-district-council/walsall ,WC131-585,31.10.2021,ADULT SOCIAL CARE,ANCHOR CAREHOMES LTD - HARDEN HALL,26/10/2021,"2,335.32",6541-Residential EMI,THIRD PARTY PAYMENTS,PRIVATE CONTRACTOR,REVENUE
Walsall Council,http://opendatacommunities.org/id/metropolitan-district-council/walsall ,WC131-586,31.10.2021,ADULT SOCIAL CARE,ANCHOR CAREHOMES LTD - HARDEN HALL,26/10/2021,"2,331.08",6541-Residential EMI,THIRD PARTY PAYMENTS,PRIVATE CONTRACTOR,REVENUE
Walsall Council,http://opendatacommunities.org/id/metropolitan-district-council/walsall ,WC131-587,31.10.2021,ADULT SOCIAL CARE,ANCHOR CAREHOMES LTD - HARDEN HALL,26/10/2021,"2,355.32",6541-Residential EMI,THIRD PARTY PAYMENTS,PRIVATE CONTRACTOR,REVENUE
Walsall Council,http://opendatacommunities.org/id/metropolitan-district-council/walsall ,WC131-588,31.10.2021,ADULT SOCIAL CARE,ANCHOR CAREHOMES LTD - HARDEN HALL,26/10/2021,"2,331.08",6541-Residential EMI,THIRD PARTY PAYMENTS,PRIVATE CONTRACTOR,REVENUE
Walsall Council,http://opendatacommunities.org/id/metropolitan-district-council/walsall ,WC131-589,31.10.2021,ADULT SOCIAL CARE,ANCHOR CAREHOMES LTD - HARDEN HALL,26/10/2021,"2,294.56",6541-Residential EMI,THIRD PARTY PAYMENTS,PRIVATE CONTRACTOR,REVENUE
Walsall Council,http://opendatacommunities.org/id/metropolitan-district-council/walsall ,WC131-590,31.10.2021,ADULT SOCIAL CARE,ANCHOR CAREHOMES LTD - HARDEN HALL,26/10/2021,"2,335.32",6541-Residential EMI,THIRD PARTY PAYMENTS,PRIVATE CONTRACTOR,REVENUE
Walsall Council,http://opendatacommunities.org/id/metropolitan-district-council/walsall ,WC131-591,31.10.2021,ADULT SOCIAL CARE,ANCHOR CAREHOMES LTD - HARDEN HALL,26/10/2021,"2,331.08",6541-Residential EMI,THIRD PARTY PAYMENTS,PRIVATE CONTRACTOR,REVENUE
Walsall Council,http://opendatacommunities.org/id/metropolitan-district-council/walsall ,WC131-592,31.10.2021,ADULT SOCIAL CARE,ANCHOR CAREHOMES LTD - HARDEN HALL,26/10/2021,"2,691.08",6541-Residential EMI,THIRD PARTY PAYMENTS,PRIVATE CONTRACTOR,REVENUE
Walsall Council,http://opendatacommunities.org/id/metropolitan-district-council/walsall ,WC131-593,31.10.2021,ADULT SOCIAL CARE,ANCHOR CAREHOMES LTD - HARDEN HALL,26/10/2021,"2,355.32",6541-Residential EMI,THIRD PARTY PAYMENTS,PRIVATE CONTRACTOR,REVENUE
Walsall Council,http://opendatacommunities.org/id/metropolitan-district-council/walsall ,WC131-594,31.10.2021,ADULT SOCIAL CARE,ANCHOR CAREHOMES LTD - HARDEN HALL,26/10/2021,"2,331.08",6541-Residential EMI,THIRD PARTY PAYMENTS,PRIVATE CONTRACTOR,REVENUE
Walsall Council,http://opendatacommunities.org/id/metropolitan-district-council/walsall ,WC131-595,31.10.2021,ADULT SOCIAL CARE,ANCHOR CAREHOMES LTD - HARDEN HALL,26/10/2021,"2,331.08",6541-Residential EMI,THIRD PARTY PAYMENTS,PRIVATE CONTRACTOR,REVENUE
Walsall Council,http://opendatacommunities.org/id/metropolitan-district-council/walsall ,WC131-596,31.10.2021,ADULT SOCIAL CARE,ANCHOR CAREHOMES LTD - HARDEN HALL,26/10/2021,"2,331.08",6541-Residential EMI,THIRD PARTY PAYMENTS,PRIVATE CONTRACTOR,REVENUE
Walsall Council,http://opendatacommunities.org/id/metropolitan-district-council/walsall ,WC131-597,31.10.2021,ADULT SOCIAL CARE,ANCHOR CAREHOMES LTD - HARDEN HALL,26/10/2021,"2,331.08",6541-Residential EMI,THIRD PARTY PAYMENTS,PRIVATE CONTRACTOR,REVENUE
Walsall Council,http://opendatacommunities.org/id/metropolitan-district-council/walsall ,WC131-598,31.10.2021,ADULT SOCIAL CARE,ANCHOR CAREHOMES LTD - HARDEN HALL,26/10/2021,"2,382.04",6541-Residential EMI,THIRD PARTY PAYMENTS,PRIVATE CONTRACTOR,REVENUE
Walsall Council,http://opendatacommunities.org/id/metropolitan-district-council/walsall ,WC131-599,31.10.2021,ADULT SOCIAL CARE,ANCHOR CAREHOMES LTD - HARDEN HALL,26/10/2021,"2,691.08",6541-Residential EMI,THIRD PARTY PAYMENTS,PRIVATE CONTRACTOR,REVENUE
Walsall Council,http://opendatacommunities.org/id/metropolitan-district-council/walsall ,WC131-600,31.10.2021,ADULT SOCIAL CARE,ANCHOR CAREHOMES LTD - HARDEN HALL,26/10/2021,"2,331.08",6541-Residential EMI,THIRD PARTY PAYMENTS,PRIVATE CONTRACTOR,REVENUE
Walsall Council,http://opendatacommunities.org/id/metropolitan-district-council/walsall ,WC131-601,31.10.2021,ADULT SOCIAL CARE,ANCHOR CAREHOMES LTD - HARDEN HALL,26/10/2021,"2,691.08",6541-Residential EMI,THIRD PARTY PAYMENTS,PRIVATE CONTRACTOR,REVENUE
Walsall Council,http://opendatacommunities.org/id/metropolitan-district-council/walsall ,WC131-602,31.10.2021,ADULT SOCIAL CARE,ANCHOR CAREHOMES LTD - HARDEN HALL,26/10/2021,"2,331.08",6541-Residential EMI,THIRD PARTY PAYMENTS,PRIVATE CONTRACTOR,REVENUE
Walsall Council,http://opendatacommunities.org/id/metropolitan-district-council/walsall ,WC131-603,31.10.2021,ADULT SOCIAL CARE,ANCHOR CAREHOMES LTD - HARDEN HALL,26/10/2021,"2,331.08",6541-Residential EMI,THIRD PARTY PAYMENTS,PRIVATE CONTRACTOR,REVENUE
Walsall Council,http://opendatacommunities.org/id/metropolitan-district-council/walsall ,WC131-604,31.10.2021,ADULT SOCIAL CARE,ANCHOR CAREHOMES LTD - HARDEN HALL,26/10/2021,"2,064.44",6541-Residential,THIRD PARTY PAYMENTS,PRIVATE CONTRACTOR,REVENUE
Walsall Council,http://opendatacommunities.org/id/metropolitan-district-council/walsall ,WC131-605,31.10.2021,ADULT SOCIAL CARE,ANCHOR CAREHOMES LTD - HARDEN HALL,26/10/2021,"95,663.25",6541-Residential EMI,THIRD PARTY PAYMENTS,PRIVATE CONTRACTOR,REVENUE
Walsall Council,http://opendatacommunities.org/id/metropolitan-district-council/walsall ,WC131-606,31.10.2021,CHILDRENS,REDACTED,21/10/2021,314.48,6223-Special Guardianship Orders,TRANSFER PAYMENTS,CHILDREN SOCIAL SERVICES CLIENT,REVENUE
Walsall Council,http://opendatacommunities.org/id/metropolitan-district-council/walsall ,WC131-607,31.10.2021,ADULT SOCIAL CARE,REDACTED,06/10/2021,518.00,6541-Direct Payment,THIRD PARTY PAYMENTS,PRIVATE CONTRACTOR,REVENUE
Walsall Council,http://opendatacommunities.org/id/metropolitan-district-council/walsall ,WC131-608,31.10.2021,ADULT SOCIAL CARE,REDACTED,06/10/2021,"2,710.16",6541-Direct Payment,THIRD PARTY PAYMENTS,PRIVATE CONTRACTOR,REVENUE
Walsall Council,http://opendatacommunities.org/id/metropolitan-district-council/walsall ,WC131-609,31.10.2021,CHILDRENS CAPITAL,ANDREWS ELECTRICAL LTD,05/10/2021,580.00,7150-Site Works Contractors,CAPITAL,"NEW CONSTRUCTION,CONVERSION & RENOVATION",CAPITAL
Walsall Council,http://opendatacommunities.org/id/metropolitan-district-council/walsall ,WC131-610,31.10.2021,CHILDRENS CAPITAL,ANDREWS ELECTRICAL LTD,28/10/2021,"9,198.00",7150-Site Works Contractors,CAPITAL,"NEW CONSTRUCTION,CONVERSION & RENOVATION",CAPITAL
Walsall Council,http://opendatacommunities.org/id/metropolitan-district-council/walsall ,WC131-611,31.10.2021,CHILDRENS CAPITAL,ANDREWS ELECTRICAL LTD,26/10/2021,"15,800.00",7150-Site Works Contractors,CAPITAL,"NEW CONSTRUCTION,CONVERSION & RENOVATION",CAPITAL
Walsall Council,http://opendatacommunities.org/id/metropolitan-district-council/walsall ,WC131-612,31.10.2021,CHILDRENS,REDACTED,21/10/2021,410.60,6223-Special Guardianship Orders,TRANSFER PAYMENTS,CHILDREN SOCIAL SERVICES CLIENT,REVENUE
Walsall Council,http://opendatacommunities.org/id/metropolitan-district-council/walsall ,WC131-613,31.10.2021,CHILDRENS,REDACTED,21/10/2021,281.40,6223-Special Guardianship Orders,TRANSFER PAYMENTS,CHILDREN SOCIAL SERVICES CLIENT,REVENUE
Walsall Council,http://opendatacommunities.org/id/metropolitan-district-council/walsall ,WC131-614,31.10.2021,CHILDRENS,REDACTED,21/10/2021,318.36,6223-Special Guardianship Orders,TRANSFER PAYMENTS,CHILDREN SOCIAL SERVICES CLIENT,REVENUE
Walsall Council,http://opendatacommunities.org/id/metropolitan-district-council/walsall ,WC131-615,31.10.2021,CHILDRENS,ANGELS AND BUTTERFLIES CHILDMINDING,25/10/2021,283.50,1184-Other-Grants to Other Orgs,SUPPLIES & SERVICES,GRANTS (EXP) & SUBSCRIPTIONS,REVENUE
Walsall Council,http://opendatacommunities.org/id/metropolitan-district-council/walsall ,WC131-616,31.10.2021,CHILDRENS,ANGELS AND BUTTERFLIES CHILDMINDING,25/10/2021,"1,436.40",1184-Other-Grants to Other Orgs,SUPPLIES & SERVICES,GRANTS (EXP) & SUBSCRIPTIONS,REVENUE
Walsall Council,http://opendatacommunities.org/id/metropolitan-district-council/walsall ,WC131-617,31.10.2021,ADULT SOCIAL CARE,REDACTED,14/10/2021,264.00,6541-Shared Lives,THIRD PARTY PAYMENTS,PRIVATE CONTRACTOR,REVENUE
Walsall Council,http://opendatacommunities.org/id/metropolitan-district-council/walsall ,WC131-618,31.10.2021,ADULT SOCIAL CARE,REDACTED,28/10/2021,483.37,6541-Shared Lives,THIRD PARTY PAYMENTS,PRIVATE CONTRACTOR,REVENUE
Walsall Council,http://opendatacommunities.org/id/metropolitan-district-council/walsall ,WC131-619,31.10.2021,"ECONOMY, ENVIRONMENT & COMMUNITIES",REDACTED,26/10/2021,400.00,6414-Professional Fees & Services,SUPPLIES & SERVICES,SERVICES,REVENUE
Walsall Council,http://opendatacommunities.org/id/metropolitan-district-council/walsall ,WC131-620,31.10.2021,ADULT SOCIAL CARE,REDACTED,07/10/2021,438.85,6541-Shared Lives,THIRD PARTY PAYMENTS,PRIVATE CONTRACTOR,REVENUE
Walsall Council,http://opendatacommunities.org/id/metropolitan-district-council/walsall ,WC131-621,31.10.2021,CHILDRENS,REDACTED,21/10/2021,448.84,6223-Special Guardianship Orders,TRANSFER PAYMENTS,CHILDREN SOCIAL SERVICES CLIENT,REVENUE
Walsall Council,http://opendatacommunities.org/id/metropolitan-district-council/walsall ,WC131-622,31.10.2021,RESOURCES AND TRANSFORMATION,ANSLOW COMMUNICATIONS LTD,29/10/2021,700.00,6625-External Training,INDIRECT EMPLOYEES,EXTERNAL TRAINING,REVENUE
Walsall Council,http://opendatacommunities.org/id/metropolitan-district-council/walsall ,WC131-623,31.10.2021,ADULT SOCIAL CARE,ANSON COURT RESIDENTIAL HOME,26/10/2021,"2,331.08",6541-Residential EMI,THIRD PARTY PAYMENTS,PRIVATE CONTRACTOR,REVENUE
Walsall Council,http://opendatacommunities.org/id/metropolitan-district-council/walsall ,WC131-624,31.10.2021,ADULT SOCIAL CARE,ANSON COURT RESIDENTIAL HOME,26/10/2021,"2,331.08",6541-Residential EMI,THIRD PARTY PAYMENTS,PRIVATE CONTRACTOR,REVENUE
Walsall Council,http://opendatacommunities.org/id/metropolitan-district-council/walsall ,WC131-625,31.10.2021,ADULT SOCIAL CARE,ANSON COURT RESIDENTIAL HOME,26/10/2021,"-46,837.68",6541-Residential,THIRD PARTY PAYMENTS,PRIVATE CONTRACTOR,REVENUE
Walsall Council,http://opendatacommunities.org/id/metropolitan-district-council/walsall ,WC131-626,31.10.2021,ADULT SOCIAL CARE,ANSON COURT RESIDENTIAL HOME,26/10/2021,"52,157.23",6541-Residential EMI,THIRD PARTY PAYMENTS,PRIVATE CONTRACTOR,REVENUE
Walsall Council,http://opendatacommunities.org/id/metropolitan-district-council/walsall ,WC131-627,31.10.2021,ADULT SOCIAL CARE,ANSON COURT RESIDENTIAL HOME,26/10/2021,"2,064.44",6541-Residential,THIRD PARTY PAYMENTS,PRIVATE CONTRACTOR,REVENUE
Walsall Council,http://opendatacommunities.org/id/metropolitan-district-council/walsall ,WC131-628,31.10.2021,ADULT SOCIAL CARE,ANSON COURT RESIDENTIAL HOME,26/10/2021,"2,331.08",6541-Residential EMI,THIRD PARTY PAYMENTS,PRIVATE CONTRACTOR,REVENUE
Walsall Council,http://opendatacommunities.org/id/metropolitan-district-council/walsall ,WC131-629,31.10.2021,ADULT SOCIAL CARE,ANSON COURT RESIDENTIAL HOME,26/10/2021,"2,331.08",6541-Residential EMI,THIRD PARTY PAYMENTS,PRIVATE CONTRACTOR,REVENUE
Walsall Council,http://opendatacommunities.org/id/metropolitan-district-council/walsall ,WC131-630,31.10.2021,ADULT SOCIAL CARE,ANSON COURT RESIDENTIAL HOME,26/10/2021,"2,331.08",6541-Residential EMI,THIRD PARTY PAYMENTS,PRIVATE CONTRACTOR,REVENUE
Walsall Council,http://opendatacommunities.org/id/metropolitan-district-council/walsall ,WC131-631,31.10.2021,ADULT SOCIAL CARE,ANSON COURT RESIDENTIAL HOME,26/10/2021,"2,331.08",6541-Residential EMI,THIRD PARTY PAYMENTS,PRIVATE CONTRACTOR,REVENUE
Walsall Council,http://opendatacommunities.org/id/metropolitan-district-council/walsall ,WC131-632,31.10.2021,ADULT SOCIAL CARE,ANSON COURT RESIDENTIAL HOME,26/10/2021,"2,331.08",6541-Residential EMI,THIRD PARTY PAYMENTS,PRIVATE CONTRACTOR,REVENUE
Walsall Council,http://opendatacommunities.org/id/metropolitan-district-council/walsall ,WC131-633,31.10.2021,ADULT SOCIAL CARE,ANSON COURT RESIDENTIAL HOME,26/10/2021,"2,184.44",6541-Residential,THIRD PARTY PAYMENTS,PRIVATE CONTRACTOR,REVENUE
Walsall Council,http://opendatacommunities.org/id/metropolitan-district-council/walsall ,WC131-634,31.10.2021,ADULT SOCIAL CARE,ANSON COURT RESIDENTIAL HOME,26/10/2021,"2,331.08",6541-Residential EMI,THIRD PARTY PAYMENTS,PRIVATE CONTRACTOR,REVENUE
Walsall Council,http://opendatacommunities.org/id/metropolitan-district-council/walsall ,WC131-635,31.10.2021,ADULT SOCIAL CARE,ANSON COURT RESIDENTIAL HOME,26/10/2021,"2,331.08",6541-Residential EMI,THIRD PARTY PAYMENTS,PRIVATE CONTRACTOR,REVENUE
Walsall Council,http://opendatacommunities.org/id/metropolitan-district-council/walsall ,WC131-636,31.10.2021,ADULT SOCIAL CARE,ANSON COURT RESIDENTIAL HOME,26/10/2021,"2,331.08",6541-Residential EMI,THIRD PARTY PAYMENTS,PRIVATE CONTRACTOR,REVENUE
Walsall Council,http://opendatacommunities.org/id/metropolitan-district-council/walsall ,WC131-637,31.10.2021,ADULT SOCIAL CARE,ANSON COURT RESIDENTIAL HOME,26/10/2021,"2,331.08",6541-Residential EMI,THIRD PARTY PAYMENTS,PRIVATE CONTRACTOR,REVENUE
Walsall Council,http://opendatacommunities.org/id/metropolitan-district-council/walsall ,WC131-638,31.10.2021,ADULT SOCIAL CARE,ANSON COURT RESIDENTIAL HOME,26/10/2021,"2,064.44",6541-Residential,THIRD PARTY PAYMENTS,PRIVATE CONTRACTOR,REVENUE
Walsall Council,http://opendatacommunities.org/id/metropolitan-district-council/walsall ,WC131-639,31.10.2021,ADULT SOCIAL CARE,ANSON COURT RESIDENTIAL HOME,26/10/2021,"2,331.08",6541-Residential EMI,THIRD PARTY PAYMENTS,PRIVATE CONTRACTOR,REVENUE
Walsall Council,http://opendatacommunities.org/id/metropolitan-district-council/walsall ,WC131-640,31.10.2021,ADULT SOCIAL CARE,ANSON COURT RESIDENTIAL HOME,26/10/2021,"2,331.08",6541-Residential EMI,THIRD PARTY PAYMENTS,PRIVATE CONTRACTOR,REVENUE
Walsall Council,http://opendatacommunities.org/id/metropolitan-district-council/walsall ,WC131-641,31.10.2021,ADULT SOCIAL CARE,ANSON COURT RESIDENTIAL HOME,26/10/2021,"5,577.94",6541-Residential EMI,THIRD PARTY PAYMENTS,PRIVATE CONTRACTOR,REVENUE
Walsall Council,http://opendatacommunities.org/id/metropolitan-district-council/walsall ,WC131-642,31.10.2021,ADULT SOCIAL CARE,ANSON COURT RESIDENTIAL HOME,20/10/2021,"2,331.08",6541-Nursing EMI,THIRD PARTY PAYMENTS,PRIVATE CONTRACTOR,REVENUE
Walsall Council,http://opendatacommunities.org/id/metropolitan-district-council/walsall ,WC131-643,31.10.2021,CHILDRENS,REDACTED,21/10/2021,298.80,6223-Special Guardianship Orders,TRANSFER PAYMENTS,CHILDREN SOCIAL SERVICES CLIENT,REVENUE
Walsall Council,http://opendatacommunities.org/id/metropolitan-district-council/walsall ,WC131-644,31.10.2021,CHILDRENS,APP CARZ,12/10/2021,420.00,6314-Hire of Vehicle with Driver,TRANSPORT,DIRECT TRANSPORT COSTS,REVENUE
Walsall Council,http://opendatacommunities.org/id/metropolitan-district-council/walsall ,WC131-645,31.10.2021,CHILDRENS,APP CARZ,11/10/2021,300.00,6241-Hire of Vehicle with Driver,TRANSPORT,DIRECT TRANSPORT COSTS,REVENUE
Walsall Council,http://opendatacommunities.org/id/metropolitan-district-council/walsall ,WC131-646,31.10.2021,CHILDRENS,APP CARZ,11/10/2021,960.00,6241-Hire of Vehicle with Driver,TRANSPORT,DIRECT TRANSPORT COSTS,REVENUE
Walsall Council,http://opendatacommunities.org/id/metropolitan-district-council/walsall ,WC131-647,31.10.2021,CHILDRENS,APP CARZ,11/10/2021,576.00,6241-Hire of Vehicle with Driver,TRANSPORT,DIRECT TRANSPORT COSTS,REVENUE
Walsall Council,http://opendatacommunities.org/id/metropolitan-district-council/walsall ,WC131-648,31.10.2021,CHILDRENS,APP CARZ,11/10/2021,750.00,6241-Hire of Vehicle with Driver,TRANSPORT,DIRECT TRANSPORT COSTS,REVENUE
Walsall Council,http://opendatacommunities.org/id/metropolitan-district-council/walsall ,WC131-649,31.10.2021,CHILDRENS,APP CARZ,11/10/2021,660.00,6241-Hire of Vehicle with Driver,TRANSPORT,DIRECT TRANSPORT COSTS,REVENUE
Walsall Council,http://opendatacommunities.org/id/metropolitan-district-council/walsall ,WC131-650,31.10.2021,CHILDRENS,APP CARZ,11/10/2021,360.00,6241-Hire of Vehicle with Driver,TRANSPORT,DIRECT TRANSPORT COSTS,REVENUE
Walsall Council,http://opendatacommunities.org/id/metropolitan-district-council/walsall ,WC131-651,31.10.2021,CHILDRENS,APP CARZ,11/10/2021,468.00,6241-Hire of Vehicle with Driver,TRANSPORT,DIRECT TRANSPORT COSTS,REVENUE
Walsall Council,http://opendatacommunities.org/id/metropolitan-district-council/walsall ,WC131-652,31.10.2021,CHILDRENS,APP CARZ,11/10/2021,"1,275.00",6241-Hire of Vehicle with Driver,TRANSPORT,DIRECT TRANSPORT COSTS,REVENUE
Walsall Council,http://opendatacommunities.org/id/metropolitan-district-council/walsall ,WC131-653,31.10.2021,CHILDRENS,APP CARZ,11/10/2021,"1,020.00",6241-Hire of Vehicle with Driver,TRANSPORT,DIRECT TRANSPORT COSTS,REVENUE
Walsall Council,http://opendatacommunities.org/id/metropolitan-district-council/walsall ,WC131-654,31.10.2021,CHILDRENS,APP CARZ,07/10/2021,"1,800.00",6241-Hire of Vehicle with Driver,TRANSPORT,DIRECT TRANSPORT COSTS,REVENUE
Walsall Council,http://opendatacommunities.org/id/metropolitan-district-council/walsall ,WC131-655,31.10.2021,CHILDRENS,APP CARZ,07/10/2021,750.00,6241-Hire of Vehicle with Driver,TRANSPORT,DIRECT TRANSPORT COSTS,REVENUE
Walsall Council,http://opendatacommunities.org/id/metropolitan-district-council/walsall ,WC131-656,31.10.2021,"ECONOMY, ENVIRONMENT & COMMUNITIES",AQUALYMPIC,07/10/2021,300.00,6413-Events & Visual Arts,SUPPLIES & SERVICES,SERVICES,REVENUE
Walsall Council,http://opendatacommunities.org/id/metropolitan-district-council/walsall ,WC131-657,31.10.2021,"ECONOMY, ENVIRONMENT & COMMUNITIES",AQUAMO LTD,27/10/2021,-480.00,6413-Repair & Maintenance of Furniture & Equipment,SUPPLIES & SERVICES,EQUIPMENT FURNITURE & MATERIALS,REVENUE
Walsall Council,http://opendatacommunities.org/id/metropolitan-district-council/walsall ,WC131-658,31.10.2021,"ECONOMY, ENVIRONMENT & COMMUNITIES",AQUAMO LTD,27/10/2021,-275.00,6413-Repair & Maintenance of Furniture & Equipment,SUPPLIES & SERVICES,EQUIPMENT FURNITURE & MATERIALS,REVENUE
Walsall Council,http://opendatacommunities.org/id/metropolitan-district-council/walsall ,WC131-659,31.10.2021,"ECONOMY, ENVIRONMENT & COMMUNITIES",AQUAMO LTD,27/10/2021,275.00,6413-Repair & Maintenance of Furniture & Equipment,SUPPLIES & SERVICES,EQUIPMENT FURNITURE & MATERIALS,REVENUE
Walsall Council,http://opendatacommunities.org/id/metropolitan-district-council/walsall ,WC131-660,31.10.2021,"ECONOMY, ENVIRONMENT & COMMUNITIES",AQUAMO LTD,27/10/2021,328.00,6413-Repair & Maintenance of Furniture & Equipment,SUPPLIES & SERVICES,EQUIPMENT FURNITURE & MATERIALS,REVENUE
Walsall Council,http://opendatacommunities.org/id/metropolitan-district-council/walsall ,WC131-661,31.10.2021,"ECONOMY, ENVIRONMENT & COMMUNITIES",AQUAMO LTD,27/10/2021,480.00,6413-Repair & Maintenance of Furniture & Equipment,SUPPLIES & SERVICES,EQUIPMENT FURNITURE & MATERIALS,REVENUE
Walsall Council,http://opendatacommunities.org/id/metropolitan-district-council/walsall ,WC131-662,31.10.2021,ADULT SOCIAL CARE,ARBORETUM NURSING HOME.,26/10/2021,"11,920.00",6554-Professional Services-Priv Contractor & Other Agencies,THIRD PARTY PAYMENTS,PRIVATE CONTRACTOR,REVENUE
Walsall Council,http://opendatacommunities.org/id/metropolitan-district-council/walsall ,WC131-663,31.10.2021,ADULT SOCIAL CARE,ARBORETUM NURSING HOME.,26/10/2021,"2,419.96",6541-Nursing,THIRD PARTY PAYMENTS,PRIVATE CONTRACTOR,REVENUE
Walsall Council,http://opendatacommunities.org/id/metropolitan-district-council/walsall ,WC131-664,31.10.2021,ADULT SOCIAL CARE,ARBORETUM NURSING HOME.,26/10/2021,"2,419.96",6541-Nursing,THIRD PARTY PAYMENTS,PRIVATE CONTRACTOR,REVENUE
Walsall Council,http://opendatacommunities.org/id/metropolitan-district-council/walsall ,WC131-665,31.10.2021,ADULT SOCIAL CARE,ARBORETUM NURSING HOME.,26/10/2021,"2,575.96",6541-Nursing,THIRD PARTY PAYMENTS,PRIVATE CONTRACTOR,REVENUE
Walsall Council,http://opendatacommunities.org/id/metropolitan-district-council/walsall ,WC131-666,31.10.2021,ADULT SOCIAL CARE,ARBORETUM NURSING HOME.,26/10/2021,"2,419.96",6541-Nursing,THIRD PARTY PAYMENTS,PRIVATE CONTRACTOR,REVENUE
Walsall Council,http://opendatacommunities.org/id/metropolitan-district-council/walsall ,WC131-667,31.10.2021,ADULT SOCIAL CARE,ARBORETUM NURSING HOME.,26/10/2021,"2,599.96",6541-Nursing,THIRD PARTY PAYMENTS,PRIVATE CONTRACTOR,REVENUE
Walsall Council,http://opendatacommunities.org/id/metropolitan-district-council/walsall ,WC131-668,31.10.2021,ADULT SOCIAL CARE,ARBORETUM NURSING HOME.,26/10/2021,"2,599.96",6541-Nursing,THIRD PARTY PAYMENTS,PRIVATE CONTRACTOR,REVENUE
Walsall Council,http://opendatacommunities.org/id/metropolitan-district-council/walsall ,WC131-669,31.10.2021,ADULT SOCIAL CARE,ARBORETUM NURSING HOME.,26/10/2021,"2,419.96",6541-Nursing,THIRD PARTY PAYMENTS,PRIVATE CONTRACTOR,REVENUE
Walsall Council,http://opendatacommunities.org/id/metropolitan-district-council/walsall ,WC131-670,31.10.2021,ADULT SOCIAL CARE,ARBORETUM NURSING HOME.,26/10/2021,"2,419.96",6541-Nursing,THIRD PARTY PAYMENTS,PRIVATE CONTRACTOR,REVENUE
Walsall Council,http://opendatacommunities.org/id/metropolitan-district-council/walsall ,WC131-671,31.10.2021,ADULT SOCIAL CARE,ARBORETUM NURSING HOME.,26/10/2021,"2,419.96",6541-Nursing,THIRD PARTY PAYMENTS,PRIVATE CONTRACTOR,REVENUE
Walsall Council,http://opendatacommunities.org/id/metropolitan-district-council/walsall ,WC131-672,31.10.2021,ADULT SOCIAL CARE,ARBORETUM NURSING HOME.,26/10/2021,"2,599.96",6541-Nursing,THIRD PARTY PAYMENTS,PRIVATE CONTRACTOR,REVENUE
Walsall Council,http://opendatacommunities.org/id/metropolitan-district-council/walsall ,WC131-673,31.10.2021,ADULT SOCIAL CARE,ARBORETUM NURSING HOME.,26/10/2021,"2,599.96",6541-Nursing,THIRD PARTY PAYMENTS,PRIVATE CONTRACTOR,REVENUE
Walsall Council,http://opendatacommunities.org/id/metropolitan-district-council/walsall ,WC131-674,31.10.2021,ADULT SOCIAL CARE,ARBORETUM NURSING HOME.,26/10/2021,"2,341.43",6541-Residential & Nursing Care Placements,THIRD PARTY PAYMENTS,PRIVATE CONTRACTOR,REVENUE
Walsall Council,http://opendatacommunities.org/id/metropolitan-district-council/walsall ,WC131-675,31.10.2021,ADULT SOCIAL CARE,ARBORETUM NURSING HOME.,26/10/2021,"2,599.96",6541-Nursing,THIRD PARTY PAYMENTS,PRIVATE CONTRACTOR,REVENUE
Walsall Council,http://opendatacommunities.org/id/metropolitan-district-council/walsall ,WC131-676,31.10.2021,ADULT SOCIAL CARE,ARBORETUM NURSING HOME.,26/10/2021,745.00,6541-Residential & Nursing Care Placements,THIRD PARTY PAYMENTS,PRIVATE CONTRACTOR,REVENUE
Walsall Council,http://opendatacommunities.org/id/metropolitan-district-council/walsall ,WC131-677,31.10.2021,ADULT SOCIAL CARE,ARBORETUM NURSING HOME.,26/10/2021,"1,490.00",6541-Residential & Nursing Care Placements,THIRD PARTY PAYMENTS,PRIVATE CONTRACTOR,REVENUE
Walsall Council,http://opendatacommunities.org/id/metropolitan-district-council/walsall ,WC131-678,31.10.2021,ADULT SOCIAL CARE,ARBORETUM NURSING HOME.,26/10/2021,"2,599.96",6541-Nursing,THIRD PARTY PAYMENTS,PRIVATE CONTRACTOR,REVENUE
Walsall Council,http://opendatacommunities.org/id/metropolitan-district-council/walsall ,WC131-679,31.10.2021,ADULT SOCIAL CARE,ARBORETUM NURSING HOME.,26/10/2021,"2,599.96",6541-Nursing,THIRD PARTY PAYMENTS,PRIVATE CONTRACTOR,REVENUE
Walsall Council,http://opendatacommunities.org/id/metropolitan-district-council/walsall ,WC131-680,31.10.2021,ADULT SOCIAL CARE,ARBORETUM NURSING HOME.,26/10/2021,"2,599.96",6541-Nursing,THIRD PARTY PAYMENTS,PRIVATE CONTRACTOR,REVENUE
Walsall Council,http://opendatacommunities.org/id/metropolitan-district-council/walsall ,WC131-681,31.10.2021,ADULT SOCIAL CARE,ARBORETUM NURSING HOME.,26/10/2021,"2,419.96",6541-Nursing,THIRD PARTY PAYMENTS,PRIVATE CONTRACTOR,REVENUE
Walsall Council,http://opendatacommunities.org/id/metropolitan-district-council/walsall ,WC131-682,31.10.2021,ADULT SOCIAL CARE,ARBORETUM NURSING HOME.,26/10/2021,"1,915.71",6541-Residential & Nursing Care Placements,THIRD PARTY PAYMENTS,PRIVATE CONTRACTOR,REVENUE
Walsall Council,http://opendatacommunities.org/id/metropolitan-district-council/walsall ,WC131-683,31.10.2021,ADULT SOCIAL CARE,ARBORETUM NURSING HOME.,26/10/2021,"2,419.96",6541-Nursing,THIRD PARTY PAYMENTS,PRIVATE CONTRACTOR,REVENUE
Walsall Council,http://opendatacommunities.org/id/metropolitan-district-council/walsall ,WC131-684,31.10.2021,ADULT SOCIAL CARE,ARBORETUM NURSING HOME.,26/10/2021,"2,599.96",6541-Nursing,THIRD PARTY PAYMENTS,PRIVATE CONTRACTOR,REVENUE
Walsall Council,http://opendatacommunities.org/id/metropolitan-district-council/walsall ,WC131-685,31.10.2021,ADULT SOCIAL CARE,ARBORETUM NURSING HOME.,26/10/2021,"2,419.96",6541-Nursing,THIRD PARTY PAYMENTS,PRIVATE CONTRACTOR,REVENUE
Walsall Council,http://opendatacommunities.org/id/metropolitan-district-council/walsall ,WC131-686,31.10.2021,ADULT SOCIAL CARE,ARBORETUM NURSING HOME.,26/10/2021,"1,277.14",6541-Residential & Nursing Care Placements,THIRD PARTY PAYMENTS,PRIVATE CONTRACTOR,REVENUE
Walsall Council,http://opendatacommunities.org/id/metropolitan-district-council/walsall ,WC131-687,31.10.2021,ADULT SOCIAL CARE,ARBORETUM NURSING HOME.,26/10/2021,425.71,6541-Residential & Nursing Care Placements,THIRD PARTY PAYMENTS,PRIVATE CONTRACTOR,REVENUE
Walsall Council,http://opendatacommunities.org/id/metropolitan-district-council/walsall ,WC131-688,31.10.2021,ADULT SOCIAL CARE,ARBORETUM NURSING HOME.,26/10/2021,"2,873.57",6541-Residential & Nursing Care Placements,THIRD PARTY PAYMENTS,PRIVATE CONTRACTOR,REVENUE
Walsall Council,http://opendatacommunities.org/id/metropolitan-district-council/walsall ,WC131-689,31.10.2021,ADULT SOCIAL CARE,ARBORETUM NURSING HOME.,26/10/2021,"1,277.15",6541-Residential & Nursing Care Placements,THIRD PARTY PAYMENTS,PRIVATE CONTRACTOR,REVENUE
Walsall Council,http://opendatacommunities.org/id/metropolitan-district-council/walsall ,WC131-690,31.10.2021,ADULT SOCIAL CARE,ARBORETUM NURSING HOME.,26/10/2021,425.71,6541-Residential & Nursing Care Placements,THIRD PARTY PAYMENTS,PRIVATE CONTRACTOR,REVENUE
Walsall Council,http://opendatacommunities.org/id/metropolitan-district-council/walsall ,WC131-691,31.10.2021,ECONOMY & ENVIRONMENT CAPITAL,ARCADIS,08/10/2021,"28,000.00",7200-Project Fees,CAPITAL,"NEW CONSTRUCTION,CONVERSION & RENOVATION",CAPITAL
Walsall Council,http://opendatacommunities.org/id/metropolitan-district-council/walsall ,WC131-692,31.10.2021,"ECONOMY, ENVIRONMENT & COMMUNITIES",ARCADIS,05/10/2021,"62,939.99",6313-Consultant Fees,SUPPLIES & SERVICES,SERVICES,REVENUE
Walsall Council,http://opendatacommunities.org/id/metropolitan-district-council/walsall ,WC131-693,31.10.2021,"ECONOMY, ENVIRONMENT & COMMUNITIES",ARCADIS,29/10/2021,"51,718.75",6313-Consultant Fees,SUPPLIES & SERVICES,SERVICES,REVENUE
Walsall Council,http://opendatacommunities.org/id/metropolitan-district-council/walsall ,WC131-694,31.10.2021,"ECONOMY, ENVIRONMENT & COMMUNITIES",ARCHWAY TCS LTD,20/10/2021,251.26,6410-Vehicle Wash Plant Materials,SUPPLIES & SERVICES,EQUIPMENT FURNITURE & MATERIALS,REVENUE
Walsall Council,http://opendatacommunities.org/id/metropolitan-district-council/walsall ,WC131-695,31.10.2021,"ECONOMY, ENVIRONMENT & COMMUNITIES",ARCHWAY TCS LTD,20/10/2021,707.50,6410-Vehicle Wash Plant Materials,SUPPLIES & SERVICES,EQUIPMENT FURNITURE & MATERIALS,REVENUE
Walsall Council,http://opendatacommunities.org/id/metropolitan-district-council/walsall ,WC131-696,31.10.2021,RESOURCES AND TRANSFORMATION,ARISE TRAINING CIC,27/10/2021,"-1,886.09",6312-Grants to Other Orgs,SUPPLIES & SERVICES,GRANTS (EXP) & SUBSCRIPTIONS,REVENUE
Walsall Council,http://opendatacommunities.org/id/metropolitan-district-council/walsall ,WC131-697,31.10.2021,RESOURCES AND TRANSFORMATION,ARISE TRAINING CIC,27/10/2021,"1,886.09",6312-Grants to Other Orgs,SUPPLIES & SERVICES,GRANTS (EXP) & SUBSCRIPTIONS,REVENUE
Walsall Council,http://opendatacommunities.org/id/metropolitan-district-council/walsall ,WC131-698,31.10.2021,"ECONOMY, ENVIRONMENT & COMMUNITIES",ART UK,25/10/2021,250.00,6414-Subscriptions,SUPPLIES & SERVICES,GRANTS (EXP) & SUBSCRIPTIONS,REVENUE
Walsall Council,http://opendatacommunities.org/id/metropolitan-district-council/walsall ,WC131-699,31.10.2021,"ECONOMY, ENVIRONMENT & COMMUNITIES",ASDAN LIMITED,18/10/2021,670.00,6430-Consultant Fees,SUPPLIES & SERVICES,SERVICES,REVENUE
Walsall Council,http://opendatacommunities.org/id/metropolitan-district-council/walsall ,WC131-700,31.10.2021,ADULT SOCIAL CARE,ASH GRANGE CARE HOME,26/10/2021,"2,419.96",6541-Nursing,THIRD PARTY PAYMENTS,PRIVATE CONTRACTOR,REVENUE
Walsall Council,http://opendatacommunities.org/id/metropolitan-district-council/walsall ,WC131-701,31.10.2021,ADULT SOCIAL CARE,ASH GRANGE CARE HOME,26/10/2021,-499.81,6541-Nursing,THIRD PARTY PAYMENTS,PRIVATE CONTRACTOR,REVENUE
Walsall Council,http://opendatacommunities.org/id/metropolitan-district-council/walsall ,WC131-702,31.10.2021,ADULT SOCIAL CARE,ASH GRANGE CARE HOME,26/10/2021,"2,064.44",6541-Residential,THIRD PARTY PAYMENTS,PRIVATE CONTRACTOR,REVENUE
Walsall Council,http://opendatacommunities.org/id/metropolitan-district-council/walsall ,WC131-703,31.10.2021,ADULT SOCIAL CARE,ASH GRANGE CARE HOME,26/10/2021,"2,419.96",6541-Nursing,THIRD PARTY PAYMENTS,PRIVATE CONTRACTOR,REVENUE
Walsall Council,http://opendatacommunities.org/id/metropolitan-district-council/walsall ,WC131-704,31.10.2021,ADULT SOCIAL CARE,ASH GRANGE CARE HOME,26/10/2021,"2,722.96",6541-Nursing EMI,THIRD PARTY PAYMENTS,PRIVATE CONTRACTOR,REVENUE
Walsall Council,http://opendatacommunities.org/id/metropolitan-district-council/walsall ,WC131-705,31.10.2021,ADULT SOCIAL CARE,ASH GRANGE CARE HOME,26/10/2021,"2,819.96",6541-Nursing,THIRD PARTY PAYMENTS,PRIVATE CONTRACTOR,REVENUE
Walsall Council,http://opendatacommunities.org/id/metropolitan-district-council/walsall ,WC131-706,31.10.2021,ADULT SOCIAL CARE,ASH GRANGE CARE HOME,26/10/2021,"2,785.71",6541-Residential & Nursing Care Placements,THIRD PARTY PAYMENTS,PRIVATE CONTRACTOR,REVENUE
Walsall Council,http://opendatacommunities.org/id/metropolitan-district-council/walsall ,WC131-707,31.10.2021,ADULT SOCIAL CARE,ASH GRANGE CARE HOME,26/10/2021,"6,026.43",6541-Nursing,THIRD PARTY PAYMENTS,PRIVATE CONTRACTOR,REVENUE
Walsall Council,http://opendatacommunities.org/id/metropolitan-district-council/walsall ,WC131-708,31.10.2021,ADULT SOCIAL CARE,ASH GRANGE CARE HOME,26/10/2021,"2,571.43",6541-Residential & Nursing Care Placements,THIRD PARTY PAYMENTS,PRIVATE CONTRACTOR,REVENUE
Walsall Council,http://opendatacommunities.org/id/metropolitan-district-council/walsall ,WC131-709,31.10.2021,ADULT SOCIAL CARE,ASH GRANGE CARE HOME,26/10/2021,"2,722.96",6541-Nursing EMI,THIRD PARTY PAYMENTS,PRIVATE CONTRACTOR,REVENUE
Walsall Council,http://opendatacommunities.org/id/metropolitan-district-council/walsall ,WC131-710,31.10.2021,ADULT SOCIAL CARE,ASH GRANGE CARE HOME,26/10/2021,"2,819.96",6541-Nursing,THIRD PARTY PAYMENTS,PRIVATE CONTRACTOR,REVENUE
Walsall Council,http://opendatacommunities.org/id/metropolitan-district-council/walsall ,WC131-711,31.10.2021,ADULT SOCIAL CARE,ASH GRANGE CARE HOME,26/10/2021,"1,714.29",6541-Residential & Nursing Care Placements,THIRD PARTY PAYMENTS,PRIVATE CONTRACTOR,REVENUE
Walsall Council,http://opendatacommunities.org/id/metropolitan-district-council/walsall ,WC131-712,31.10.2021,ADULT SOCIAL CARE,ASH GRANGE CARE HOME,26/10/2021,"2,419.96",6541-Nursing,THIRD PARTY PAYMENTS,PRIVATE CONTRACTOR,REVENUE
Walsall Council,http://opendatacommunities.org/id/metropolitan-district-council/walsall ,WC131-713,31.10.2021,ADULT SOCIAL CARE,ASH GRANGE CARE HOME,26/10/2021,"3,000.00",6541-Residential & Nursing Care Placements,THIRD PARTY PAYMENTS,PRIVATE CONTRACTOR,REVENUE
Walsall Council,http://opendatacommunities.org/id/metropolitan-district-council/walsall ,WC131-714,31.10.2021,ADULT SOCIAL CARE,ASH GRANGE CARE HOME,26/10/2021,428.57,6541-Residential & Nursing Care Placements,THIRD PARTY PAYMENTS,PRIVATE CONTRACTOR,REVENUE
Walsall Council,http://opendatacommunities.org/id/metropolitan-district-council/walsall ,WC131-715,31.10.2021,ADULT SOCIAL CARE,ASH GRANGE CARE HOME,26/10/2021,"2,606.96",6541-Residential,THIRD PARTY PAYMENTS,PRIVATE CONTRACTOR,REVENUE
Walsall Council,http://opendatacommunities.org/id/metropolitan-district-council/walsall ,WC131-716,31.10.2021,ADULT SOCIAL CARE,ASH GRANGE CARE HOME,26/10/2021,"1,497.12",6541-Nursing,THIRD PARTY PAYMENTS,PRIVATE CONTRACTOR,REVENUE
Walsall Council,http://opendatacommunities.org/id/metropolitan-district-council/walsall ,WC131-717,31.10.2021,ADULT SOCIAL CARE,ASH GRANGE CARE HOME,26/10/2021,"1,071.43",6541-Residential & Nursing Care Placements,THIRD PARTY PAYMENTS,PRIVATE CONTRACTOR,REVENUE
Walsall Council,http://opendatacommunities.org/id/metropolitan-district-council/walsall ,WC131-718,31.10.2021,ADULT SOCIAL CARE,ASH GRANGE CARE HOME,26/10/2021,"1,928.57",6541-Residential & Nursing Care Placements,THIRD PARTY PAYMENTS,PRIVATE CONTRACTOR,REVENUE
Walsall Council,http://opendatacommunities.org/id/metropolitan-district-council/walsall ,WC131-719,31.10.2021,ADULT SOCIAL CARE,ASH GRANGE CARE HOME,26/10/2021,"3,298.73",6541-Nursing,THIRD PARTY PAYMENTS,PRIVATE CONTRACTOR,REVENUE
Walsall Council,http://opendatacommunities.org/id/metropolitan-district-council/walsall ,WC131-720,31.10.2021,ADULT SOCIAL CARE,ASH GRANGE CARE HOME,26/10/2021,"2,722.96",6541-Nursing EMI,THIRD PARTY PAYMENTS,PRIVATE CONTRACTOR,REVENUE
Walsall Council,http://opendatacommunities.org/id/metropolitan-district-council/walsall ,WC131-721,31.10.2021,ADULT SOCIAL CARE,ASH GRANGE CARE HOME,26/10/2021,321.43,6541-Residential & Nursing Care Placements,THIRD PARTY PAYMENTS,PRIVATE CONTRACTOR,REVENUE
Walsall Council,http://opendatacommunities.org/id/metropolitan-district-council/walsall ,WC131-722,31.10.2021,ADULT SOCIAL CARE,ASH GRANGE CARE HOME,26/10/2021,"5,051.35",6541-Nursing,THIRD PARTY PAYMENTS,PRIVATE CONTRACTOR,REVENUE
Walsall Council,http://opendatacommunities.org/id/metropolitan-district-council/walsall ,WC131-723,31.10.2021,ADULT SOCIAL CARE,ASH GRANGE CARE HOME,26/10/2021,"1,071.43",6541-Residential & Nursing Care Placements,THIRD PARTY PAYMENTS,PRIVATE CONTRACTOR,REVENUE
Walsall Council,http://opendatacommunities.org/id/metropolitan-district-council/walsall ,WC131-724,31.10.2021,ADULT SOCIAL CARE,ASH GRANGE CARE HOME,26/10/2021,"1,500.00",6541-Residential & Nursing Care Placements,THIRD PARTY PAYMENTS,PRIVATE CONTRACTOR,REVENUE
Walsall Council,http://opendatacommunities.org/id/metropolitan-district-council/walsall ,WC131-725,31.10.2021,ADULT SOCIAL CARE,ASH GRANGE CARE HOME,26/10/2021,"2,571.43",6541-Residential & Nursing Care Placements,THIRD PARTY PAYMENTS,PRIVATE CONTRACTOR,REVENUE
Walsall Council,http://opendatacommunities.org/id/metropolitan-district-council/walsall ,WC131-726,31.10.2021,ADULT SOCIAL CARE,ASH GRANGE CARE HOME,26/10/2021,"1,821.43",6541-Residential & Nursing Care Placements,THIRD PARTY PAYMENTS,PRIVATE CONTRACTOR,REVENUE
Walsall Council,http://opendatacommunities.org/id/metropolitan-district-council/walsall ,WC131-727,31.10.2021,ADULT SOCIAL CARE,ASH GRANGE CARE HOME,26/10/2021,"2,419.96",6541-Nursing,THIRD PARTY PAYMENTS,PRIVATE CONTRACTOR,REVENUE
Walsall Council,http://opendatacommunities.org/id/metropolitan-district-council/walsall ,WC131-728,31.10.2021,ADULT SOCIAL CARE,ASH GRANGE CARE HOME,26/10/2021,"1,285.71",6541-Residential & Nursing Care Placements,THIRD PARTY PAYMENTS,PRIVATE CONTRACTOR,REVENUE
Walsall Council,http://opendatacommunities.org/id/metropolitan-district-council/walsall ,WC131-729,31.10.2021,ADULT SOCIAL CARE,REDACTED,06/10/2021,"1,426.04",6541-Direct Payment,THIRD PARTY PAYMENTS,PRIVATE CONTRACTOR,REVENUE
Walsall Council,http://opendatacommunities.org/id/metropolitan-district-council/walsall ,WC131-730,31.10.2021,"ECONOMY, ENVIRONMENT & COMMUNITIES",ASKEWS AND HOLTS LIBRARY SERVICES LTD,06/10/2021,940.43,6414-Library Books,SUPPLIES & SERVICES,EQUIPMENT FURNITURE & MATERIALS,REVENUE
Walsall Council,http://opendatacommunities.org/id/metropolitan-district-council/walsall ,WC131-731,31.10.2021,"ECONOMY, ENVIRONMENT & COMMUNITIES",ASKEWS AND HOLTS LIBRARY SERVICES LTD,21/10/2021,"1,343.26",6414-Library Books,SUPPLIES & SERVICES,EQUIPMENT FURNITURE & MATERIALS,REVENUE
Walsall Council,http://opendatacommunities.org/id/metropolitan-district-council/walsall ,WC131-732,31.10.2021,"ECONOMY, ENVIRONMENT & COMMUNITIES",ASKEWS AND HOLTS LIBRARY SERVICES LTD,26/10/2021,"1,582.33",6414-Library Books,SUPPLIES & SERVICES,EQUIPMENT FURNITURE & MATERIALS,REVENUE
Walsall Council,http://opendatacommunities.org/id/metropolitan-district-council/walsall ,WC131-733,31.10.2021,ADULT SOCIAL CARE,REDACTED,06/10/2021,750.72,6541-Direct Payment,THIRD PARTY PAYMENTS,PRIVATE CONTRACTOR,REVENUE
Walsall Council,http://opendatacommunities.org/id/metropolitan-district-council/walsall ,WC131-734,31.10.2021,ADULT SOCIAL CARE,ASPECTS CARE LTD,20/10/2021,523.12,6541-Community Supported Living/Supported Accommodation,THIRD PARTY PAYMENTS,PRIVATE CONTRACTOR,REVENUE
Walsall Council,http://opendatacommunities.org/id/metropolitan-district-council/walsall ,WC131-735,31.10.2021,ADULT SOCIAL CARE,ASPECTS CARE LTD,20/10/2021,566.68,6541-Community Supported Living/Supported Accommodation,THIRD PARTY PAYMENTS,PRIVATE CONTRACTOR,REVENUE
Walsall Council,http://opendatacommunities.org/id/metropolitan-district-council/walsall ,WC131-736,31.10.2021,ADULT SOCIAL CARE,ASPECTS CARE LTD,20/10/2021,"1,089.80",6541-Community Supported Living/Supported Accommodation,THIRD PARTY PAYMENTS,PRIVATE CONTRACTOR,REVENUE
Walsall Council,http://opendatacommunities.org/id/metropolitan-district-council/walsall ,WC131-737,31.10.2021,ADULT SOCIAL CARE,ASPECTS CARE LTD,20/10/2021,464.96,6541-Community Supported Living/Supported Accommodation,THIRD PARTY PAYMENTS,PRIVATE CONTRACTOR,REVENUE
Walsall Council,http://opendatacommunities.org/id/metropolitan-district-council/walsall ,WC131-738,31.10.2021,ADULT SOCIAL CARE,ASPECTS CARE LTD,20/10/2021,523.16,6541-Community Supported Living/Supported Accommodation,THIRD PARTY PAYMENTS,PRIVATE CONTRACTOR,REVENUE
Walsall Council,http://opendatacommunities.org/id/metropolitan-district-council/walsall ,WC131-739,31.10.2021,ADULT SOCIAL CARE,ASPECTS CARE LTD,20/10/2021,799.12,6541-Community Supported Living/Supported Accommodation,THIRD PARTY PAYMENTS,PRIVATE CONTRACTOR,REVENUE
Walsall Council,http://opendatacommunities.org/id/metropolitan-district-council/walsall ,WC131-740,31.10.2021,ADULT SOCIAL CARE,ASPECTS CARE LTD,20/10/2021,348.64,6541-Community Supported Living/Supported Accommodation,THIRD PARTY PAYMENTS,PRIVATE CONTRACTOR,REVENUE
Walsall Council,http://opendatacommunities.org/id/metropolitan-district-council/walsall ,WC131-741,31.10.2021,ADULT SOCIAL CARE,ASPECTS CARE LTD,20/10/2021,799.24,6541-Community Supported Living/Supported Accommodation,THIRD PARTY PAYMENTS,PRIVATE CONTRACTOR,REVENUE
Walsall Council,http://opendatacommunities.org/id/metropolitan-district-council/walsall ,WC131-742,31.10.2021,ADULT SOCIAL CARE,ASPECTS CARE LTD,20/10/2021,421.44,6541-Community Supported Living/Supported Accommodation,THIRD PARTY PAYMENTS,PRIVATE CONTRACTOR,REVENUE
Walsall Council,http://opendatacommunities.org/id/metropolitan-district-council/walsall ,WC131-743,31.10.2021,ADULT SOCIAL CARE,ASPECTS CARE LTD,20/10/2021,508.48,6541-Community Supported Living/Supported Accommodation,THIRD PARTY PAYMENTS,PRIVATE CONTRACTOR,REVENUE
Walsall Council,http://opendatacommunities.org/id/metropolitan-district-council/walsall ,WC131-744,31.10.2021,RESOURCES AND TRANSFORMATION,ASPIRING FUTURES CIC,20/10/2021,"13,269.31",6312-Grants to Other Orgs,SUPPLIES & SERVICES,GRANTS (EXP) & SUBSCRIPTIONS,REVENUE
Walsall Council,http://opendatacommunities.org/id/metropolitan-district-council/walsall ,WC131-745,31.10.2021,"ECONOMY, ENVIRONMENT & COMMUNITIES",ATLAS TEACHERS,07/10/2021,907.06,6313-Grants to Other Orgs,SUPPLIES & SERVICES,GRANTS (EXP) & SUBSCRIPTIONS,REVENUE
Walsall Council,http://opendatacommunities.org/id/metropolitan-district-council/walsall ,WC131-746,31.10.2021,"ECONOMY, ENVIRONMENT & COMMUNITIES",ATLAS TEACHERS,07/10/2021,967.82,6313-Grants to Other Orgs,SUPPLIES & SERVICES,GRANTS (EXP) & SUBSCRIPTIONS,REVENUE
Walsall Council,http://opendatacommunities.org/id/metropolitan-district-council/walsall ,WC131-747,31.10.2021,RESOURCES AND TRANSFORMATION,AUDITEL RENTAL & SERVICE LTD,20/10/2021,"-7,200.00","6610-Leasing, Hire & Rental of Equipment",SUPPLIES & SERVICES,EQUIPMENT FURNITURE & MATERIALS,REVENUE
Walsall Council,http://opendatacommunities.org/id/metropolitan-district-council/walsall ,WC131-748,31.10.2021,RESOURCES AND TRANSFORMATION,AUDITEL RENTAL & SERVICE LTD,20/10/2021,"6,000.00","6610-Leasing, Hire & Rental of Equipment",SUPPLIES & SERVICES,EQUIPMENT FURNITURE & MATERIALS,REVENUE
Walsall Council,http://opendatacommunities.org/id/metropolitan-district-council/walsall ,WC131-749,31.10.2021,RESOURCES AND TRANSFORMATION,AUDITEL RENTAL & SERVICE LTD,20/10/2021,"7,200.00","6610-Leasing, Hire & Rental of Equipment",SUPPLIES & SERVICES,EQUIPMENT FURNITURE & MATERIALS,REVENUE
Walsall Council,http://opendatacommunities.org/id/metropolitan-district-council/walsall ,WC131-750,31.10.2021,ADULT SOCIAL CARE,AURORA GRAPHICS & DISPLAYS LTD,06/10/2021,256.92,6623-Outwork Print & Design,SUPPLIES & SERVICES,PRINTING STATIONERY & GENERAL OFFICE,REVENUE
Walsall Council,http://opendatacommunities.org/id/metropolitan-district-council/walsall ,WC131-751,31.10.2021,ADULT SOCIAL CARE,AUTISM WEST MIDLANDS,26/10/2021,"5,732.64",6541-Residential,THIRD PARTY PAYMENTS,PRIVATE CONTRACTOR,REVENUE
Walsall Council,http://opendatacommunities.org/id/metropolitan-district-council/walsall ,WC131-752,31.10.2021,ADULT SOCIAL CARE,AUTISM WEST MIDLANDS,26/10/2021,"7,418.04",6541-Residential,THIRD PARTY PAYMENTS,PRIVATE CONTRACTOR,REVENUE
Walsall Council,http://opendatacommunities.org/id/metropolitan-district-council/walsall ,WC131-753,31.10.2021,ADULT SOCIAL CARE,AUTISM WEST MIDLANDS,26/10/2021,"20,117.08",6541-Residential,THIRD PARTY PAYMENTS,PRIVATE CONTRACTOR,REVENUE
Walsall Council,http://opendatacommunities.org/id/metropolitan-district-council/walsall ,WC131-754,31.10.2021,CHILDRENS,AUTISM WEST MIDLANDS,11/10/2021,"1,100.00",6223-External Training,INDIRECT EMPLOYEES,EXTERNAL TRAINING,REVENUE
Walsall Council,http://opendatacommunities.org/id/metropolitan-district-council/walsall ,WC131-755,31.10.2021,ADULT SOCIAL CARE,AVERY HOMES NELSON LIMITED,26/10/2021,"3,400.00",6541-Residential,THIRD PARTY PAYMENTS,PRIVATE CONTRACTOR,REVENUE
Walsall Council,http://opendatacommunities.org/id/metropolitan-district-council/walsall ,WC131-756,31.10.2021,ADULT SOCIAL CARE,AVERY HOMES NELSON LIMITED,26/10/2021,"2,064.44",6541-Residential,THIRD PARTY PAYMENTS,PRIVATE CONTRACTOR,REVENUE
Walsall Council,http://opendatacommunities.org/id/metropolitan-district-council/walsall ,WC131-757,31.10.2021,ADULT SOCIAL CARE,AVERY HOMES NELSON LIMITED,26/10/2021,"2,064.44",6541-Residential,THIRD PARTY PAYMENTS,PRIVATE CONTRACTOR,REVENUE
Walsall Council,http://opendatacommunities.org/id/metropolitan-district-council/walsall ,WC131-758,31.10.2021,HOLDING ACCOUNTS,AWS SOLICITORS,27/10/2021,"7,532.00",2877-Insurance Payment Claims,SUPPLIES & SERVICES,INSURANCE,REVENUE
Walsall Council,http://opendatacommunities.org/id/metropolitan-district-council/walsall ,WC131-759,31.10.2021,"ECONOMY, ENVIRONMENT & COMMUNITIES",AXIOMATIC TECHNOLOGY LTD,05/10/2021,589.00,6414-Repair & Maintenance of Furniture & Equipment,SUPPLIES & SERVICES,EQUIPMENT FURNITURE & MATERIALS,REVENUE
Walsall Council,http://opendatacommunities.org/id/metropolitan-district-council/walsall ,WC131-760,31.10.2021,ADULT SOCIAL CARE,REDACTED,06/10/2021,"3,394.56",6541-Direct Payment,THIRD PARTY PAYMENTS,PRIVATE CONTRACTOR,REVENUE
Walsall Council,http://opendatacommunities.org/id/metropolitan-district-council/walsall ,WC131-761,31.10.2021,CHILDRENS CAPITAL,BAILY GARNER LLP,08/10/2021,-570.00,7150-Site Works Contractors,CAPITAL,"NEW CONSTRUCTION,CONVERSION & RENOVATION",CAPITAL
Walsall Council,http://opendatacommunities.org/id/metropolitan-district-council/walsall ,WC131-762,31.10.2021,CHILDRENS CAPITAL,BAILY GARNER LLP,08/10/2021,570.00,7150-Site Works Contractors,CAPITAL,"NEW CONSTRUCTION,CONVERSION & RENOVATION",CAPITAL
Walsall Council,http://opendatacommunities.org/id/metropolitan-district-council/walsall ,WC131-763,31.10.2021,"ECONOMY, ENVIRONMENT & COMMUNITIES",BAKER HALL PARTNERSHIP,22/10/2021,764.50,6413-Professional Fees & Services,SUPPLIES & SERVICES,SERVICES,REVENUE
Walsall Council,http://opendatacommunities.org/id/metropolitan-district-council/walsall ,WC131-764,31.10.2021,ADULT SOCIAL CARE,REDACTED,06/10/2021,"3,799.92",6541-Direct Payment,THIRD PARTY PAYMENTS,PRIVATE CONTRACTOR,REVENUE
Walsall Council,http://opendatacommunities.org/id/metropolitan-district-council/walsall ,WC131-765,31.10.2021,CHILDRENS,BANYA FAMILY PLACEMENT AGENCY LTD,04/10/2021,"3,441.45",6223-Independent Foster Care-Oth Agency Provision,THIRD PARTY PAYMENTS,PRIVATE CONTRACTOR,REVENUE
Walsall Council,http://opendatacommunities.org/id/metropolitan-district-council/walsall ,WC131-766,31.10.2021,CHILDRENS,REDACTED,21/10/2021,340.00,6223-Internal Foster Carers-Carer Fees,TRANSFER PAYMENTS,CHILDREN SOCIAL SERVICES CLIENT,REVENUE
Walsall Council,http://opendatacommunities.org/id/metropolitan-district-council/walsall ,WC131-767,31.10.2021,"ECONOMY, ENVIRONMENT & COMMUNITIES",BARCHAM TREES PLC,19/10/2021,262.00,6410-Materials,SUPPLIES & SERVICES,EQUIPMENT FURNITURE & MATERIALS,REVENUE
Walsall Council,http://opendatacommunities.org/id/metropolitan-district-council/walsall ,WC131-768,31.10.2021,"ECONOMY, ENVIRONMENT & COMMUNITIES",BARCHAM TREES PLC,19/10/2021,266.00,6410-Materials,SUPPLIES & SERVICES,EQUIPMENT FURNITURE & MATERIALS,REVENUE
Walsall Council,http://opendatacommunities.org/id/metropolitan-district-council/walsall ,WC131-769,31.10.2021,"ECONOMY, ENVIRONMENT & COMMUNITIES",BARCHAM TREES PLC,19/10/2021,376.00,6410-Materials,SUPPLIES & SERVICES,EQUIPMENT FURNITURE & MATERIALS,REVENUE
Walsall Council,http://opendatacommunities.org/id/metropolitan-district-council/walsall ,WC131-770,31.10.2021,"ECONOMY, ENVIRONMENT & COMMUNITIES",BARCHAM TREES PLC,19/10/2021,412.00,6410-Materials,SUPPLIES & SERVICES,EQUIPMENT FURNITURE & MATERIALS,REVENUE
Walsall Council,http://opendatacommunities.org/id/metropolitan-district-council/walsall ,WC131-771,31.10.2021,"ECONOMY, ENVIRONMENT & COMMUNITIES",BARCHAM TREES PLC,19/10/2021,496.00,6410-Materials,SUPPLIES & SERVICES,EQUIPMENT FURNITURE & MATERIALS,REVENUE
Walsall Council,http://opendatacommunities.org/id/metropolitan-district-council/walsall ,WC131-772,31.10.2021,"ECONOMY, ENVIRONMENT & COMMUNITIES",BARCHAM TREES PLC,19/10/2021,588.00,6410-Materials,SUPPLIES & SERVICES,EQUIPMENT FURNITURE & MATERIALS,REVENUE
Walsall Council,http://opendatacommunities.org/id/metropolitan-district-council/walsall ,WC131-773,31.10.2021,ECONOMY & ENVIRONMENT CAPITAL,BARCHAM TREES PLC,20/10/2021,"2,352.00",7200-Purchase of Furniture & Equipment,CAPITAL,"VEHICLES,PLANT,EQUIPMENT & MACHINERY",CAPITAL
Walsall Council,http://opendatacommunities.org/id/metropolitan-district-council/walsall ,WC131-774,31.10.2021,"ECONOMY, ENVIRONMENT & COMMUNITIES",BARHALE CONSTRUCTION SERVICES LTD,19/10/2021,928.95,6313-Grants to Other Orgs,SUPPLIES & SERVICES,GRANTS (EXP) & SUBSCRIPTIONS,REVENUE
Walsall Council,http://opendatacommunities.org/id/metropolitan-district-council/walsall ,WC131-775,31.10.2021,"ECONOMY, ENVIRONMENT & COMMUNITIES",BARHALE CONSTRUCTION SERVICES LTD,19/10/2021,929.95,6313-Grants to Other Orgs,SUPPLIES & SERVICES,GRANTS (EXP) & SUBSCRIPTIONS,REVENUE
Walsall Council,http://opendatacommunities.org/id/metropolitan-district-council/walsall ,WC131-776,31.10.2021,"ECONOMY, ENVIRONMENT & COMMUNITIES",BARHALE CONSTRUCTION SERVICES LTD,19/10/2021,996.75,6313-Grants to Other Orgs,SUPPLIES & SERVICES,GRANTS (EXP) & SUBSCRIPTIONS,REVENUE
Walsall Council,http://opendatacommunities.org/id/metropolitan-district-council/walsall ,WC131-777,31.10.2021,CHILDRENS,BARR BEACON SCHOOL TRUST,12/10/2021,"26,663.22",1220-Top Up Funding -Grants to Schools,SUPPLIES & SERVICES,GRANTS (EXP) & SUBSCRIPTIONS,REVENUE
Walsall Council,http://opendatacommunities.org/id/metropolitan-district-council/walsall ,WC131-778,31.10.2021,"ECONOMY, ENVIRONMENT & COMMUNITIES",BAT FABRICATIONS LTD,22/10/2021,300.00,6410-Grounds Maintenance,PREMISES,GROUNDS MAINTENANCE,REVENUE
Walsall Council,http://opendatacommunities.org/id/metropolitan-district-council/walsall ,WC131-779,31.10.2021,"ECONOMY, ENVIRONMENT & COMMUNITIES",BAT FABRICATIONS LTD,22/10/2021,"1,260.00",6410-Grounds Maintenance,PREMISES,GROUNDS MAINTENANCE,REVENUE
Walsall Council,http://opendatacommunities.org/id/metropolitan-district-council/walsall ,WC131-780,31.10.2021,"ECONOMY, ENVIRONMENT & COMMUNITIES",BAT FABRICATIONS LTD,22/10/2021,880.00,6410-Grounds Maintenance,PREMISES,GROUNDS MAINTENANCE,REVENUE
Walsall Council,http://opendatacommunities.org/id/metropolitan-district-council/walsall ,WC131-781,31.10.2021,ECONOMY & ENVIRONMENT CAPITAL,BAT FABRICATIONS LTD,12/10/2021,"1,600.00",7200-Consultants Fees,CAPITAL,"NEW CONSTRUCTION,CONVERSION & RENOVATION",CAPITAL
Walsall Council,http://opendatacommunities.org/id/metropolitan-district-council/walsall ,WC131-782,31.10.2021,ECONOMY & ENVIRONMENT CAPITAL,BAT FABRICATIONS LTD,12/10/2021,"6,850.00",7200-Consultants Fees,CAPITAL,"NEW CONSTRUCTION,CONVERSION & RENOVATION",CAPITAL
Walsall Council,http://opendatacommunities.org/id/metropolitan-district-council/walsall ,WC131-783,31.10.2021,CHILDRENS CAPITAL,BAT FABRICATIONS LTD,08/10/2021,700.00,7150-Site Works Contractors,CAPITAL,"NEW CONSTRUCTION,CONVERSION & RENOVATION",CAPITAL
Walsall Council,http://opendatacommunities.org/id/metropolitan-district-council/walsall ,WC131-784,31.10.2021,CHILDRENS CAPITAL,BAT FABRICATIONS LTD,08/10/2021,"12,400.00",7150-Site Works Contractors,CAPITAL,"NEW CONSTRUCTION,CONVERSION & RENOVATION",CAPITAL
Walsall Council,http://opendatacommunities.org/id/metropolitan-district-council/walsall ,WC131-785,31.10.2021,"ECONOMY, ENVIRONMENT & COMMUNITIES",BAT FABRICATIONS LTD,22/10/2021,"3,600.00",6410-Grounds Maintenance,PREMISES,GROUNDS MAINTENANCE,REVENUE
Walsall Council,http://opendatacommunities.org/id/metropolitan-district-council/walsall ,WC131-786,31.10.2021,"ECONOMY, ENVIRONMENT & COMMUNITIES",BAT FABRICATIONS LTD,22/10/2021,"14,418.00",6410-Grounds Maintenance,PREMISES,GROUNDS MAINTENANCE,REVENUE
Walsall Council,http://opendatacommunities.org/id/metropolitan-district-council/walsall ,WC131-787,31.10.2021,"ECONOMY, ENVIRONMENT & COMMUNITIES",BATLEYS,18/10/2021,"1,198.73",6414-Catering & Refreshments,SUPPLIES & SERVICES,CATERING,REVENUE
Walsall Council,http://opendatacommunities.org/id/metropolitan-district-council/walsall ,WC131-788,31.10.2021,"ECONOMY, ENVIRONMENT & COMMUNITIES",BATLEYS,05/10/2021,846.87,6414-Catering & Refreshments,SUPPLIES & SERVICES,CATERING,REVENUE
Walsall Council,http://opendatacommunities.org/id/metropolitan-district-council/walsall ,WC131-789,31.10.2021,"ECONOMY, ENVIRONMENT & COMMUNITIES",BATLEYS,27/10/2021,931.55,6414-Catering & Refreshments,SUPPLIES & SERVICES,CATERING,REVENUE
Walsall Council,http://opendatacommunities.org/id/metropolitan-district-council/walsall ,WC131-790,31.10.2021,CHILDRENS,BAUER CORPORATE SERVICES - BAUER RADIO LTD,08/10/2021,"2,783.00",6223-Advertising-Foster Carer,INDIRECT EMPLOYEES,ADVERTISING FOSTER CARE,REVENUE
Walsall Council,http://opendatacommunities.org/id/metropolitan-district-council/walsall ,WC131-791,31.10.2021,CHILDRENS,BEACON CHILDCARE LTD,04/10/2021,"9,150.00",6223-External Residential Care-Oth Agency Provision,THIRD PARTY PAYMENTS,PRIVATE CONTRACTOR,REVENUE
Walsall Council,http://opendatacommunities.org/id/metropolitan-district-council/walsall ,WC131-792,31.10.2021,CHILDRENS,BECKYS CHILDMINDING SERVICE,25/10/2021,850.50,1184-Other-Grants to Other Orgs,SUPPLIES & SERVICES,GRANTS (EXP) & SUBSCRIPTIONS,REVENUE
Walsall Council,http://opendatacommunities.org/id/metropolitan-district-council/walsall ,WC131-793,31.10.2021,ADULT SOCIAL CARE,BELVIDERE COURT,26/10/2021,"2,895.88",6541-Residential,THIRD PARTY PAYMENTS,PRIVATE CONTRACTOR,REVENUE
Walsall Council,http://opendatacommunities.org/id/metropolitan-district-council/walsall ,WC131-794,31.10.2021,ADULT SOCIAL CARE,BELVIDERE COURT,26/10/2021,"2,419.96",6541-Nursing,THIRD PARTY PAYMENTS,PRIVATE CONTRACTOR,REVENUE
Walsall Council,http://opendatacommunities.org/id/metropolitan-district-council/walsall ,WC131-795,31.10.2021,ADULT SOCIAL CARE,BENEDON HEALTHCARE LTD,20/10/2021,"5,903.24",6541-Community Supported Living/Supported Accommodation,THIRD PARTY PAYMENTS,PRIVATE CONTRACTOR,REVENUE
Walsall Council,http://opendatacommunities.org/id/metropolitan-district-council/walsall ,WC131-796,31.10.2021,ADULT SOCIAL CARE,BENEDON HEALTHCARE LTD,20/10/2021,"1,395.84",6541-Community Supported Living/Supported Accommodation,THIRD PARTY PAYMENTS,PRIVATE CONTRACTOR,REVENUE
Walsall Council,http://opendatacommunities.org/id/metropolitan-district-council/walsall ,WC131-797,31.10.2021,ADULT SOCIAL CARE,REDACTED,06/10/2021,"2,864.72",6541-Direct Payment,THIRD PARTY PAYMENTS,PRIVATE CONTRACTOR,REVENUE
Walsall Council,http://opendatacommunities.org/id/metropolitan-district-council/walsall ,WC131-798,31.10.2021,HOLDING ACCOUNTS,BERRYMANS LACE MAWER LLP,26/10/2021,"-4,818.50",2877-Insurance Payment Claims,SUPPLIES & SERVICES,INSURANCE,REVENUE
Walsall Council,http://opendatacommunities.org/id/metropolitan-district-council/walsall ,WC131-799,31.10.2021,HOLDING ACCOUNTS,BERRYMANS LACE MAWER LLP,26/10/2021,"4,818.50",2877-Insurance Payment Claims,SUPPLIES & SERVICES,INSURANCE,REVENUE
Walsall Council,http://opendatacommunities.org/id/metropolitan-district-council/walsall ,WC131-800,31.10.2021,ADULT SOCIAL CARE,REDACTED,06/10/2021,"1,931.68",6541-Direct Payment,THIRD PARTY PAYMENTS,PRIVATE CONTRACTOR,REVENUE
Walsall Council,http://opendatacommunities.org/id/metropolitan-district-council/walsall ,WC131-801,31.10.2021,"ECONOMY, ENVIRONMENT & COMMUNITIES",BESCOT STADIUM SUNDAY MARKET LTD,04/10/2021,"2,600.00",6410-Professional Services-Priv Contractor & Other Agencies,THIRD PARTY PAYMENTS,PRIVATE CONTRACTOR,REVENUE
Walsall Council,http://opendatacommunities.org/id/metropolitan-district-council/walsall ,WC131-802,31.10.2021,ADULT SOCIAL CARE,BESS CARE LIMITED,20/10/2021,354.29,6541-Domiciliary Care,THIRD PARTY PAYMENTS,PRIVATE CONTRACTOR,REVENUE
Walsall Council,http://opendatacommunities.org/id/metropolitan-district-council/walsall ,WC131-803,31.10.2021,ADULT SOCIAL CARE,BESS CARE LIMITED,20/10/2021,552.98,6541-Domiciliary Care,THIRD PARTY PAYMENTS,PRIVATE CONTRACTOR,REVENUE
Walsall Council,http://opendatacommunities.org/id/metropolitan-district-council/walsall ,WC131-804,31.10.2021,ADULT SOCIAL CARE,BESS CARE LIMITED,20/10/2021,553.00,6541-Domiciliary Care,THIRD PARTY PAYMENTS,PRIVATE CONTRACTOR,REVENUE
